Workbook

Sheet DISCLAIMER
A3: This spreadsheet illustrates the structure only of a linked diversion-yield model that can be easily modified
A4: and used to investigate the impacts of different scenarios that could be used to develop AWSA water.
A6: A fully functional model would require much more detail regarding streamflow, geology, soils, topography,
A7: and weather gained from field studies that have not yet been done.
A9: Hence, this spreadsheet should NOT be used for anything more than rough estimates of diversion and yield,
A10: as would be required for a high level engineering study.
A12: A Yield Model for decision support must:
A14: • Contain pertinent, substantive parameters necessary for a sufficient yield estimate.
A16: • Contain the parameters necessary to illustrate impacts of alternate facilities and operations.
A18: • Parameters must be easily understood by technical experts, stakeholders, and the public.
A20: • Parameters must be easily and simply varied by technical experts, stakeholders, and the public
A21: to illustrate the impacts of alternative configurations and operations.
A23: • Model operations must be transparent and the validity of modified parameter values easily verified.

Sheet TNC Drought Charts

Sheet Diversion
C1: MINIMUM GILA FLOWS: | K1: Duncan-Virden daily calls: | L1: Month # | M1: (cfs)
A2: Month | B2: Month # | C2: (cfs) | D2: Fraction | G2: San Carlos Minimum Storage: | H2: 30000 | K2: 1 | L2: January | M2: 12.72949309
A3: Jan | B3: 1 | C3: 82.5 | D3: 0.8 | G3: Total Pre-Bank Limit: | H3: 70000 | K3: 2 | L3: February | M3: 20.38131313
A4: Feb | B4: 2 | C4: 215 | D4: 0.8 | E4: MIN FLOW | G4: Annual Pre-Bank Limit: | H4: 18000 | K4: 3 | L4: March | M4: 38.4718894
A5: Mar | B5: 3 | C5: 292.5 | D5: 0.8 | E5: =Yield!H1 -> 150 | G5: Annual Diversion Limit: | H5: 64000 | K5: 4 | L5: April | M5: 47.63266667
A6: Apr | B6: 4 | C6: 432.5 | D6: 0.8 | G6: 10-yr Diversion Limit: | H6: 140000 | K6: 5 | L6: May | M6: 54.10119816
A7: May | B7: 5 | C7: 437.5 | D7: 0.75 | K7: 6 | L7: June | M7: 55.53109524
A8: Jun | B8: 6 | C8: 442.5 | D8: 0.75 | K8: 7 | L8: July | M8: 56.68543779
A9: Jul | B9: 7 | C9: 442.5 | D9: 0.75 | K9: 8 | L9: August | M9: 50.93654378
A10: Aug | B10: 8 | C10: 442.5 | D10: 0.75 | K10: 9 | L10: September | M10: 49.16142857
A11: Sep | B11: 9 | C11: 442.5 | D11: 0.75 | K11: 10 | L11: October | M11: 41.70138249
A12: Oct | B12: 10 | C12: 267.5 | D12: 0.75 | K12: 11 | L12: November | M12: 36.79619048
A13: Nov | B13: 11 | C13: 152.5 | D13: 0.8 | K13: 12 | L13: December | M13: 22.6680203
A14: Dec | B14: 12 | C14: 75.5 | D14: 0.8 | Q14: MEDIAN: | R14: 67
H15: Drought Adjustment: | Q15: MEAN: | R15: 140.7548975
H16: Low Flows | I16: High Flows
H17: <400 | I17: 400
H18: -0.15 | I18: 0.05
G19: No Drought | H19: Calculated Drought | I19: Drought Target
B20: Max Diversion: | C20: =Yield!F1 -> 350 | F20: Mean: | G20: =AVERAGE(U24:U27964) -> 158.4188003 | H20: =AVERAGE(D24:D27964) -> 148.5430495 | I20: =0.94*G20 -> 148.9136723
B21: Min Gila: | C21: =Yield!F2 -> 150 | F21: Median: | G21: =MEDIAN(U24:U27964) -> 72 | H21: =MEDIAN(D24:D27964) -> 61.2 | I21: =0.85*G21 -> 61.2 | P21: Drought Net Average Annual Gila Diversion to 3/2013 (AF): | Q21: =1.98346*Q22 -> 12216.62634
P22: Average Annual Diversion (cfs): | Q22: =SUM(Q24:Q27964)/((27941)/365.25) -> 6159.250171 | T22: NO DROUGHT
A23: Month # | B23: Date | C23: TNC DROUGHT:Gila nr Blue Creek (cfs) | D23: TNC DROUGHT:Gila nr Gila (cfs) | E23: TNC DROUGHT:San Francisco at Clifton (cfs) | F23: NM Bypass (cfs) | G23: Slope Factor | H23: Full Parameter Diversion (cfs) | I23: Parameter Diversion w/ Gila Min Bypass or Flow (cfs) | J23: Param Diversion w/ Blue Creek Call (cfs) | K23: San Carlos Storage (AF) | L23: Diversion w/ San Carlos Storage (cfs) | M23: Pre-Bank (AF) | N23: Diversion with Pre-Bank (cfs) | O23: Annual Diversion Total (AF) | P23: Diversion w/ 64 KAF/yr Limit (cfs) | Q23: Diversion w/ 140KAF/yr Limit (cfs) | R23: Gila nr Gila minus Diversion (cfs) | T23: Gila nr Blue Creek (cfs) | U23: Gila nr Gila (cfs) | V23: San Francisco at Clifton (cfs)
A24: 10 | B24: 1936-10-01 | C24: =IF(T24<$H$17,T24*(1+$H$18),IF(T24>$I$17,T24*(1+$I$18),T24)) -> 113.05 | D24: =IF(U24<$I$17,U24*(1+$H$18),U24*(1+$I$18)) -> 78.2 | E24: =IF(V24<$H$17,V24*(1+$H$18),IF(V24>$I$17,V24*(1+$I$18),V24)) -> 84.15 | F24: =VLOOKUP(A24,$B$3:$C$14,2,FALSE) -> 267.5 | G24: =VLOOKUP(A24,$B$3:$D$14,3,FALSE) -> 0.75 | H24: 0 | I24: 0 | J24: =IF(C24>=VLOOKUP(A24,$K$2:$M$13,3,FALSE),I24,0) -> 0 | K24: 34500 | L24: =IF(K24>30000,J24,0) -> 0 | M24: 54000 | N24: =MIN(M24/1.98,L24) -> 0 | O24: 0 | P24: =IF(O24<=64000,N24,IF(64000-O23-1.98346*N24>=0,64000-1.98346*N24,0)) -> 0 | Q24: 0 | R24: =D24-Q24 -> 78.2 | T24: 133 | U24: 92 | V24: 99
A25: 10 | B25: 1936-10-02 | C25: =IF(T25<$I$17,T25*(1+$H$18),T25*(1+$I$18)) -> 105.4 | D25: 67.15 | E25: =IF(V25<$I$17,V25*(1+$H$18),V25*(1+$I$18)) -> 74.8 | F25: 267.5 | G25: 0.75 | H25: =IF((D24+E24-F25)*G25>$C$20,$C$20,IF(D24+E24-F25>0,(D24+E24-F25)*G25,0)) -> 0 | I25: =IF(D24>$C$21,MIN(D24-$C$21,H24),0) -> 0 | J25: 0 | K25: 34000 | L25: 0 | M25: =IF(MONTH(B25) =12,IF(DAY(B25)=31,IF(M24-1.98*L25+18000<70000,M24-1.98*L25+18000,70000),IF(M24-1.98*L25<0,0,M24-1.98*L25)),IF(M24-1.98*L25<0,0,M24-1.98*L25)) -> 54000 | N25: =IF(MIN(M25/1.98,L25)+O24/1.98<=64000/1.98,MIN(M25/1.98,L25),(64000-O24)/1.98) -> 0 | O25: =IF(MONTH(B25)=1,IF(DAY(B25)=1,1.98346*N25,1.98346*N25+O24),1.98346*N25+O24) -> 0 | P25: 0 | Q25: =IF(SUM($Q$24:Q24)+P25<=140000/1.98346,P25,IF(140000/1.98346-SUM(Q$24:$Q24)>0,140000/1.98346-SUM(Q$24:$Q24),0)) -> 0 | R25: 67.15 | T25: 124 | U25: 79 | V25: 88
A26: 10 | B26: 1936-10-03 | C26: 96.9 | D26: 61.2 | E26: 69.7 | F26: 267.5 | G26: 0.75 | H26: 0 | I26: 0 | J26: 0 | K26: 33500 | L26: 0 | M26: 54000 | N26: 0 | O26: 0 | P26: 0 | Q26: =IF(SUM($Q$24:Q25)+P26<=140000/1.98346,P26,IF(140000/1.98346-SUM(Q$24:$Q25)>0,140000/1.98346-SUM(Q$24:$Q25),0)) -> 0 | R26: 61.2 | T26: 114 | U26: 72 | V26: 82
A27: 10 | B27: 1936-10-04 | C27: 88.4 | D27: 56.1 | E27: 64.6 | F27: 267.5 | G27: 0.75 | H27: 0 | I27: 0 | J27: 0 | K27: 32900 | L27: 0 | M27: 54000 | N27: 0 | O27: 0 | P27: 0 | Q27: =IF(SUM($Q$24:Q26)+P27<=140000/1.98346,P27,IF(140000/1.98346-SUM(Q$24:$Q26)>0,140000/1.98346-SUM(Q$24:$Q26),0)) -> 0 | R27: 56.1 | T27: 104 | U27: 66 | V27: 76
A28: 10 | B28: 1936-10-05 | C28: 85 | D28: 53.55 | E28: 59.5 | F28: 267.5 | G28: 0.75 | H28: 0 | I28: 0 | J28: 0 | K28: 32300 | L28: 0 | M28: 54000 | N28: 0 | O28: 0 | P28: 0 | Q28: =IF(SUM($Q$24:Q27)+P28<=140000/1.98346,P28,IF(140000/1.98346-SUM(Q$24:$Q27)>0,140000/1.98346-SUM(Q$24:$Q27),0)) -> 0 | R28: 53.55 | T28: 100 | U28: 63 | V28: 70
A29: 10 | B29: 1936-10-06 | C29: 78.2 | D29: 49.3 | E29: 57.8 | F29: 267.5 | G29: 0.75 | H29: 0 | I29: 0 | J29: 0 | K29: 31700 | L29: 0 | M29: 54000 | N29: 0 | O29: 0 | P29: 0 | Q29: =IF(SUM($Q$24:Q28)+P29<=140000/1.98346,P29,IF(140000/1.98346-SUM(Q$24:$Q28)>0,140000/1.98346-SUM(Q$24:$Q28),0)) -> 0 | R29: 49.3 | T29: 92 | U29: 58 | V29: 68
A30: 10 | B30: 1936-10-07 | C30: 70.55 | D30: 47.6 | E30: 53.55 | F30: 267.5 | G30: 0.75 | H30: 0 | I30: 0 | J30: 0 | K30: 31100 | L30: 0 | M30: 54000 | N30: 0 | O30: 0 | P30: 0 | Q30: =IF(SUM($Q$24:Q29)+P30<=140000/1.98346,P30,IF(140000/1.98346-SUM(Q$24:$Q29)>0,140000/1.98346-SUM(Q$24:$Q29),0)) -> 0 | R30: 47.6 | T30: 83 | U30: 56 | V30: 63
A31: 10 | B31: 1936-10-08 | C31: 70.55 | D31: 47.6 | E31: 52.7 | F31: 267.5 | G31: 0.75 | H31: 0 | I31: 0 | J31: 0 | K31: 30400 | L31: 0 | M31: 54000 | N31: 0 | O31: 0 | P31: 0 | Q31: =IF(SUM($Q$24:Q30)+P31<=140000/1.98346,P31,IF(140000/1.98346-SUM(Q$24:$Q30)>0,140000/1.98346-SUM(Q$24:$Q30),0)) -> 0 | R31: 47.6 | T31: 83 | U31: 56 | V31: 62
A32: 10 | B32: 1936-10-09 | C32: 68.85 | D32: 47.6 | E32: 51.85 | F32: 267.5 | G32: 0.75 | H32: 0 | I32: 0 | J32: 0 | K32: 29700 | L32: 0 | M32: 54000 | N32: 0 | O32: 0 | P32: 0 | Q32: =IF(SUM($Q$24:Q31)+P32<=140000/1.98346,P32,IF(140000/1.98346-SUM(Q$24:$Q31)>0,140000/1.98346-SUM(Q$24:$Q31),0)) -> 0 | R32: 47.6 | T32: 81 | U32: 56 | V32: 61
A33: 10 | B33: 1936-10-10 | C33: 66.3 | D33: 45.9 | E33: 51.85 | F33: 267.5 | G33: 0.75 | H33: 0 | I33: 0 | J33: 0 | K33: 29200 | L33: 0 | M33: 54000 | N33: 0 | O33: 0 | P33: 0 | Q33: =IF(SUM($Q$24:Q32)+P33<=140000/1.98346,P33,IF(140000/1.98346-SUM(Q$24:$Q32)>0,140000/1.98346-SUM(Q$24:$Q32),0)) -> 0 | R33: 45.9 | T33: 78 | U33: 54 | V33: 61
A34: 10 | B34: 1936-10-11 | C34: 62.9 | D34: 45.05 | E34: 48.45 | F34: 267.5 | G34: 0.75 | H34: 0 | I34: 0 | J34: 0 | K34: 28600 | L34: 0 | M34: 54000 | N34: 0 | O34: 0 | P34: 0 | Q34: =IF(SUM($Q$24:Q33)+P34<=140000/1.98346,P34,IF(140000/1.98346-SUM(Q$24:$Q33)>0,140000/1.98346-SUM(Q$24:$Q33),0)) -> 0 | R34: 45.05 | T34: 74 | U34: 53 | V34: 57
A35: 10 | B35: 1936-10-12 | C35: 61.2 | D35: 42.5 | E35: 47.6 | F35: 267.5 | G35: 0.75 | H35: 0 | I35: 0 | J35: 0 | K35: 28000 | L35: 0 | M35: 54000 | N35: 0 | O35: 0 | P35: 0 | Q35: =IF(SUM($Q$24:Q34)+P35<=140000/1.98346,P35,IF(140000/1.98346-SUM(Q$24:$Q34)>0,140000/1.98346-SUM(Q$24:$Q34),0)) -> 0 | R35: 42.5 | T35: 72 | U35: 50 | V35: 56
A36: 10 | B36: 1936-10-13 | C36: 61.2 | D36: 42.5 | E36: 45.9 | F36: 267.5 | G36: 0.75 | H36: 0 | I36: 0 | J36: 0 | K36: 27400 | L36: 0 | M36: 54000 | N36: 0 | O36: 0 | P36: 0 | Q36: =IF(SUM($Q$24:Q35)+P36<=140000/1.98346,P36,IF(140000/1.98346-SUM(Q$24:$Q35)>0,140000/1.98346-SUM(Q$24:$Q35),0)) -> 0 | R36: 42.5 | T36: 72 | U36: 50 | V36: 54
A37: 10 | B37: 1936-10-14 | C37: 60.35 | D37: 42.5 | E37: 45.9 | F37: 267.5 | G37: 0.75 | H37: 0 | I37: 0 | J37: 0 | K37: 26800 | L37: 0 | M37: 54000 | N37: 0 | O37: 0 | P37: 0 | Q37: =IF(SUM($Q$24:Q36)+P37<=140000/1.98346,P37,IF(140000/1.98346-SUM(Q$24:$Q36)>0,140000/1.98346-SUM(Q$24:$Q36),0)) -> 0 | R37: 42.5 | T37: 71 | U37: 50 | V37: 54
A38: 10 | B38: 1936-10-15 | C38: 57.8 | D38: 42.5 | E38: 45.9 | F38: 267.5 | G38: 0.75 | H38: 0 | I38: 0 | J38: 0 | K38: 26200 | L38: 0 | M38: 54000 | N38: 0 | O38: 0 | P38: 0 | Q38: =IF(SUM($Q$24:Q37)+P38<=140000/1.98346,P38,IF(140000/1.98346-SUM(Q$24:$Q37)>0,140000/1.98346-SUM(Q$24:$Q37),0)) -> 0 | R38: 42.5 | T38: 68 | U38: 50 | V38: 54
A39: 10 | B39: 1936-10-16 | C39: 54.4 | D39: 41.65 | E39: 45.05 | F39: 267.5 | G39: 0.75 | H39: 0 | I39: 0 | J39: 0 | K39: 25600 | L39: 0 | M39: 54000 | N39: 0 | O39: 0 | P39: 0 | Q39: =IF(SUM($Q$24:Q38)+P39<=140000/1.98346,P39,IF(140000/1.98346-SUM(Q$24:$Q38)>0,140000/1.98346-SUM(Q$24:$Q38),0)) -> 0 | R39: 41.65 | T39: 64 | U39: 49 | V39: 53
A40: 10 | B40: 1936-10-17 | C40: 53.55 | D40: 41.65 | E40: 45.9 | F40: 267.5 | G40: 0.75 | H40: 0 | I40: 0 | J40: 0 | K40: 25100 | L40: 0 | M40: 54000 | N40: 0 | O40: 0 | P40: 0 | Q40: =IF(SUM($Q$24:Q39)+P40<=140000/1.98346,P40,IF(140000/1.98346-SUM(Q$24:$Q39)>0,140000/1.98346-SUM(Q$24:$Q39),0)) -> 0 | R40: 41.65 | T40: 63 | U40: 49 | V40: 54
A41: 10 | B41: 1936-10-18 | C41: 51.85 | D41: 41.65 | E41: 45.05 | F41: 267.5 | G41: 0.75 | H41: 0 | I41: 0 | J41: 0 | K41: 24400 | L41: 0 | M41: 54000 | N41: 0 | O41: 0 | P41: 0 | Q41: =IF(SUM($Q$24:Q40)+P41<=140000/1.98346,P41,IF(140000/1.98346-SUM(Q$24:$Q40)>0,140000/1.98346-SUM(Q$24:$Q40),0)) -> 0 | R41: 41.65 | T41: 61 | U41: 49 | V41: 53
A42: 10 | B42: 1936-10-19 | C42: 51.85 | D42: 40.8 | E42: 46.75 | F42: 267.5 | G42: 0.75 | H42: 0 | I42: 0 | J42: 0 | K42: 23800 | L42: 0 | M42: 54000 | N42: 0 | O42: 0 | P42: 0 | Q42: =IF(SUM($Q$24:Q41)+P42<=140000/1.98346,P42,IF(140000/1.98346-SUM(Q$24:$Q41)>0,140000/1.98346-SUM(Q$24:$Q41),0)) -> 0 | R42: 40.8 | T42: 61 | U42: 48 | V42: 55
A43: 10 | B43: 1936-10-20 | C43: 53.55 | D43: 40.8 | E43: 48.45 | F43: 267.5 | G43: 0.75 | H43: 0 | I43: 0 | J43: 0 | K43: 23300 | L43: 0 | M43: 54000 | N43: 0 | O43: 0 | P43: 0 | Q43: =IF(SUM($Q$24:Q42)+P43<=140000/1.98346,P43,IF(140000/1.98346-SUM(Q$24:$Q42)>0,140000/1.98346-SUM(Q$24:$Q42),0)) -> 0 | R43: 40.8 | T43: 63 | U43: 48 | V43: 57
A44: 10 | B44: 1936-10-21 | C44: 51 | D44: 41.65 | E44: 51.85 | F44: 267.5 | G44: 0.75 | H44: 0 | I44: 0 | J44: 0 | K44: 22800 | L44: 0 | M44: 54000 | N44: 0 | O44: 0 | P44: 0 | Q44: =IF(SUM($Q$24:Q43)+P44<=140000/1.98346,P44,IF(140000/1.98346-SUM(Q$24:$Q43)>0,140000/1.98346-SUM(Q$24:$Q43),0)) -> 0 | R44: 41.65 | T44: 60 | U44: 49 | V44: 61
A45: 10 | B45: 1936-10-22 | C45: 51 | D45: 42.5 | E45: 51.85 | F45: 267.5 | G45: 0.75 | H45: 0 | I45: 0 | J45: 0 | K45: 22200 | L45: 0 | M45: 54000 | N45: 0 | O45: 0 | P45: 0 | Q45: =IF(SUM($Q$24:Q44)+P45<=140000/1.98346,P45,IF(140000/1.98346-SUM(Q$24:$Q44)>0,140000/1.98346-SUM(Q$24:$Q44),0)) -> 0 | R45: 42.5 | T45: 60 | U45: 50 | V45: 61
A46: 10 | B46: 1936-10-23 | C46: 54.4 | D46: 42.5 | E46: 52.7 | F46: 267.5 | G46: 0.75 | H46: 0 | I46: 0 | J46: 0 | K46: 21700 | L46: 0 | M46: 54000 | N46: 0 | O46: 0 | P46: 0 | Q46: =IF(SUM($Q$24:Q45)+P46<=140000/1.98346,P46,IF(140000/1.98346-SUM(Q$24:$Q45)>0,140000/1.98346-SUM(Q$24:$Q45),0)) -> 0 | R46: 42.5 | T46: 64 | U46: 50 | V46: 62
A47: 10 | B47: 1936-10-24 | C47: 74.8 | D47: 48.45 | E47: 59.5 | F47: 267.5 | G47: 0.75 | H47: 0 | I47: 0 | J47: 0 | K47: 21100 | L47: 0 | M47: 54000 | N47: 0 | O47: 0 | P47: 0 | Q47: =IF(SUM($Q$24:Q46)+P47<=140000/1.98346,P47,IF(140000/1.98346-SUM(Q$24:$Q46)>0,140000/1.98346-SUM(Q$24:$Q46),0)) -> 0 | R47: 48.45 | T47: 88 | U47: 57 | V47: 70
A48: 10 | B48: 1936-10-25 | C48: 85 | D48: 58.65 | E48: 67.15 | F48: 267.5 | G48: 0.75 | H48: 0 | I48: 0 | J48: 0 | K48: 20700 | L48: 0 | M48: 54000 | N48: 0 | O48: 0 | P48: 0 | Q48: =IF(SUM($Q$24:Q47)+P48<=140000/1.98346,P48,IF(140000/1.98346-SUM(Q$24:$Q47)>0,140000/1.98346-SUM(Q$24:$Q47),0)) -> 0 | R48: 58.65 | T48: 100 | U48: 69 | V48: 79
A49: 10 | B49: 1936-10-26 | C49: 81.6 | D49: 53.55 | E49: 65.45 | F49: 267.5 | G49: 0.75 | H49: 0 | I49: 0 | J49: 0 | K49: 20300 | L49: 0 | M49: 54000 | N49: 0 | O49: 0 | P49: 0 | Q49: =IF(SUM($Q$24:Q48)+P49<=140000/1.98346,P49,IF(140000/1.98346-SUM(Q$24:$Q48)>0,140000/1.98346-SUM(Q$24:$Q48),0)) -> 0 | R49: 53.55 | T49: 96 | U49: 63 | V49: 77
A50: 10 | B50: 1936-10-27 | C50: 78.2 | D50: 49.3 | E50: 62.05 | F50: 267.5 | G50: 0.75 | H50: 0 | I50: 0 | J50: 0 | K50: 19900 | L50: 0 | M50: 54000 | N50: 0 | O50: 0 | P50: 0 | Q50: =IF(SUM($Q$24:Q49)+P50<=140000/1.98346,P50,IF(140000/1.98346-SUM(Q$24:$Q49)>0,140000/1.98346-SUM(Q$24:$Q49),0)) -> 0 | R50: 49.3 | T50: 92 | U50: 58 | V50: 73
A51: 10 | B51: 1936-10-28 | C51: 73.95 | D51: 48.45 | E51: 58.65 | F51: 267.5 | G51: 0.75 | H51: 0 | I51: 0 | J51: 0 | K51: 19800 | L51: 0 | M51: 54000 | N51: 0 | O51: 0 | P51: 0 | Q51: =IF(SUM($Q$24:Q50)+P51<=140000/1.98346,P51,IF(140000/1.98346-SUM(Q$24:$Q50)>0,140000/1.98346-SUM(Q$24:$Q50),0)) -> 0 | R51: 48.45 | T51: 87 | U51: 57 | V51: 69
A52: 10 | B52: 1936-10-29 | C52: 72.25 | D52: 45.9 | E52: 57.8 | F52: 267.5 | G52: 0.75 | H52: 0 | I52: 0 | J52: 0 | K52: 19200 | L52: 0 | M52: 54000 | N52: 0 | O52: 0 | P52: 0 | Q52: =IF(SUM($Q$24:Q51)+P52<=140000/1.98346,P52,IF(140000/1.98346-SUM(Q$24:$Q51)>0,140000/1.98346-SUM(Q$24:$Q51),0)) -> 0 | R52: 45.9 | T52: 85 | U52: 54 | V52: 68
A53: 10 | B53: 1936-10-30 | C53: 72.25 | D53: 51 | E53: 65.45 | F53: 267.5 | G53: 0.75 | H53: 0 | I53: 0 | J53: 0 | K53: 18800 | L53: 0 | M53: 54000 | N53: 0 | O53: 0 | P53: 0 | Q53: =IF(SUM($Q$24:Q52)+P53<=140000/1.98346,P53,IF(140000/1.98346-SUM(Q$24:$Q52)>0,140000/1.98346-SUM(Q$24:$Q52),0)) -> 0 | R53: 51 | T53: 85 | U53: 60 | V53: 77
A54: 10 | B54: 1936-10-31 | C54: 74.8 | D54: 57.8 | E54: 91.8 | F54: 267.5 | G54: 0.75 | H54: 0 | I54: 0 | J54: 0 | K54: 18500 | L54: 0 | M54: 54000 | N54: 0 | O54: 0 | P54: 0 | Q54: =IF(SUM($Q$24:Q53)+P54<=140000/1.98346,P54,IF(140000/1.98346-SUM(Q$24:$Q53)>0,140000/1.98346-SUM(Q$24:$Q53),0)) -> 0 | R54: 57.8 | T54: 88 | U54: 68 | V54: 108
A55: 11 | B55: 1936-11-01 | C55: 79.9 | D55: 54.4 | E55: 83.3 | F55: 152.5 | G55: 0.8 | H55: 0 | I55: 0 | J55: 0 | K55: 18300 | L55: 0 | M55: 54000 | N55: 0 | O55: 0 | P55: 0 | Q55: =IF(SUM($Q$24:Q54)+P55<=140000/1.98346,P55,IF(140000/1.98346-SUM(Q$24:$Q54)>0,140000/1.98346-SUM(Q$24:$Q54),0)) -> 0 | R55: 54.4 | T55: 94 | U55: 64 | V55: 98
A56: 11 | B56: 1936-11-02 | C56: 78.2 | D56: 56.1 | E56: 67.15 | F56: =VLOOKUP(A56,$B$3:$C$14,2,FALSE) -> 152.5 | G56: 0.8 | H56: 0 | I56: 0 | J56: 0 | K56: 18200 | L56: 0 | M56: 54000 | N56: 0 | O56: 0 | P56: 0 | Q56: =IF(SUM($Q$24:Q55)+P56<=140000/1.98346,P56,IF(140000/1.98346-SUM(Q$24:$Q55)>0,140000/1.98346-SUM(Q$24:$Q55),0)) -> 0 | R56: 56.1 | T56: 92 | U56: 66 | V56: 79
A57: 11 | B57: 1936-11-03 | C57: 78.2 | D57: 54.4 | E57: 69.7 | F57: 152.5 | G57: 0.8 | H57: 0 | I57: =IF(D56>$C$21,MIN(D56-$C$21,H56),0) -> 0 | J57: 0 | K57: 17900 | L57: 0 | M57: 54000 | N57: 0 | O57: 0 | P57: 0 | Q57: =IF(SUM($Q$24:Q56)+P57<=140000/1.98346,P57,IF(140000/1.98346-SUM(Q$24:$Q56)>0,140000/1.98346-SUM(Q$24:$Q56),0)) -> 0 | R57: 54.4 | T57: 92 | U57: 64 | V57: 82
A58: 11 | B58: 1936-11-04 | C58: 81.6 | D58: 54.4 | E58: 66.3 | F58: 152.5 | G58: 0.8 | H58: 0 | I58: 0 | J58: 0 | K58: 17600 | L58: 0 | M58: 54000 | N58: 0 | O58: 0 | P58: 0 | Q58: =IF(SUM($Q$24:Q57)+P58<=140000/1.98346,P58,IF(140000/1.98346-SUM(Q$24:$Q57)>0,140000/1.98346-SUM(Q$24:$Q57),0)) -> 0 | R58: 54.4 | T58: 96 | U58: 64 | V58: 78
A59: 11 | B59: 1936-11-05 | C59: 81.6 | D59: 54.4 | E59: 62.05 | F59: 152.5 | G59: 0.8 | H59: 0 | I59: 0 | J59: 0 | K59: 17400 | L59: 0 | M59: 54000 | N59: 0 | O59: 0 | P59: 0 | Q59: =IF(SUM($Q$24:Q58)+P59<=140000/1.98346,P59,IF(140000/1.98346-SUM(Q$24:$Q58)>0,140000/1.98346-SUM(Q$24:$Q58),0)) -> 0 | R59: 54.4 | T59: 96 | U59: 64 | V59: 73
A60: 11 | B60: 1936-11-06 | C60: 83.3 | D60: 53.55 | E60: 61.2 | F60: 152.5 | G60: 0.8 | H60: 0 | I60: 0 | J60: 0 | K60: 17400 | L60: 0 | M60: 54000 | N60: 0 | O60: 0 | P60: 0 | Q60: =IF(SUM($Q$24:Q59)+P60<=140000/1.98346,P60,IF(140000/1.98346-SUM(Q$24:$Q59)>0,140000/1.98346-SUM(Q$24:$Q59),0)) -> 0 | R60: 53.55 | T60: 98 | U60: 63 | V60: 72
A61: 11 | B61: 1936-11-07 | C61: 81.6 | D61: 52.7 | E61: 59.5 | F61: 152.5 | G61: 0.8 | H61: 0 | I61: 0 | J61: 0 | K61: 17400 | L61: 0 | M61: 54000 | N61: 0 | O61: 0 | P61: 0 | Q61: =IF(SUM($Q$24:Q60)+P61<=140000/1.98346,P61,IF(140000/1.98346-SUM(Q$24:$Q60)>0,140000/1.98346-SUM(Q$24:$Q60),0)) -> 0 | R61: 52.7 | T61: 96 | U61: 62 | V61: 70
A62: 11 | B62: 1936-11-08 | C62: 81.6 | D62: 52.7 | E62: 58.65 | F62: 152.5 | G62: 0.8 | H62: 0 | I62: 0 | J62: 0 | K62: 17300 | L62: 0 | M62: 54000 | N62: 0 | O62: 0 | P62: 0 | Q62: =IF(SUM($Q$24:Q61)+P62<=140000/1.98346,P62,IF(140000/1.98346-SUM(Q$24:$Q61)>0,140000/1.98346-SUM(Q$24:$Q61),0)) -> 0 | R62: 52.7 | T62: 96 | U62: 62 | V62: 69
A63: 11 | B63: 1936-11-09 | C63: 79.9 | D63: 51 | E63: 57.8 | F63: 152.5 | G63: 0.8 | H63: 0 | I63: 0 | J63: 0 | K63: 17300 | L63: 0 | M63: 54000 | N63: 0 | O63: 0 | P63: 0 | Q63: =IF(SUM($Q$24:Q62)+P63<=140000/1.98346,P63,IF(140000/1.98346-SUM(Q$24:$Q62)>0,140000/1.98346-SUM(Q$24:$Q62),0)) -> 0 | R63: 51 | T63: 94 | U63: 60 | V63: 68
A64: 11 | B64: 1936-11-10 | C64: 81.6 | D64: 49.3 | E64: 56.95 | F64: 152.5 | G64: 0.8 | H64: 0 | I64: 0 | J64: 0 | K64: 17200 | L64: 0 | M64: 54000 | N64: 0 | O64: 0 | P64: 0 | Q64: =IF(SUM($Q$24:Q63)+P64<=140000/1.98346,P64,IF(140000/1.98346-SUM(Q$24:$Q63)>0,140000/1.98346-SUM(Q$24:$Q63),0)) -> 0 | R64: 49.3 | T64: 96 | U64: 58 | V64: 67
A65: 11 | B65: 1936-11-11 | C65: 81.6 | D65: 51 | E65: 56.95 | F65: 152.5 | G65: 0.8 | H65: 0 | I65: 0 | J65: 0 | K65: 17100 | L65: 0 | M65: 54000 | N65: 0 | O65: 0 | P65: 0 | Q65: =IF(SUM($Q$24:Q64)+P65<=140000/1.98346,P65,IF(140000/1.98346-SUM(Q$24:$Q64)>0,140000/1.98346-SUM(Q$24:$Q64),0)) -> 0 | R65: 51 | T65: 96 | U65: 60 | V65: 67
A66: 11 | B66: 1936-11-12 | C66: 81.6 | D66: 49.3 | E66: 56.95 | F66: 152.5 | G66: 0.8 | H66: 0 | I66: 0 | J66: 0 | K66: 17000 | L66: 0 | M66: 54000 | N66: 0 | O66: 0 | P66: 0 | Q66: =IF(SUM($Q$24:Q65)+P66<=140000/1.98346,P66,IF(140000/1.98346-SUM(Q$24:$Q65)>0,140000/1.98346-SUM(Q$24:$Q65),0)) -> 0 | R66: 49.3 | T66: 96 | U66: 58 | V66: 67
A67: 11 | B67: 1936-11-13 | C67: 81.6 | D67: 49.3 | E67: 55.25 | F67: 152.5 | G67: 0.8 | H67: 0 | I67: 0 | J67: 0 | K67: 16900 | L67: 0 | M67: 54000 | N67: 0 | O67: 0 | P67: 0 | Q67: =IF(SUM($Q$24:Q66)+P67<=140000/1.98346,P67,IF(140000/1.98346-SUM(Q$24:$Q66)>0,140000/1.98346-SUM(Q$24:$Q66),0)) -> 0 | R67: 49.3 | T67: 96 | U67: 58 | V67: 65
A68: 11 | B68: 1936-11-14 | C68: 81.6 | D68: 51 | E68: 55.25 | F68: 152.5 | G68: 0.8 | H68: 0 | I68: 0 | J68: 0 | K68: 16800 | L68: 0 | M68: 54000 | N68: 0 | O68: 0 | P68: 0 | Q68: =IF(SUM($Q$24:Q67)+P68<=140000/1.98346,P68,IF(140000/1.98346-SUM(Q$24:$Q67)>0,140000/1.98346-SUM(Q$24:$Q67),0)) -> 0 | R68: 51 | T68: 96 | U68: 60 | V68: 65
A69: 11 | B69: 1936-11-15 | C69: 81.6 | D69: 52.7 | E69: 55.25 | F69: 152.5 | G69: 0.8 | H69: 0 | I69: 0 | J69: 0 | K69: 16700 | L69: 0 | M69: 54000 | N69: 0 | O69: 0 | P69: 0 | Q69: =IF(SUM($Q$24:Q68)+P69<=140000/1.98346,P69,IF(140000/1.98346-SUM(Q$24:$Q68)>0,140000/1.98346-SUM(Q$24:$Q68),0)) -> 0 | R69: 52.7 | T69: 96 | U69: 62 | V69: 65
A70: 11 | B70: 1936-11-16 | C70: 79.9 | D70: 51 | E70: 55.25 | F70: 152.5 | G70: 0.8 | H70: 0 | I70: 0 | J70: 0 | K70: 16700 | L70: 0 | M70: 54000 | N70: 0 | O70: 0 | P70: 0 | Q70: =IF(SUM($Q$24:Q69)+P70<=140000/1.98346,P70,IF(140000/1.98346-SUM(Q$24:$Q69)>0,140000/1.98346-SUM(Q$24:$Q69),0)) -> 0 | R70: 51 | T70: 94 | U70: 60 | V70: 65
A71: 11 | B71: 1936-11-17 | C71: 78.2 | D71: 51 | E71: 55.25 | F71: 152.5 | G71: 0.8 | H71: 0 | I71: 0 | J71: 0 | K71: 16600 | L71: 0 | M71: 54000 | N71: 0 | O71: 0 | P71: 0 | Q71: =IF(SUM($Q$24:Q70)+P71<=140000/1.98346,P71,IF(140000/1.98346-SUM(Q$24:$Q70)>0,140000/1.98346-SUM(Q$24:$Q70),0)) -> 0 | R71: 51 | T71: 92 | U71: 60 | V71: 65
A72: 11 | B72: 1936-11-18 | C72: 76.5 | D72: 49.3 | E72: 55.25 | F72: 152.5 | G72: 0.8 | H72: 0 | I72: 0 | J72: 0 | K72: 16500 | L72: 0 | M72: 54000 | N72: 0 | O72: 0 | P72: 0 | Q72: =IF(SUM($Q$24:Q71)+P72<=140000/1.98346,P72,IF(140000/1.98346-SUM(Q$24:$Q71)>0,140000/1.98346-SUM(Q$24:$Q71),0)) -> 0 | R72: 49.3 | T72: 90 | U72: 58 | V72: 65
A73: 11 | B73: 1936-11-19 | C73: 76.5 | D73: 51 | E73: 59.5 | F73: 152.5 | G73: 0.8 | H73: 0 | I73: 0 | J73: 0 | K73: 16400 | L73: 0 | M73: 54000 | N73: 0 | O73: 0 | P73: 0 | Q73: =IF(SUM($Q$24:Q72)+P73<=140000/1.98346,P73,IF(140000/1.98346-SUM(Q$24:$Q72)>0,140000/1.98346-SUM(Q$24:$Q72),0)) -> 0 | R73: 51 | T73: 90 | U73: 60 | V73: 70
A74: 11 | B74: 1936-11-20 | C74: 74.8 | D74: 53.55 | E74: 81.6 | F74: 152.5 | G74: 0.8 | H74: 0 | I74: 0 | J74: 0 | K74: 16300 | L74: 0 | M74: 54000 | N74: 0 | O74: 0 | P74: 0 | Q74: =IF(SUM($Q$24:Q73)+P74<=140000/1.98346,P74,IF(140000/1.98346-SUM(Q$24:$Q73)>0,140000/1.98346-SUM(Q$24:$Q73),0)) -> 0 | R74: 53.55 | T74: 88 | U74: 63 | V74: 96
A75: 11 | B75: 1936-11-21 | C75: 81.6 | D75: 56.1 | E75: 109.65 | F75: 152.5 | G75: 0.8 | H75: 0 | I75: 0 | J75: 0 | K75: 16300 | L75: 0 | M75: 54000 | N75: 0 | O75: 0 | P75: 0 | Q75: =IF(SUM($Q$24:Q74)+P75<=140000/1.98346,P75,IF(140000/1.98346-SUM(Q$24:$Q74)>0,140000/1.98346-SUM(Q$24:$Q74),0)) -> 0 | R75: 56.1 | T75: 96 | U75: 66 | V75: 129
A76: 11 | B76: 1936-11-22 | C76: 90.1 | D76: 64.6 | E76: 136.85 | F76: 152.5 | G76: 0.8 | H76: 10.6 | I76: 0 | J76: 0 | K76: 16400 | L76: 0 | M76: 54000 | N76: 0 | O76: 0 | P76: 0 | Q76: =IF(SUM($Q$24:Q75)+P76<=140000/1.98346,P76,IF(140000/1.98346-SUM(Q$24:$Q75)>0,140000/1.98346-SUM(Q$24:$Q75),0)) -> 0 | R76: 64.6 | T76: 106 | U76: 76 | V76: 161
A77: 11 | B77: 1936-11-23 | C77: 99.45 | D77: 68.85 | E77: 140.25 | F77: 152.5 | G77: 0.8 | H77: 39.16 | I77: 0 | J77: 0 | K77: 16400 | L77: 0 | M77: 54000 | N77: 0 | O77: 0 | P77: 0 | Q77: =IF(SUM($Q$24:Q76)+P77<=140000/1.98346,P77,IF(140000/1.98346-SUM(Q$24:$Q76)>0,140000/1.98346-SUM(Q$24:$Q76),0)) -> 0 | R77: 68.85 | T77: 117 | U77: 81 | V77: 165
A78: 11 | B78: 1936-11-24 | C78: 114.75 | D78: 74.8 | E78: 164.05 | F78: 152.5 | G78: 0.8 | H78: 45.28 | I78: 0 | J78: 0 | K78: 16700 | L78: 0 | M78: 54000 | N78: 0 | O78: 0 | P78: 0 | Q78: =IF(SUM($Q$24:Q77)+P78<=140000/1.98346,P78,IF(140000/1.98346-SUM(Q$24:$Q77)>0,140000/1.98346-SUM(Q$24:$Q77),0)) -> 0 | R78: 74.8 | T78: 135 | U78: 88 | V78: 193
A79: 11 | B79: 1936-11-25 | C79: 128.35 | D79: 78.2 | E79: 105.4 | F79: 152.5 | G79: 0.8 | H79: 69.08 | I79: 0 | J79: 0 | K79: 16800 | L79: 0 | M79: 54000 | N79: 0 | O79: 0 | P79: 0 | Q79: =IF(SUM($Q$24:Q78)+P79<=140000/1.98346,P79,IF(140000/1.98346-SUM(Q$24:$Q78)>0,140000/1.98346-SUM(Q$24:$Q78),0)) -> 0 | R79: 78.2 | T79: 151 | U79: 92 | V79: 124
A80: 11 | B80: 1936-11-26 | C80: 125.8 | D80: 78.2 | E80: 90.1 | F80: 152.5 | G80: 0.8 | H80: 24.88 | I80: 0 | J80: 0 | K80: 17000 | L80: 0 | M80: 54000 | N80: 0 | O80: 0 | P80: 0 | Q80: =IF(SUM($Q$24:Q79)+P80<=140000/1.98346,P80,IF(140000/1.98346-SUM(Q$24:$Q79)>0,140000/1.98346-SUM(Q$24:$Q79),0)) -> 0 | R80: 78.2 | T80: 148 | U80: 92 | V80: 106
A81: 11 | B81: 1936-11-27 | C81: 121.55 | D81: 73.1 | E81: 83.3 | F81: 152.5 | G81: 0.8 | H81: 12.64 | I81: 0 | J81: 0 | K81: 17300 | L81: 0 | M81: 54000 | N81: 0 | O81: 0 | P81: 0 | Q81: =IF(SUM($Q$24:Q80)+P81<=140000/1.98346,P81,IF(140000/1.98346-SUM(Q$24:$Q80)>0,140000/1.98346-SUM(Q$24:$Q80),0)) -> 0 | R81: 73.1 | T81: 143 | U81: 86 | V81: 98
A82: 11 | B82: 1936-11-28 | C82: 117.3 | D82: 76.5 | E82: 81.6 | F82: 152.5 | G82: 0.8 | H82: 3.12 | I82: 0 | J82: 0 | K82: 17700 | L82: 0 | M82: 54000 | N82: 0 | O82: 0 | P82: 0 | Q82: =IF(SUM($Q$24:Q81)+P82<=140000/1.98346,P82,IF(140000/1.98346-SUM(Q$24:$Q81)>0,140000/1.98346-SUM(Q$24:$Q81),0)) -> 0 | R82: 76.5 | T82: 138 | U82: 90 | V82: 96
A83: 11 | B83: 1936-11-29 | C83: 119 | D83: 78.2 | E83: 119.85 | F83: 152.5 | G83: 0.8 | H83: 4.48 | I83: 0 | J83: 0 | K83: 18000 | L83: 0 | M83: 54000 | N83: 0 | O83: 0 | P83: 0 | Q83: =IF(SUM($Q$24:Q82)+P83<=140000/1.98346,P83,IF(140000/1.98346-SUM(Q$24:$Q82)>0,140000/1.98346-SUM(Q$24:$Q82),0)) -> 0 | R83: 78.2 | T83: 140 | U83: 92 | V83: 141
A84: 11 | B84: 1936-11-30 | C84: 124.1 | D84: 76.5 | E84: 96.9 | F84: 152.5 | G84: 0.8 | H84: 36.44 | I84: 0 | J84: 0 | K84: 18200 | L84: 0 | M84: 54000 | N84: 0 | O84: 0 | P84: 0 | Q84: =IF(SUM($Q$24:Q83)+P84<=140000/1.98346,P84,IF(140000/1.98346-SUM(Q$24:$Q83)>0,140000/1.98346-SUM(Q$24:$Q83),0)) -> 0 | R84: 76.5 | T84: 146 | U84: 90 | V84: 114
A85: 12 | B85: 1936-12-01 | C85: 117.3 | D85: 76.5 | E85: 86.7 | F85: 75.5 | G85: 0.8 | H85: 78.32 | I85: 0 | J85: 0 | K85: 18400 | L85: 0 | M85: 54000 | N85: 0 | O85: 0 | P85: 0 | Q85: =IF(SUM($Q$24:Q84)+P85<=140000/1.98346,P85,IF(140000/1.98346-SUM(Q$24:$Q84)>0,140000/1.98346-SUM(Q$24:$Q84),0)) -> 0 | R85: 76.5 | T85: 138 | U85: 90 | V85: 102
A86: 12 | B86: 1936-12-02 | C86: 113.05 | D86: 73.1 | E86: 80.75 | F86: 75.5 | G86: 0.8 | H86: 70.16 | I86: 0 | J86: 0 | K86: 18800 | L86: 0 | M86: 54000 | N86: 0 | O86: 0 | P86: 0 | Q86: =IF(SUM($Q$24:Q85)+P86<=140000/1.98346,P86,IF(140000/1.98346-SUM(Q$24:$Q85)>0,140000/1.98346-SUM(Q$24:$Q85),0)) -> 0 | R86: 73.1 | T86: 133 | U86: 86 | V86: 95
A87: 12 | B87: 1936-12-03 | C87: 102.85 | D87: 71.4 | E87: 76.5 | F87: 75.5 | G87: 0.8 | H87: 62.68 | I87: 0 | J87: 0 | K87: 19000 | L87: 0 | M87: 54000 | N87: 0 | O87: 0 | P87: 0 | Q87: =IF(SUM($Q$24:Q86)+P87<=140000/1.98346,P87,IF(140000/1.98346-SUM(Q$24:$Q86)>0,140000/1.98346-SUM(Q$24:$Q86),0)) -> 0 | R87: 71.4 | T87: 121 | U87: 84 | V87: 90
A88: 12 | B88: 1936-12-04 | C88: 96.9 | D88: =IF(U88<$I$17,U88*(1+$H$18),U88*(1+$I$18)) -> 70.55 | E88: 72.25 | F88: =VLOOKUP(A88,$B$3:$C$14,2,FALSE) -> 75.5 | G88: =VLOOKUP(A88,$B$3:$D$14,3,FALSE) -> 0.8 | H88: 57.92 | I88: 0 | J88: =IF(C88>=VLOOKUP(A88,$K$2:$M$13,3,FALSE),I88,0) -> 0 | K88: 19300 | L88: =IF(K88>30000,J88,0) -> 0 | M88: 54000 | N88: 0 | O88: 0 | P88: =IF(O88<=64000,N88,IF(64000-O87-1.98346*N88>=0,64000-1.98346*N88,0)) -> 0 | Q88: =IF(SUM($Q$24:Q87)+P88<=140000/1.98346,P88,IF(140000/1.98346-SUM(Q$24:$Q87)>0,140000/1.98346-SUM(Q$24:$Q87),0)) -> 0 | R88: =D88-Q88 -> 70.55 | T88: 114 | U88: 83 | V88: 85
A89: 12 | B89: 1936-12-05 | C89: =IF(T89<$I$17,T89*(1+$H$18),T89*(1+$I$18)) -> 96.9 | D89: 73.1 | E89: =IF(V89<$I$17,V89*(1+$H$18),V89*(1+$I$18)) -> 72.25 | F89: 75.5 | G89: 0.8 | H89: =IF((D88+E88-F89)*G89>$C$20,$C$20,IF(D88+E88-F89>0,(D88+E88-F89)*G89,0)) -> 53.84 | I89: =IF(D88>$C$21,MIN(D88-$C$21,H88),0) -> 0 | J89: 0 | K89: 19500 | L89: 0 | M89: =IF(MONTH(B89) =12,IF(DAY(B89)=31,IF(M88-1.98*L89+18000<70000,M88-1.98*L89+18000,70000),IF(M88-1.98*L89<0,0,M88-1.98*L89)),IF(M88-1.98*L89<0,0,M88-1.98*L89)) -> 54000 | N89: =IF(MIN(M89/1.98,L89)+O88/1.98<=64000/1.98,MIN(M89/1.98,L89),(64000-O88)/1.98) -> 0 | O89: =IF(MONTH(B89)=1,IF(DAY(B89)=1,1.98346*N89,1.98346*N89+O88),1.98346*N89+O88) -> 0 | P89: 0 | Q89: =IF(SUM($Q$24:Q88)+P89<=140000/1.98346,P89,IF(140000/1.98346-SUM(Q$24:$Q88)>0,140000/1.98346-SUM(Q$24:$Q88),0)) -> 0 | R89: 73.1 | T89: 114 | U89: 86 | V89: 85
A90: 12 | B90: 1936-12-06 | C90: 93.5 | D90: 71.4 | E90: 73.1 | F90: 75.5 | G90: 0.8 | H90: 55.88 | I90: 0 | J90: 0 | K90: 19700 | L90: 0 | M90: 54000 | N90: 0 | O90: 0 | P90: 0 | Q90: =IF(SUM($Q$24:Q89)+P90<=140000/1.98346,P90,IF(140000/1.98346-SUM(Q$24:$Q89)>0,140000/1.98346-SUM(Q$24:$Q89),0)) -> 0 | R90: 71.4 | T90: 110 | U90: 84 | V90: 86
A91: 12 | B91: 1936-12-07 | C91: 91.8 | D91: 67.15 | E91: 68.85 | F91: 75.5 | G91: 0.8 | H91: 55.2 | I91: 0 | J91: 0 | K91: 20000 | L91: 0 | M91: 54000 | N91: 0 | O91: 0 | P91: 0 | Q91: =IF(SUM($Q$24:Q90)+P91<=140000/1.98346,P91,IF(140000/1.98346-SUM(Q$24:$Q90)>0,140000/1.98346-SUM(Q$24:$Q90),0)) -> 0 | R91: 67.15 | T91: 108 | U91: 79 | V91: 81
A92: 12 | B92: 1936-12-08 | C92: 88.4 | D92: 60.35 | E92: 64.6 | F92: 75.5 | G92: 0.8 | H92: 48.4 | I92: 0 | J92: 0 | K92: 20200 | L92: 0 | M92: 54000 | N92: 0 | O92: 0 | P92: 0 | Q92: =IF(SUM($Q$24:Q91)+P92<=140000/1.98346,P92,IF(140000/1.98346-SUM(Q$24:$Q91)>0,140000/1.98346-SUM(Q$24:$Q91),0)) -> 0 | R92: 60.35 | T92: 104 | U92: 71 | V92: 76
A93: 12 | B93: 1936-12-09 | C93: 86.7 | D93: 60.35 | E93: 61.2 | F93: 75.5 | G93: 0.8 | H93: 39.56 | I93: 0 | J93: 0 | K93: 20300 | L93: 0 | M93: 54000 | N93: 0 | O93: 0 | P93: 0 | Q93: =IF(SUM($Q$24:Q92)+P93<=140000/1.98346,P93,IF(140000/1.98346-SUM(Q$24:$Q92)>0,140000/1.98346-SUM(Q$24:$Q92),0)) -> 0 | R93: 60.35 | T93: 102 | U93: 71 | V93: 72
A94: 12 | B94: 1936-12-10 | C94: 85 | D94: 58.65 | E94: 64.6 | F94: 75.5 | G94: 0.8 | H94: 36.84 | I94: 0 | J94: 0 | K94: 20200 | L94: 0 | M94: 54000 | N94: 0 | O94: 0 | P94: 0 | Q94: =IF(SUM($Q$24:Q93)+P94<=140000/1.98346,P94,IF(140000/1.98346-SUM(Q$24:$Q93)>0,140000/1.98346-SUM(Q$24:$Q93),0)) -> 0 | R94: 58.65 | T94: 100 | U94: 69 | V94: 76
A95: 12 | B95: 1936-12-11 | C95: 85 | D95: 57.8 | E95: 62.9 | F95: 75.5 | G95: 0.8 | H95: 38.2 | I95: 0 | J95: 0 | K95: 20100 | L95: 0 | M95: 54000 | N95: 0 | O95: 0 | P95: 0 | Q95: =IF(SUM($Q$24:Q94)+P95<=140000/1.98346,P95,IF(140000/1.98346-SUM(Q$24:$Q94)>0,140000/1.98346-SUM(Q$24:$Q94),0)) -> 0 | R95: 57.8 | T95: 100 | U95: 68 | V95: 74
A96: 12 | B96: 1936-12-12 | C96: 85 | D96: 54.4 | E96: 61.2 | F96: 75.5 | G96: 0.8 | H96: 36.16 | I96: 0 | J96: 0 | K96: 20300 | L96: 0 | M96: 54000 | N96: 0 | O96: 0 | P96: 0 | Q96: =IF(SUM($Q$24:Q95)+P96<=140000/1.98346,P96,IF(140000/1.98346-SUM(Q$24:$Q95)>0,140000/1.98346-SUM(Q$24:$Q95),0)) -> 0 | R96: 54.4 | T96: 100 | U96: 64 | V96: 72
A97: 12 | B97: 1936-12-13 | C97: 83.3 | D97: 52.7 | E97: 61.2 | F97: 75.5 | G97: 0.8 | H97: 32.08 | I97: 0 | J97: 0 | K97: 20200 | L97: 0 | M97: 54000 | N97: 0 | O97: 0 | P97: 0 | Q97: =IF(SUM($Q$24:Q96)+P97<=140000/1.98346,P97,IF(140000/1.98346-SUM(Q$24:$Q96)>0,140000/1.98346-SUM(Q$24:$Q96),0)) -> 0 | R97: 52.7 | T97: 98 | U97: 62 | V97: 72
A98: 12 | B98: 1936-12-14 | C98: 81.6 | D98: 54.4 | E98: 58.65 | F98: 75.5 | G98: 0.8 | H98: 30.72 | I98: 0 | J98: 0 | K98: 20200 | L98: 0 | M98: 54000 | N98: 0 | O98: 0 | P98: 0 | Q98: =IF(SUM($Q$24:Q97)+P98<=140000/1.98346,P98,IF(140000/1.98346-SUM(Q$24:$Q97)>0,140000/1.98346-SUM(Q$24:$Q97),0)) -> 0 | R98: 54.4 | T98: 96 | U98: 64 | V98: 69
A99: 12 | B99: 1936-12-15 | C99: 81.6 | D99: 57.8 | E99: 59.5 | F99: 75.5 | G99: 0.8 | H99: 30.04 | I99: 0 | J99: 0 | K99: 20400 | L99: 0 | M99: 54000 | N99: 0 | O99: 0 | P99: 0 | Q99: =IF(SUM($Q$24:Q98)+P99<=140000/1.98346,P99,IF(140000/1.98346-SUM(Q$24:$Q98)>0,140000/1.98346-SUM(Q$24:$Q98),0)) -> 0 | R99: 57.8 | T99: 96 | U99: 68 | V99: 70
A100: 12 | B100: 1936-12-16 | C100: 83.3 | D100: 60.35 | E100: 59.5 | F100: 75.5 | G100: 0.8 | H100: 33.44 | I100: 0 | J100: 0 | K100: 20500 | L100: 0 | M100: 54000 | N100: 0 | O100: 0 | P100: 0 | Q100: =IF(SUM($Q$24:Q99)+P100<=140000/1.98346,P100,IF(140000/1.98346-SUM(Q$24:$Q99)>0,140000/1.98346-SUM(Q$24:$Q99),0)) -> 0 | R100: 60.35 | T100: 98 | U100: 71 | V100: 70
A101: 12 | B101: 1936-12-17 | C101: 85 | D101: 62.9 | E101: 61.2 | F101: 75.5 | G101: 0.8 | H101: 35.48 | I101: 0 | J101: 0 | K101: 20700 | L101: 0 | M101: 54000 | N101: 0 | O101: 0 | P101: 0 | Q101: =IF(SUM($Q$24:Q100)+P101<=140000/1.98346,P101,IF(140000/1.98346-SUM(Q$24:$Q100)>0,140000/1.98346-SUM(Q$24:$Q100),0)) -> 0 | R101: 62.9 | T101: 100 | U101: 74 | V101: 72
A102: 12 | B102: 1936-12-18 | C102: 85 | D102: 61.2 | E102: 61.2 | F102: 75.5 | G102: 0.8 | H102: 38.88 | I102: 0 | J102: 0 | K102: 20900 | L102: 0 | M102: 54000 | N102: 0 | O102: 0 | P102: 0 | Q102: =IF(SUM($Q$24:Q101)+P102<=140000/1.98346,P102,IF(140000/1.98346-SUM(Q$24:$Q101)>0,140000/1.98346-SUM(Q$24:$Q101),0)) -> 0 | R102: 61.2 | T102: 100 | U102: 72 | V102: 72
A103: 12 | B103: 1936-12-19 | C103: 83.3 | D103: 58.65 | E103: 59.5 | F103: 75.5 | G103: 0.8 | H103: 37.52 | I103: 0 | J103: 0 | K103: 21100 | L103: 0 | M103: 54000 | N103: 0 | O103: 0 | P103: 0 | Q103: =IF(SUM($Q$24:Q102)+P103<=140000/1.98346,P103,IF(140000/1.98346-SUM(Q$24:$Q102)>0,140000/1.98346-SUM(Q$24:$Q102),0)) -> 0 | R103: 58.65 | T103: 98 | U103: 69 | V103: 70
A104: 12 | B104: 1936-12-20 | C104: 81.6 | D104: 58.65 | E104: 59.5 | F104: 75.5 | G104: 0.8 | H104: 34.12 | I104: 0 | J104: 0 | K104: 21200 | L104: 0 | M104: 54000 | N104: 0 | O104: 0 | P104: 0 | Q104: =IF(SUM($Q$24:Q103)+P104<=140000/1.98346,P104,IF(140000/1.98346-SUM(Q$24:$Q103)>0,140000/1.98346-SUM(Q$24:$Q103),0)) -> 0 | R104: 58.65 | T104: 96 | U104: 69 | V104: 70
A105: 12 | B105: 1936-12-21 | C105: 81.6 | D105: 58.65 | E105: 59.5 | F105: 75.5 | G105: 0.8 | H105: 34.12 | I105: 0 | J105: 0 | K105: 21400 | L105: 0 | M105: 54000 | N105: 0 | O105: 0 | P105: 0 | Q105: =IF(SUM($Q$24:Q104)+P105<=140000/1.98346,P105,IF(140000/1.98346-SUM(Q$24:$Q104)>0,140000/1.98346-SUM(Q$24:$Q104),0)) -> 0 | R105: 58.65 | T105: 96 | U105: 69 | V105: 70
A106: 12 | B106: 1936-12-22 | C106: 81.6 | D106: 58.65 | E106: 61.2 | F106: 75.5 | G106: 0.8 | H106: 34.12 | I106: 0 | J106: 0 | K106: 21500 | L106: 0 | M106: 54000 | N106: 0 | O106: 0 | P106: 0 | Q106: =IF(SUM($Q$24:Q105)+P106<=140000/1.98346,P106,IF(140000/1.98346-SUM(Q$24:$Q105)>0,140000/1.98346-SUM(Q$24:$Q105),0)) -> 0 | R106: 58.65 | T106: 96 | U106: 69 | V106: 72
A107: 12 | B107: 1936-12-23 | C107: 83.3 | D107: 58.65 | E107: 61.2 | F107: 75.5 | G107: 0.8 | H107: 35.48 | I107: 0 | J107: 0 | K107: 21700 | L107: 0 | M107: 54000 | N107: 0 | O107: 0 | P107: 0 | Q107: =IF(SUM($Q$24:Q106)+P107<=140000/1.98346,P107,IF(140000/1.98346-SUM(Q$24:$Q106)>0,140000/1.98346-SUM(Q$24:$Q106),0)) -> 0 | R107: 58.65 | T107: 98 | U107: 69 | V107: 72
A108: 12 | B108: 1936-12-24 | C108: 83.3 | D108: 58.65 | E108: 61.2 | F108: 75.5 | G108: 0.8 | H108: 35.48 | I108: 0 | J108: 0 | K108: 21800 | L108: 0 | M108: 54000 | N108: 0 | O108: 0 | P108: 0 | Q108: =IF(SUM($Q$24:Q107)+P108<=140000/1.98346,P108,IF(140000/1.98346-SUM(Q$24:$Q107)>0,140000/1.98346-SUM(Q$24:$Q107),0)) -> 0 | R108: 58.65 | T108: 98 | U108: 69 | V108: 72
A109: 12 | B109: 1936-12-25 | C109: 85 | D109: 61.2 | E109: 62.9 | F109: 75.5 | G109: 0.8 | H109: 35.48 | I109: 0 | J109: 0 | K109: 22000 | L109: 0 | M109: 54000 | N109: 0 | O109: 0 | P109: 0 | Q109: =IF(SUM($Q$24:Q108)+P109<=140000/1.98346,P109,IF(140000/1.98346-SUM(Q$24:$Q108)>0,140000/1.98346-SUM(Q$24:$Q108),0)) -> 0 | R109: 61.2 | T109: 100 | U109: 72 | V109: 74
A110: 12 | B110: 1936-12-26 | C110: 86.7 | D110: 67.15 | E110: 72.25 | F110: 75.5 | G110: 0.8 | H110: 38.88 | I110: 0 | J110: 0 | K110: 22100 | L110: 0 | M110: 54000 | N110: 0 | O110: 0 | P110: 0 | Q110: =IF(SUM($Q$24:Q109)+P110<=140000/1.98346,P110,IF(140000/1.98346-SUM(Q$24:$Q109)>0,140000/1.98346-SUM(Q$24:$Q109),0)) -> 0 | R110: 67.15 | T110: 102 | U110: 79 | V110: 85
A111: 12 | B111: 1936-12-27 | C111: 88.4 | D111: 66.3 | E111: 84.15 | F111: 75.5 | G111: 0.8 | H111: 51.12 | I111: 0 | J111: 0 | K111: 22300 | L111: 0 | M111: 54000 | N111: 0 | O111: 0 | P111: 0 | Q111: =IF(SUM($Q$24:Q110)+P111<=140000/1.98346,P111,IF(140000/1.98346-SUM(Q$24:$Q110)>0,140000/1.98346-SUM(Q$24:$Q110),0)) -> 0 | R111: 66.3 | T111: 104 | U111: 78 | V111: 99
A112: 12 | B112: 1936-12-28 | C112: 86.7 | D112: 61.2 | E112: 75.65 | F112: 75.5 | G112: 0.8 | H112: 59.96 | I112: 0 | J112: 0 | K112: 22500 | L112: 0 | M112: 54000 | N112: 0 | O112: 0 | P112: 0 | Q112: =IF(SUM($Q$24:Q111)+P112<=140000/1.98346,P112,IF(140000/1.98346-SUM(Q$24:$Q111)>0,140000/1.98346-SUM(Q$24:$Q111),0)) -> 0 | R112: 61.2 | T112: 102 | U112: 72 | V112: 89
A113: 12 | B113: 1936-12-29 | C113: 88.4 | D113: 64.6 | E113: 73.1 | F113: 75.5 | G113: 0.8 | H113: 49.08 | I113: 0 | J113: 0 | K113: 22500 | L113: 0 | M113: 54000 | N113: 0 | O113: 0 | P113: 0 | Q113: =IF(SUM($Q$24:Q112)+P113<=140000/1.98346,P113,IF(140000/1.98346-SUM(Q$24:$Q112)>0,140000/1.98346-SUM(Q$24:$Q112),0)) -> 0 | R113: 64.6 | T113: 104 | U113: 76 | V113: 86
A114: 12 | B114: 1936-12-30 | C114: 91.8 | D114: 73.1 | E114: 83.3 | F114: 75.5 | G114: 0.8 | H114: 49.76 | I114: 0 | J114: 0 | K114: 22800 | L114: 0 | M114: 54000 | N114: 0 | O114: 0 | P114: 0 | Q114: =IF(SUM($Q$24:Q113)+P114<=140000/1.98346,P114,IF(140000/1.98346-SUM(Q$24:$Q113)>0,140000/1.98346-SUM(Q$24:$Q113),0)) -> 0 | R114: 73.1 | T114: 108 | U114: 86 | V114: 98
A115: 12 | B115: 1936-12-31 | C115: 93.5 | D115: 61.2 | E115: 76.5 | F115: 75.5 | G115: 0.8 | H115: 64.72 | I115: 0 | J115: 0 | K115: 23300 | L115: 0 | M115: 70000 | N115: 0 | O115: 0 | P115: 0 | Q115: =IF(SUM($Q$24:Q114)+P115<=140000/1.98346,P115,IF(140000/1.98346-SUM(Q$24:$Q114)>0,140000/1.98346-SUM(Q$24:$Q114),0)) -> 0 | R115: 61.2 | T115: 110 | U115: 72 | V115: 90
A116: 1 | B116: 1937-01-01 | C116: 91.8 | D116: 61.2 | E116: 79.05 | F116: 82.5 | G116: 0.8 | H116: 44.16 | I116: 0 | J116: 0 | K116: 23800 | L116: 0 | M116: 70000 | N116: 0 | O116: 0 | P116: 0 | Q116: =IF(SUM($Q$24:Q115)+P116<=140000/1.98346,P116,IF(140000/1.98346-SUM(Q$24:$Q115)>0,140000/1.98346-SUM(Q$24:$Q115),0)) -> 0 | R116: 61.2 | T116: 108 | U116: 72 | V116: 93
A117: 1 | B117: 1937-01-02 | C117: 90.1 | D117: 61.2 | E117: 86.7 | F117: 82.5 | G117: 0.8 | H117: 46.2 | I117: 0 | J117: 0 | K117: 24000 | L117: 0 | M117: 70000 | N117: 0 | O117: 0 | P117: 0 | Q117: =IF(SUM($Q$24:Q116)+P117<=140000/1.98346,P117,IF(140000/1.98346-SUM(Q$24:$Q116)>0,140000/1.98346-SUM(Q$24:$Q116),0)) -> 0 | R117: 61.2 | T117: 106 | U117: 72 | V117: 102
A118: 1 | B118: 1937-01-03 | C118: 91.8 | D118: 54.4 | E118: 79.05 | F118: 82.5 | G118: 0.8 | H118: 52.32 | I118: 0 | J118: 0 | K118: 24600 | L118: 0 | M118: 70000 | N118: 0 | O118: 0 | P118: 0 | Q118: =IF(SUM($Q$24:Q117)+P118<=140000/1.98346,P118,IF(140000/1.98346-SUM(Q$24:$Q117)>0,140000/1.98346-SUM(Q$24:$Q117),0)) -> 0 | R118: 54.4 | T118: 108 | U118: 64 | V118: 93
A119: 1 | B119: 1937-01-04 | C119: 91.8 | D119: 51 | E119: 70.55 | F119: 82.5 | G119: 0.8 | H119: 40.76 | I119: 0 | J119: 0 | K119: 25300 | L119: 0 | M119: 70000 | N119: 0 | O119: 0 | P119: 0 | Q119: =IF(SUM($Q$24:Q118)+P119<=140000/1.98346,P119,IF(140000/1.98346-SUM(Q$24:$Q118)>0,140000/1.98346-SUM(Q$24:$Q118),0)) -> 0 | R119: 51 | T119: 108 | U119: 60 | V119: 83
A120: 1 | B120: 1937-01-05 | C120: 88.4 | D120: 48.45 | E120: 66.3 | F120: =VLOOKUP(A120,$B$3:$C$14,2,FALSE) -> 82.5 | G120: 0.8 | H120: 31.24 | I120: 0 | J120: 0 | K120: 25800 | L120: 0 | M120: 70000 | N120: 0 | O120: 0 | P120: 0 | Q120: =IF(SUM($Q$24:Q119)+P120<=140000/1.98346,P120,IF(140000/1.98346-SUM(Q$24:$Q119)>0,140000/1.98346-SUM(Q$24:$Q119),0)) -> 0 | R120: 48.45 | T120: 104 | U120: 57 | V120: 78
A121: 1 | B121: 1937-01-06 | C121: 86.7 | D121: 49.3 | E121: 66.3 | F121: 82.5 | G121: 0.8 | H121: 25.8 | I121: =IF(D120>$C$21,MIN(D120-$C$21,H120),0) -> 0 | J121: 0 | K121: 26300 | L121: 0 | M121: 70000 | N121: 0 | O121: 0 | P121: 0 | Q121: =IF(SUM($Q$24:Q120)+P121<=140000/1.98346,P121,IF(140000/1.98346-SUM(Q$24:$Q120)>0,140000/1.98346-SUM(Q$24:$Q120),0)) -> 0 | R121: 49.3 | T121: 102 | U121: 58 | V121: 78
A122: 1 | B122: 1937-01-07 | C122: 93.5 | D122: 56.1 | E122: 72.25 | F122: 82.5 | G122: 0.8 | H122: 26.48 | I122: 0 | J122: 0 | K122: 27000 | L122: 0 | M122: 70000 | N122: 0 | O122: 0 | P122: 0 | Q122: =IF(SUM($Q$24:Q121)+P122<=140000/1.98346,P122,IF(140000/1.98346-SUM(Q$24:$Q121)>0,140000/1.98346-SUM(Q$24:$Q121),0)) -> 0 | R122: 56.1 | T122: 110 | U122: 66 | V122: 85
A123: 1 | B123: 1937-01-08 | C123: 96.9 | D123: 60.35 | E123: 76.5 | F123: 82.5 | G123: 0.8 | H123: 36.68 | I123: 0 | J123: 0 | K123: 27700 | L123: 0 | M123: 70000 | N123: 0 | O123: 0 | P123: 0 | Q123: =IF(SUM($Q$24:Q122)+P123<=140000/1.98346,P123,IF(140000/1.98346-SUM(Q$24:$Q122)>0,140000/1.98346-SUM(Q$24:$Q122),0)) -> 0 | R123: 60.35 | T123: 114 | U123: 71 | V123: 90
A124: 1 | B124: 1937-01-09 | C124: 99.45 | D124: 58.65 | E124: 74.8 | F124: 82.5 | G124: 0.8 | H124: 43.48 | I124: 0 | J124: 0 | K124: 28400 | L124: 0 | M124: 70000 | N124: 0 | O124: 0 | P124: 0 | Q124: =IF(SUM($Q$24:Q123)+P124<=140000/1.98346,P124,IF(140000/1.98346-SUM(Q$24:$Q123)>0,140000/1.98346-SUM(Q$24:$Q123),0)) -> 0 | R124: 58.65 | T124: 117 | U124: 69 | V124: 88
A125: 1 | B125: 1937-01-10 | C125: 96.9 | D125: 56.1 | E125: 75.65 | F125: 82.5 | G125: 0.8 | H125: 40.76 | I125: 0 | J125: 0 | K125: 29000 | L125: 0 | M125: 70000 | N125: 0 | O125: 0 | P125: 0 | Q125: =IF(SUM($Q$24:Q124)+P125<=140000/1.98346,P125,IF(140000/1.98346-SUM(Q$24:$Q124)>0,140000/1.98346-SUM(Q$24:$Q124),0)) -> 0 | R125: 56.1 | T125: 114 | U125: 66 | V125: 89
A126: 1 | B126: 1937-01-11 | C126: 96.9 | D126: 52.7 | E126: 66.3 | F126: 82.5 | G126: 0.8 | H126: 39.4 | I126: 0 | J126: 0 | K126: 29600 | L126: 0 | M126: 70000 | N126: 0 | O126: 0 | P126: 0 | Q126: =IF(SUM($Q$24:Q125)+P126<=140000/1.98346,P126,IF(140000/1.98346-SUM(Q$24:$Q125)>0,140000/1.98346-SUM(Q$24:$Q125),0)) -> 0 | R126: 52.7 | T126: 114 | U126: 62 | V126: 78
A127: 1 | B127: 1937-01-12 | C127: 95.2 | D127: 54.4 | E127: 72.25 | F127: 82.5 | G127: 0.8 | H127: 29.2 | I127: 0 | J127: 0 | K127: 30200 | L127: 0 | M127: 70000 | N127: 0 | O127: 0 | P127: 0 | Q127: =IF(SUM($Q$24:Q126)+P127<=140000/1.98346,P127,IF(140000/1.98346-SUM(Q$24:$Q126)>0,140000/1.98346-SUM(Q$24:$Q126),0)) -> 0 | R127: 54.4 | T127: 112 | U127: 64 | V127: 85
A128: 1 | B128: 1937-01-13 | C128: 96.9 | D128: 78.2 | E128: 187.85 | F128: 82.5 | G128: 0.8 | H128: 35.32 | I128: 0 | J128: 0 | K128: 30900 | L128: 0 | M128: 70000 | N128: 0 | O128: 0 | P128: 0 | Q128: =IF(SUM($Q$24:Q127)+P128<=140000/1.98346,P128,IF(140000/1.98346-SUM(Q$24:$Q127)>0,140000/1.98346-SUM(Q$24:$Q127),0)) -> 0 | R128: 78.2 | T128: 114 | U128: 92 | V128: 221
A129: 1 | B129: 1937-01-14 | C129: 108.8 | D129: 85.85 | E129: 211.65 | F129: 82.5 | G129: 0.8 | H129: 146.84 | I129: 0 | J129: 0 | K129: 32400 | L129: 0 | M129: 70000 | N129: 0 | O129: 0 | P129: 0 | Q129: =IF(SUM($Q$24:Q128)+P129<=140000/1.98346,P129,IF(140000/1.98346-SUM(Q$24:$Q128)>0,140000/1.98346-SUM(Q$24:$Q128),0)) -> 0 | R129: 85.85 | T129: 128 | U129: 101 | V129: 249
A130: 1 | B130: 1937-01-15 | C130: 119 | D130: 74.8 | E130: 129.2 | F130: 82.5 | G130: 0.8 | H130: 172 | I130: 0 | J130: 0 | K130: 33800 | L130: 0 | M130: 70000 | N130: 0 | O130: 0 | P130: 0 | Q130: =IF(SUM($Q$24:Q129)+P130<=140000/1.98346,P130,IF(140000/1.98346-SUM(Q$24:$Q129)>0,140000/1.98346-SUM(Q$24:$Q129),0)) -> 0 | R130: 74.8 | T130: 140 | U130: 88 | V130: 152
A131: 1 | B131: 1937-01-16 | C131: 117.3 | D131: 68.85 | E131: 106.25 | F131: 82.5 | G131: 0.8 | H131: 97.2 | I131: 0 | J131: 0 | K131: 35200 | L131: 0 | M131: 70000 | N131: 0 | O131: 0 | P131: 0 | Q131: =IF(SUM($Q$24:Q130)+P131<=140000/1.98346,P131,IF(140000/1.98346-SUM(Q$24:$Q130)>0,140000/1.98346-SUM(Q$24:$Q130),0)) -> 0 | R131: 68.85 | T131: 138 | U131: 81 | V131: 125
A132: 1 | B132: 1937-01-17 | C132: 117.3 | D132: 68.85 | E132: 98.6 | F132: 82.5 | G132: 0.8 | H132: 74.08 | I132: 0 | J132: 0 | K132: 36000 | L132: 0 | M132: 70000 | N132: 0 | O132: 0 | P132: 0 | Q132: =IF(SUM($Q$24:Q131)+P132<=140000/1.98346,P132,IF(140000/1.98346-SUM(Q$24:$Q131)>0,140000/1.98346-SUM(Q$24:$Q131),0)) -> 0 | R132: 68.85 | T132: 138 | U132: 81 | V132: 116
A133: 1 | B133: 1937-01-18 | C133: 119 | D133: 68.85 | E133: 93.5 | F133: 82.5 | G133: 0.8 | H133: 67.96 | I133: 0 | J133: 0 | K133: 36700 | L133: 0 | M133: 70000 | N133: 0 | O133: 0 | P133: 0 | Q133: =IF(SUM($Q$24:Q132)+P133<=140000/1.98346,P133,IF(140000/1.98346-SUM(Q$24:$Q132)>0,140000/1.98346-SUM(Q$24:$Q132),0)) -> 0 | R133: 68.85 | T133: 140 | U133: 81 | V133: 110
A134: 1 | B134: 1937-01-19 | C134: 119 | D134: 67.15 | E134: 86.7 | F134: 82.5 | G134: 0.8 | H134: 63.88 | I134: 0 | J134: 0 | K134: 37400 | L134: 0 | M134: 70000 | N134: 0 | O134: 0 | P134: 0 | Q134: =IF(SUM($Q$24:Q133)+P134<=140000/1.98346,P134,IF(140000/1.98346-SUM(Q$24:$Q133)>0,140000/1.98346-SUM(Q$24:$Q133),0)) -> 0 | R134: 67.15 | T134: 140 | U134: 79 | V134: 102
A135: 1 | B135: 1937-01-20 | C135: 117.3 | D135: 68.85 | E135: 85 | F135: 82.5 | G135: 0.8 | H135: 57.08 | I135: 0 | J135: 0 | K135: 38100 | L135: 0 | M135: 70000 | N135: 0 | O135: 0 | P135: 0 | Q135: =IF(SUM($Q$24:Q134)+P135<=140000/1.98346,P135,IF(140000/1.98346-SUM(Q$24:$Q134)>0,140000/1.98346-SUM(Q$24:$Q134),0)) -> 0 | R135: 68.85 | T135: 138 | U135: 81 | V135: 100
A136: 1 | B136: 1937-01-21 | C136: 119 | D136: 68.85 | E136: 86.7 | F136: 82.5 | G136: 0.8 | H136: 57.08 | I136: 0 | J136: 0 | K136: 38800 | L136: 0 | M136: 70000 | N136: 0 | O136: 0 | P136: 0 | Q136: =IF(SUM($Q$24:Q135)+P136<=140000/1.98346,P136,IF(140000/1.98346-SUM(Q$24:$Q135)>0,140000/1.98346-SUM(Q$24:$Q135),0)) -> 0 | R136: 68.85 | T136: 140 | U136: 81 | V136: 102
A137: 1 | B137: 1937-01-22 | C137: 117.3 | D137: 66.3 | E137: 83.3 | F137: 82.5 | G137: 0.8 | H137: 58.44 | I137: 0 | J137: 0 | K137: 39400 | L137: 0 | M137: 70000 | N137: 0 | O137: 0 | P137: 0 | Q137: =IF(SUM($Q$24:Q136)+P137<=140000/1.98346,P137,IF(140000/1.98346-SUM(Q$24:$Q136)>0,140000/1.98346-SUM(Q$24:$Q136),0)) -> 0 | R137: 66.3 | T137: 138 | U137: 78 | V137: 98
A138: 1 | B138: 1937-01-23 | C138: 114.75 | D138: 58.65 | E138: 72.25 | F138: 82.5 | G138: 0.8 | H138: 53.68 | I138: 0 | J138: 0 | K138: 39900 | L138: 0 | M138: 70000 | N138: 0 | O138: 0 | P138: 0 | Q138: =IF(SUM($Q$24:Q137)+P138<=140000/1.98346,P138,IF(140000/1.98346-SUM(Q$24:$Q137)>0,140000/1.98346-SUM(Q$24:$Q137),0)) -> 0 | R138: 58.65 | T138: 135 | U138: 69 | V138: 85
A139: 1 | B139: 1937-01-24 | C139: 102.85 | D139: 57.8 | E139: 70.55 | F139: 82.5 | G139: 0.8 | H139: 38.72 | I139: 0 | J139: 0 | K139: 40500 | L139: 0 | M139: 70000 | N139: 0 | O139: 0 | P139: 0 | Q139: =IF(SUM($Q$24:Q138)+P139<=140000/1.98346,P139,IF(140000/1.98346-SUM(Q$24:$Q138)>0,140000/1.98346-SUM(Q$24:$Q138),0)) -> 0 | R139: 57.8 | T139: 121 | U139: 68 | V139: 83
A140: 1 | B140: 1937-01-25 | C140: 99.45 | D140: 58.65 | E140: 72.25 | F140: 82.5 | G140: 0.8 | H140: 36.68 | I140: 0 | J140: 0 | K140: 41200 | L140: 0 | M140: 70000 | N140: 0 | O140: 0 | P140: 0 | Q140: =IF(SUM($Q$24:Q139)+P140<=140000/1.98346,P140,IF(140000/1.98346-SUM(Q$24:$Q139)>0,140000/1.98346-SUM(Q$24:$Q139),0)) -> 0 | R140: 58.65 | T140: 117 | U140: 69 | V140: 85
A141: 1 | B141: 1937-01-26 | C141: 101.15 | D141: 57.8 | E141: 72.25 | F141: 82.5 | G141: 0.8 | H141: 38.72 | I141: 0 | J141: 0 | K141: 41700 | L141: 0 | M141: 70000 | N141: 0 | O141: 0 | P141: 0 | Q141: =IF(SUM($Q$24:Q140)+P141<=140000/1.98346,P141,IF(140000/1.98346-SUM(Q$24:$Q140)>0,140000/1.98346-SUM(Q$24:$Q140),0)) -> 0 | R141: 57.8 | T141: 119 | U141: 68 | V141: 85
A142: 1 | B142: 1937-01-27 | C142: 99.45 | D142: 56.1 | E142: 70.55 | F142: 82.5 | G142: 0.8 | H142: 38.04 | I142: 0 | J142: 0 | K142: 42300 | L142: 0 | M142: 70000 | N142: 0 | O142: 0 | P142: 0 | Q142: =IF(SUM($Q$24:Q141)+P142<=140000/1.98346,P142,IF(140000/1.98346-SUM(Q$24:$Q141)>0,140000/1.98346-SUM(Q$24:$Q141),0)) -> 0 | R142: 56.1 | T142: 117 | U142: 66 | V142: 83
A143: 1 | B143: 1937-01-28 | C143: 99.45 | D143: 56.1 | E143: 70.55 | F143: 82.5 | G143: 0.8 | H143: 35.32 | I143: 0 | J143: 0 | K143: 43000 | L143: 0 | M143: 70000 | N143: 0 | O143: 0 | P143: 0 | Q143: =IF(SUM($Q$24:Q142)+P143<=140000/1.98346,P143,IF(140000/1.98346-SUM(Q$24:$Q142)>0,140000/1.98346-SUM(Q$24:$Q142),0)) -> 0 | R143: 56.1 | T143: 117 | U143: 66 | V143: 83
A144: 1 | B144: 1937-01-29 | C144: 101.15 | D144: 58.65 | E144: 70.55 | F144: 82.5 | G144: 0.8 | H144: 35.32 | I144: 0 | J144: 0 | K144: 43500 | L144: 0 | M144: 70000 | N144: 0 | O144: 0 | P144: 0 | Q144: =IF(SUM($Q$24:Q143)+P144<=140000/1.98346,P144,IF(140000/1.98346-SUM(Q$24:$Q143)>0,140000/1.98346-SUM(Q$24:$Q143),0)) -> 0 | R144: 58.65 | T144: 119 | U144: 69 | V144: 83
A145: 1 | B145: 1937-01-30 | C145: 101.15 | D145: 60.35 | E145: 74.8 | F145: 82.5 | G145: 0.8 | H145: 37.36 | I145: 0 | J145: 0 | K145: 44000 | L145: 0 | M145: 70000 | N145: 0 | O145: 0 | P145: 0 | Q145: =IF(SUM($Q$24:Q144)+P145<=140000/1.98346,P145,IF(140000/1.98346-SUM(Q$24:$Q144)>0,140000/1.98346-SUM(Q$24:$Q144),0)) -> 0 | R145: 60.35 | T145: 119 | U145: 71 | V145: 88
A146: 1 | B146: 1937-01-31 | C146: 102.85 | D146: 61.2 | E146: 76.5 | F146: 82.5 | G146: 0.8 | H146: 42.12 | I146: 0 | J146: 0 | K146: 44500 | L146: 0 | M146: 70000 | N146: 0 | O146: 0 | P146: 0 | Q146: =IF(SUM($Q$24:Q145)+P146<=140000/1.98346,P146,IF(140000/1.98346-SUM(Q$24:$Q145)>0,140000/1.98346-SUM(Q$24:$Q145),0)) -> 0 | R146: 61.2 | T146: 121 | U146: 72 | V146: 90
A147: 2 | B147: 1937-02-01 | C147: 102.85 | D147: 60.35 | E147: 79.05 | F147: 215 | G147: 0.8 | H147: 0 | I147: 0 | J147: 0 | K147: 44900 | L147: 0 | M147: 70000 | N147: 0 | O147: 0 | P147: 0 | Q147: =IF(SUM($Q$24:Q146)+P147<=140000/1.98346,P147,IF(140000/1.98346-SUM(Q$24:$Q146)>0,140000/1.98346-SUM(Q$24:$Q146),0)) -> 0 | R147: 60.35 | T147: 121 | U147: 71 | V147: 93
A148: 2 | B148: 1937-02-02 | C148: 105.4 | D148: 61.2 | E148: 78.2 | F148: 215 | G148: 0.8 | H148: 0 | I148: 0 | J148: 0 | K148: 45400 | L148: 0 | M148: 70000 | N148: 0 | O148: 0 | P148: 0 | Q148: =IF(SUM($Q$24:Q147)+P148<=140000/1.98346,P148,IF(140000/1.98346-SUM(Q$24:$Q147)>0,140000/1.98346-SUM(Q$24:$Q147),0)) -> 0 | R148: 61.2 | T148: 124 | U148: 72 | V148: 92
A149: 2 | B149: 1937-02-03 | C149: 105.4 | D149: 62.9 | E149: 78.2 | F149: 215 | G149: 0.8 | H149: 0 | I149: 0 | J149: 0 | K149: 46100 | L149: 0 | M149: 70000 | N149: 0 | O149: 0 | P149: 0 | Q149: =IF(SUM($Q$24:Q148)+P149<=140000/1.98346,P149,IF(140000/1.98346-SUM(Q$24:$Q148)>0,140000/1.98346-SUM(Q$24:$Q148),0)) -> 0 | R149: 62.9 | T149: 124 | U149: 74 | V149: 92
A150: 2 | B150: 1937-02-04 | C150: 105.4 | D150: 61.2 | E150: 79.05 | F150: 215 | G150: 0.8 | H150: 0 | I150: 0 | J150: 0 | K150: 46700 | L150: 0 | M150: 70000 | N150: 0 | O150: 0 | P150: 0 | Q150: =IF(SUM($Q$24:Q149)+P150<=140000/1.98346,P150,IF(140000/1.98346-SUM(Q$24:$Q149)>0,140000/1.98346-SUM(Q$24:$Q149),0)) -> 0 | R150: 61.2 | T150: 124 | U150: 72 | V150: 93
A151: 2 | B151: 1937-02-05 | C151: 105.4 | D151: 61.2 | E151: 81.6 | F151: 215 | G151: 0.8 | H151: 0 | I151: 0 | J151: 0 | K151: 47500 | L151: 0 | M151: 70000 | N151: 0 | O151: 0 | P151: 0 | Q151: =IF(SUM($Q$24:Q150)+P151<=140000/1.98346,P151,IF(140000/1.98346-SUM(Q$24:$Q150)>0,140000/1.98346-SUM(Q$24:$Q150),0)) -> 0 | R151: 61.2 | T151: 124 | U151: 72 | V151: 96
A152: 2 | B152: 1937-02-06 | C152: 107.1 | D152: =IF(U152<$I$17,U152*(1+$H$18),U152*(1+$I$18)) -> 62.9 | E152: 88.4 | F152: =VLOOKUP(A152,$B$3:$C$14,2,FALSE) -> 215 | G152: =VLOOKUP(A152,$B$3:$D$14,3,FALSE) -> 0.8 | H152: 0 | I152: 0 | J152: =IF(C152>=VLOOKUP(A152,$K$2:$M$13,3,FALSE),I152,0) -> 0 | K152: 48200 | L152: =IF(K152>30000,J152,0) -> 0 | M152: 70000 | N152: 0 | O152: 0 | P152: =IF(O152<=64000,N152,IF(64000-O151-1.98346*N152>=0,64000-1.98346*N152,0)) -> 0 | Q152: =IF(SUM($Q$24:Q151)+P152<=140000/1.98346,P152,IF(140000/1.98346-SUM(Q$24:$Q151)>0,140000/1.98346-SUM(Q$24:$Q151),0)) -> 0 | R152: =D152-Q152 -> 62.9 | T152: 126 | U152: 74 | V152: 104
A153: 2 | B153: 1937-02-07 | C153: =IF(T153<$I$17,T153*(1+$H$18),T153*(1+$I$18)) -> 117.3 | D153: 429.45 | E153: =IF(V153<$I$17,V153*(1+$H$18),V153*(1+$I$18)) -> 2593.5 | F153: 215 | G153: 0.8 | H153: =IF((D152+E152-F153)*G153>$C$20,$C$20,IF(D152+E152-F153>0,(D152+E152-F153)*G153,0)) -> 0 | I153: =IF(D152>$C$21,MIN(D152-$C$21,H152),0) -> 0 | J153: 0 | K153: 67500 | L153: 0 | M153: =IF(MONTH(B153) =12,IF(DAY(B153)=31,IF(M152-1.98*L153+18000<70000,M152-1.98*L153+18000,70000),IF(M152-1.98*L153<0,0,M152-1.98*L153)),IF(M152-1.98*L153<0,0,M152-1.98*L153)) -> 70000 | N153: =IF(MIN(M153/1.98,L153)+O152/1.98<=64000/1.98,MIN(M153/1.98,L153),(64000-O152)/1.98) -> 0 | O153: =IF(MONTH(B153)=1,IF(DAY(B153)=1,1.98346*N153,1.98346*N153+O152),1.98346*N153+O152) -> 0 | P153: 0 | Q153: =IF(SUM($Q$24:Q152)+P153<=140000/1.98346,P153,IF(140000/1.98346-SUM(Q$24:$Q152)>0,140000/1.98346-SUM(Q$24:$Q152),0)) -> 0 | R153: 429.45 | T153: 138 | U153: 409 | V153: 2470
A154: 2 | B154: 1937-02-08 | C154: 2152.5 | D154: 2415 | E154: 7329 | F154: 215 | G154: 0.8 | H154: 350 | I154: 0 | J154: 0 | K154: 84300 | L154: 0 | M154: 70000 | N154: 0 | O154: 0 | P154: 0 | Q154: =IF(SUM($Q$24:Q153)+P154<=140000/1.98346,P154,IF(140000/1.98346-SUM(Q$24:$Q153)>0,140000/1.98346-SUM(Q$24:$Q153),0)) -> 0 | R154: 2415 | T154: 2050 | U154: 2300 | V154: 6980
A155: 2 | B155: 1937-02-09 | C155: 1417.5 | D155: 855.75 | E155: 1491 | F155: 215 | G155: 0.8 | H155: 350 | I155: 350 | J155: 350 | K155: 102600 | L155: 350 | M155: 69307 | N155: 350 | O155: 694.211 | P155: 350 | Q155: =IF(SUM($Q$24:Q154)+P155<=140000/1.98346,P155,IF(140000/1.98346-SUM(Q$24:$Q154)>0,140000/1.98346-SUM(Q$24:$Q154),0)) -> 350 | R155: 505.75 | T155: 1350 | U155: 815 | V155: 1420
A156: 2 | B156: 1937-02-10 | C156: 626.85 | D156: 472.5 | E156: 683.55 | F156: 215 | G156: 0.8 | H156: 350 | I156: 350 | J156: 350 | K156: 109600 | L156: 350 | M156: 68614 | N156: 350 | O156: 1388.422 | P156: 350 | Q156: =IF(SUM($Q$24:Q155)+P156<=140000/1.98346,P156,IF(140000/1.98346-SUM(Q$24:$Q155)>0,140000/1.98346-SUM(Q$24:$Q155),0)) -> 350 | R156: 122.5 | T156: 597 | U156: 450 | V156: 651
A157: 2 | B157: 1937-02-11 | C157: 432.6 | D157: 255 | E157: 457.8 | F157: 215 | G157: 0.8 | H157: 350 | I157: 322.5 | J157: 322.5 | K157: 113500 | L157: 322.5 | M157: 67975.45 | N157: 322.5 | O157: 2028.08785 | P157: 322.5 | Q157: =IF(SUM($Q$24:Q156)+P157<=140000/1.98346,P157,IF(140000/1.98346-SUM(Q$24:$Q156)>0,140000/1.98346-SUM(Q$24:$Q156),0)) -> 322.5 | R157: -67.5 | T157: 412 | U157: 300 | V157: 436
A158: 2 | B158: 1937-02-12 | C158: 288.15 | D158: 204 | E158: 282.2 | F158: 215 | G158: 0.8 | H158: 350 | I158: 105 | J158: 105 | K158: 116200 | L158: 105 | M158: 67767.55 | N158: 105 | O158: 2236.35115 | P158: 105 | Q158: =IF(SUM($Q$24:Q157)+P158<=140000/1.98346,P158,IF(140000/1.98346-SUM(Q$24:$Q157)>0,140000/1.98346-SUM(Q$24:$Q157),0)) -> 105 | R158: 99 | T158: 339 | U158: 240 | V158: 332
A159: 2 | B159: 1937-02-13 | C159: 270.3 | D159: 178.5 | E159: 237.15 | F159: 215 | G159: 0.8 | H159: 216.96 | I159: 54 | J159: 54 | K159: 118300 | L159: 54 | M159: 67660.63 | N159: 54 | O159: 2343.45799 | P159: 54 | Q159: =IF(SUM($Q$24:Q158)+P159<=140000/1.98346,P159,IF(140000/1.98346-SUM(Q$24:$Q158)>0,140000/1.98346-SUM(Q$24:$Q158),0)) -> 54 | R159: 124.5 | T159: 318 | U159: 210 | V159: 279
A160: 2 | B160: 1937-02-14 | C160: 246.5 | D160: 159.8 | E160: 204 | F160: 215 | G160: 0.8 | H160: 160.52 | I160: 28.5 | J160: 28.5 | K160: 120000 | L160: 28.5 | M160: 67604.2 | N160: 28.5 | O160: 2399.9866 | P160: 28.5 | Q160: =IF(SUM($Q$24:Q159)+P160<=140000/1.98346,P160,IF(140000/1.98346-SUM(Q$24:$Q159)>0,140000/1.98346-SUM(Q$24:$Q159),0)) -> 28.5 | R160: 131.3 | T160: 290 | U160: 188 | V160: 240
A161: 2 | B161: 1937-02-15 | C161: 249.9 | D161: 250.75 | E161: 214.2 | F161: 215 | G161: 0.8 | H161: 119.04 | I161: 9.8 | J161: 9.8 | K161: 121500 | L161: 9.8 | M161: 67584.796 | N161: 9.8 | O161: 2419.424508 | P161: 9.8 | Q161: =IF(SUM($Q$24:Q160)+P161<=140000/1.98346,P161,IF(140000/1.98346-SUM(Q$24:$Q160)>0,140000/1.98346-SUM(Q$24:$Q160),0)) -> 9.8 | R161: 240.95 | T161: 294 | U161: 295 | V161: 252
A162: 2 | B162: 1937-02-16 | C162: 2194.5 | D162: 3570 | E162: 3328.5 | F162: 215 | G162: 0.8 | H162: 199.96 | I162: 100.75 | J162: 100.75 | K162: 123100 | L162: 100.75 | M162: 67385.311 | N162: 100.75 | O162: 2619.258103 | P162: 100.75 | Q162: =IF(SUM($Q$24:Q161)+P162<=140000/1.98346,P162,IF(140000/1.98346-SUM(Q$24:$Q161)>0,140000/1.98346-SUM(Q$24:$Q161),0)) -> 100.75 | R162: 3469.25 | T162: 2090 | U162: 3400 | V162: 3170
A163: 2 | B163: 1937-02-17 | C163: 7192.5 | D163: 2835 | E163: 4998 | F163: 215 | G163: 0.8 | H163: 350 | I163: 199.96 | J163: 199.96 | K163: 131300 | L163: 199.96 | M163: 66989.3902 | N163: 199.96 | O163: 3015.870765 | P163: 199.96 | Q163: =IF(SUM($Q$24:Q162)+P163<=140000/1.98346,P163,IF(140000/1.98346-SUM(Q$24:$Q162)>0,140000/1.98346-SUM(Q$24:$Q162),0)) -> 199.96 | R163: 2635.04 | T163: 6850 | U163: 2700 | V163: 4760
A164: 2 | B164: 1937-02-18 | C164: 2614.5 | D164: 1575 | E164: 2121 | F164: 215 | G164: 0.8 | H164: 350 | I164: 350 | J164: 350 | K164: 147400 | L164: 350 | M164: 66296.3902 | N164: 350 | O164: 3710.081765 | P164: 350 | Q164: =IF(SUM($Q$24:Q163)+P164<=140000/1.98346,P164,IF(140000/1.98346-SUM(Q$24:$Q163)>0,140000/1.98346-SUM(Q$24:$Q163),0)) -> 350 | R164: 1225 | T164: 2490 | U164: 1500 | V164: 2020
A165: 2 | B165: 1937-02-19 | C165: 1585.5 | D165: 1050 | E165: 1354.5 | F165: 215 | G165: 0.8 | H165: 350 | I165: 350 | J165: 350 | K165: 160600 | L165: 350 | M165: 65603.3902 | N165: 350 | O165: 4404.292765 | P165: 350 | Q165: =IF(SUM($Q$24:Q164)+P165<=140000/1.98346,P165,IF(140000/1.98346-SUM(Q$24:$Q164)>0,140000/1.98346-SUM(Q$24:$Q164),0)) -> 350 | R165: 700 | T165: 1510 | U165: 1000 | V165: 1290
A166: 2 | B166: 1937-02-20 | C166: 1249.5 | D166: 798 | E166: 1026.9 | F166: 215 | G166: 0.8 | H166: 350 | I166: 350 | J166: 350 | K166: 167100 | L166: 350 | M166: 64910.3902 | N166: 350 | O166: 5098.503765 | P166: 350 | Q166: =IF(SUM($Q$24:Q165)+P166<=140000/1.98346,P166,IF(140000/1.98346-SUM(Q$24:$Q165)>0,140000/1.98346-SUM(Q$24:$Q165),0)) -> 350 | R166: 448 | T166: 1190 | U166: 760 | V166: 978
A167: 2 | B167: 1937-02-21 | C167: 981.75 | D167: 651 | E167: 753.9 | F167: 215 | G167: 0.8 | H167: 350 | I167: 350 | J167: 350 | K167: 172100 | L167: 350 | M167: 64217.3902 | N167: 350 | O167: 5792.714765 | P167: 350 | Q167: =IF(SUM($Q$24:Q166)+P167<=140000/1.98346,P167,IF(140000/1.98346-SUM(Q$24:$Q166)>0,140000/1.98346-SUM(Q$24:$Q166),0)) -> 350 | R167: 301 | T167: 935 | U167: 620 | V167: 718
A168: 2 | B168: 1937-02-22 | C168: 809.55 | D168: 538.65 | E168: 568.05 | F168: 215 | G168: 0.8 | H168: 350 | I168: 350 | J168: 350 | K168: 175800 | L168: 350 | M168: 63524.3902 | N168: 350 | O168: 6486.925765 | P168: 350 | Q168: =IF(SUM($Q$24:Q167)+P168<=140000/1.98346,P168,IF(140000/1.98346-SUM(Q$24:$Q167)>0,140000/1.98346-SUM(Q$24:$Q167),0)) -> 350 | R168: 188.65 | T168: 771 | U168: 513 | V168: 541
A169: 2 | B169: 1937-02-23 | C169: 721.35 | D169: 497.7 | E169: 505.05 | F169: 215 | G169: 0.8 | H169: 350 | I169: 350 | J169: 350 | K169: 178700 | L169: 350 | M169: 62831.3902 | N169: 350 | O169: 7181.136765 | P169: 350 | Q169: =IF(SUM($Q$24:Q168)+P169<=140000/1.98346,P169,IF(140000/1.98346-SUM(Q$24:$Q168)>0,140000/1.98346-SUM(Q$24:$Q168),0)) -> 350 | R169: 147.7 | T169: 687 | U169: 474 | V169: 481
A170: 2 | B170: 1937-02-24 | C170: 708.75 | D170: 552.3 | E170: 486.15 | F170: 215 | G170: 0.8 | H170: 350 | I170: 347.7 | J170: 347.7 | K170: 181100 | L170: 347.7 | M170: 62142.9442 | N170: 347.7 | O170: 7870.785807 | P170: 347.7 | Q170: =IF(SUM($Q$24:Q169)+P170<=140000/1.98346,P170,IF(140000/1.98346-SUM(Q$24:$Q169)>0,140000/1.98346-SUM(Q$24:$Q169),0)) -> 347.7 | R170: 204.6 | T170: 675 | U170: 526 | V170: 463
A171: 2 | B171: 1937-02-25 | C171: 774.9 | D171: 640.5 | E171: 539.7 | F171: 215 | G171: 0.8 | H171: 350 | I171: 350 | J171: 350 | K171: 183200 | L171: 350 | M171: 61449.9442 | N171: 350 | O171: 8564.996807 | P171: 350 | Q171: =IF(SUM($Q$24:Q170)+P171<=140000/1.98346,P171,IF(140000/1.98346-SUM(Q$24:$Q170)>0,140000/1.98346-SUM(Q$24:$Q170),0)) -> 350 | R171: 290.5 | T171: 738 | U171: 610 | V171: 514
A172: 2 | B172: 1937-02-26 | C172: 831.6 | D172: 640.5 | E172: 584.85 | F172: 215 | G172: 0.8 | H172: 350 | I172: 350 | J172: 350 | K172: 185300 | L172: 350 | M172: 60756.9442 | N172: 350 | O172: 9259.207807 | P172: 350 | Q172: =IF(SUM($Q$24:Q171)+P172<=140000/1.98346,P172,IF(140000/1.98346-SUM(Q$24:$Q171)>0,140000/1.98346-SUM(Q$24:$Q171),0)) -> 350 | R172: 290.5 | T172: 792 | U172: 610 | V172: 557
A173: 2 | B173: 1937-02-27 | C173: 753.9 | D173: 534.45 | E173: 534.45 | F173: 215 | G173: 0.8 | H173: 350 | I173: 350 | J173: 350 | K173: 187600 | L173: 350 | M173: 60063.9442 | N173: 350 | O173: 9953.418807 | P173: 350 | Q173: =IF(SUM($Q$24:Q172)+P173<=140000/1.98346,P173,IF(140000/1.98346-SUM(Q$24:$Q172)>0,140000/1.98346-SUM(Q$24:$Q172),0)) -> 350 | R173: 184.45 | T173: 718 | U173: 509 | V173: 509
A174: 2 | B174: 1937-02-28 | C174: 652.05 | D174: 437.85 | E174: 439.95 | F174: 215 | G174: 0.8 | H174: 350 | I174: 350 | J174: 350 | K174: 189900 | L174: 350 | M174: 59370.9442 | N174: 350 | O174: 10647.62981 | P174: 350 | Q174: =IF(SUM($Q$24:Q173)+P174<=140000/1.98346,P174,IF(140000/1.98346-SUM(Q$24:$Q173)>0,140000/1.98346-SUM(Q$24:$Q173),0)) -> 350 | R174: 87.85 | T174: 621 | U174: 417 | V174: 419
A175: 3 | B175: 1937-03-01 | C175: 581.7 | D175: 325.55 | E175: 314.5 | F175: =$C$5 -> 292.5 | G175: 0.8 | H175: 350 | I175: =IF(D175>$E$5,MIN(H175,D175-$E$5),0) -> 175.55 | J175: 175.55 | K175: 191800 | L175: 175.55 | M175: 59023.3552 | N175: 175.55 | O175: 10995.82621 | P175: 175.55 | Q175: =IF(SUM($Q$24:Q174)+P175<=140000/1.98346,P175,IF(140000/1.98346-SUM(Q$24:$Q174)>0,140000/1.98346-SUM(Q$24:$Q174),0)) -> 175.55 | R175: 150 | T175: 554 | U175: 383 | V175: 370
A176: 3 | B176: 1937-03-02 | C176: 559.65 | D176: 322.15 | E176: 307.7 | F176: 292.5 | G176: 0.8 | H176: 278.04 | I176: 172.15 | J176: 172.15 | K176: 193300 | L176: 172.15 | M176: 58682.4982 | N176: 172.15 | O176: 11337.27885 | P176: 172.15 | Q176: =IF(SUM($Q$24:Q175)+P176<=140000/1.98346,P176,IF(140000/1.98346-SUM(Q$24:$Q175)>0,140000/1.98346-SUM(Q$24:$Q175),0)) -> 172.15 | R176: 150 | T176: 533 | U176: 379 | V176: 362
A177: 3 | B177: 1937-03-03 | C177: 565.95 | D177: 422.1 | E177: 314.5 | F177: 292.5 | G177: 0.8 | H177: 269.88 | I177: 269.88 | J177: 269.88 | K177: 194600 | L177: 269.88 | M177: 58148.1358 | N177: 269.88 | O177: 11872.57503 | P177: 269.88 | Q177: =IF(SUM($Q$24:Q176)+P177<=140000/1.98346,P177,IF(140000/1.98346-SUM(Q$24:$Q176)>0,140000/1.98346-SUM(Q$24:$Q176),0)) -> 269.88 | R177: 152.22 | T177: 539 | U177: 402 | V177: 370
A178: 3 | B178: 1937-03-04 | C178: 598.5 | D178: 450.45 | E178: 422.1 | F178: 292.5 | G178: 0.8 | H178: 350 | I178: 300.45 | J178: 300.45 | K178: 195600 | L178: 300.45 | M178: 57553.2448 | N178: 300.45 | O178: 12468.50559 | P178: 300.45 | Q178: =IF(SUM($Q$24:Q177)+P178<=140000/1.98346,P178,IF(140000/1.98346-SUM(Q$24:$Q177)>0,140000/1.98346-SUM(Q$24:$Q177),0)) -> 300.45 | R178: 150 | T178: 570 | U178: 429 | V178: 402
A179: 3 | B179: 1937-03-05 | C179: 581.7 | D179: 322.15 | E179: 324.7 | F179: 292.5 | G179: 0.8 | H179: 350 | I179: 172.15 | J179: 172.15 | K179: 196600 | L179: 172.15 | M179: 57212.3878 | N179: 172.15 | O179: 12809.95823 | P179: 172.15 | Q179: =IF(SUM($Q$24:Q178)+P179<=140000/1.98346,P179,IF(140000/1.98346-SUM(Q$24:$Q178)>0,140000/1.98346-SUM(Q$24:$Q178),0)) -> 172.15 | R179: 150 | T179: 554 | U179: 379 | V179: 382
A180: 3 | B180: 1937-03-06 | C180: 529.2 | D180: 282.2 | E180: 292.4 | F180: 292.5 | G180: 0.8 | H180: 283.48 | I180: 132.2 | J180: 132.2 | K180: 197700 | L180: 132.2 | M180: 56950.6318 | N180: 132.2 | O180: 13072.17164 | P180: 132.2 | Q180: =IF(SUM($Q$24:Q179)+P180<=140000/1.98346,P180,IF(140000/1.98346-SUM(Q$24:$Q179)>0,140000/1.98346-SUM(Q$24:$Q179),0)) -> 132.2 | R180: 150 | T180: 504 | U180: 332 | V180: 344
A181: 3 | B181: 1937-03-07 | C181: 478.8 | D181: 294.1 | E181: 259.25 | F181: 292.5 | G181: 0.8 | H181: 225.68 | I181: 144.1 | J181: 144.1 | K181: 198500 | L181: 144.1 | M181: 56665.3138 | N181: 144.1 | O181: 13357.98823 | P181: 144.1 | Q181: =IF(SUM($Q$24:Q180)+P181<=140000/1.98346,P181,IF(140000/1.98346-SUM(Q$24:$Q180)>0,140000/1.98346-SUM(Q$24:$Q180),0)) -> 144.1 | R181: 150 | T181: 456 | U181: 346 | V181: 305
A182: 3 | B182: 1937-03-08 | C182: 493.5 | D182: 534.45 | E182: 267.75 | F182: 292.5 | G182: 0.8 | H182: 208.68 | I182: 208.68 | J182: 208.68 | K182: 199600 | L182: 208.68 | M182: 56252.1274 | N182: 208.68 | O182: 13771.89666 | P182: 208.68 | Q182: =IF(SUM($Q$24:Q181)+P182<=140000/1.98346,P182,IF(140000/1.98346-SUM(Q$24:$Q181)>0,140000/1.98346-SUM(Q$24:$Q181),0)) -> 208.68 | R182: 325.77 | T182: 470 | U182: 509 | V182: 315
A183: 3 | B183: 1937-03-09 | C183: 610.05 | D183: 798 | E183: 321.3 | F183: 292.5 | G183: 0.8 | H183: 350 | I183: 350 | J183: 350 | K183: 200100 | L183: 350 | M183: 55559.1274 | N183: 350 | O183: 14466.10766 | P183: 350 | Q183: =IF(SUM($Q$24:Q182)+P183<=140000/1.98346,P183,IF(140000/1.98346-SUM(Q$24:$Q182)>0,140000/1.98346-SUM(Q$24:$Q182),0)) -> 350 | R183: 448 | T183: 581 | U183: 760 | V183: 378
A184: 3 | B184: 1937-03-10 | C184: 781.2 | D184: 981.75 | E184: 563.85 | F184: 292.5 | G184: 0.8 | H184: 350 | I184: 350 | J184: 350 | K184: 200800 | L184: 350 | M184: 54866.1274 | N184: 350 | O184: 15160.31866 | P184: 350 | Q184: =IF(SUM($Q$24:Q183)+P184<=140000/1.98346,P184,IF(140000/1.98346-SUM(Q$24:$Q183)>0,140000/1.98346-SUM(Q$24:$Q183),0)) -> 350 | R184: 631.75 | T184: 744 | U184: 935 | V184: 537
A185: 3 | B185: 1937-03-11 | C185: 905.1 | D185: 1050 | E185: 731.85 | F185: 292.5 | G185: 0.8 | H185: 350 | I185: 350 | J185: 350 | K185: 202000 | L185: 350 | M185: 54173.1274 | N185: 350 | O185: 15854.52966 | P185: 350 | Q185: =IF(SUM($Q$24:Q184)+P185<=140000/1.98346,P185,IF(140000/1.98346-SUM(Q$24:$Q184)>0,140000/1.98346-SUM(Q$24:$Q184),0)) -> 350 | R185: 700 | T185: 862 | U185: 1000 | V185: 697
A186: 3 | B186: 1937-03-12 | C186: 981.75 | D186: 1081.5 | E186: 847.35 | F186: 292.5 | G186: 0.8 | H186: 350 | I186: 350 | J186: 350 | K186: 203800 | L186: 350 | M186: 53480.1274 | N186: 350 | O186: 16548.74066 | P186: 350 | Q186: =IF(SUM($Q$24:Q185)+P186<=140000/1.98346,P186,IF(140000/1.98346-SUM(Q$24:$Q185)>0,140000/1.98346-SUM(Q$24:$Q185),0)) -> 350 | R186: 731.5 | T186: 935 | U186: 1030 | V186: 807
A187: 3 | B187: 1937-03-13 | C187: 1037.4 | D187: 981.75 | E187: 913.5 | F187: 292.5 | G187: 0.8 | H187: 350 | I187: 350 | J187: 350 | K187: 206000 | L187: 350 | M187: 52787.1274 | N187: 350 | O187: 17242.95166 | P187: 350 | Q187: =IF(SUM($Q$24:Q186)+P187<=140000/1.98346,P187,IF(140000/1.98346-SUM(Q$24:$Q186)>0,140000/1.98346-SUM(Q$24:$Q186),0)) -> 350 | R187: 631.75 | T187: 988 | U187: 935 | V187: 870
A188: 3 | B188: 1937-03-14 | C188: 912.45 | D188: 918.75 | E188: 1015.35 | F188: 292.5 | G188: 0.8 | H188: 350 | I188: 350 | J188: 350 | K188: 208500 | L188: 350 | M188: 52094.1274 | N188: 350 | O188: 17937.16266 | P188: 350 | Q188: =IF(SUM($Q$24:Q187)+P188<=140000/1.98346,P188,IF(140000/1.98346-SUM(Q$24:$Q187)>0,140000/1.98346-SUM(Q$24:$Q187),0)) -> 350 | R188: 568.75 | T188: 869 | U188: 875 | V188: 967
A189: 3 | B189: 1937-03-15 | C189: 882 | D189: 950.25 | E189: 1050 | F189: 292.5 | G189: 0.8 | H189: 350 | I189: 350 | J189: 350 | K189: 211100 | L189: 350 | M189: 51401.1274 | N189: 350 | O189: 18631.37366 | P189: 350 | Q189: =IF(SUM($Q$24:Q188)+P189<=140000/1.98346,P189,IF(140000/1.98346-SUM(Q$24:$Q188)>0,140000/1.98346-SUM(Q$24:$Q188),0)) -> 350 | R189: 600.25 | T189: 840 | U189: 905 | V189: 1000
A190: 3 | B190: 1937-03-16 | C190: 919.8 | D190: 918.75 | E190: 1038.45 | F190: 292.5 | G190: 0.8 | H190: 350 | I190: 350 | J190: 350 | K190: 214600 | L190: 350 | M190: 50708.1274 | N190: 350 | O190: 19325.58466 | P190: 350 | Q190: =IF(SUM($Q$24:Q189)+P190<=140000/1.98346,P190,IF(140000/1.98346-SUM(Q$24:$Q189)>0,140000/1.98346-SUM(Q$24:$Q189),0)) -> 350 | R190: 568.75 | T190: 876 | U190: 875 | V190: 989
A191: 3 | B191: 1937-03-17 | C191: 2268 | D191: 3286.5 | E191: 1732.5 | F191: 292.5 | G191: 0.8 | H191: 350 | I191: 350 | J191: 350 | K191: 218500 | L191: 350 | M191: 50015.1274 | N191: 350 | O191: 20019.79566 | P191: 350 | Q191: =IF(SUM($Q$24:Q190)+P191<=140000/1.98346,P191,IF(140000/1.98346-SUM(Q$24:$Q190)>0,140000/1.98346-SUM(Q$24:$Q190),0)) -> 350 | R191: 2936.5 | T191: 2160 | U191: 3130 | V191: 1650
A192: 3 | B192: 1937-03-18 | C192: 4368 | D192: 2604 | E192: 2068.5 | F192: 292.5 | G192: 0.8 | H192: 350 | I192: 350 | J192: 350 | K192: 223800 | L192: 350 | M192: 49322.1274 | N192: 350 | O192: 20714.00666 | P192: 350 | Q192: =IF(SUM($Q$24:Q191)+P192<=140000/1.98346,P192,IF(140000/1.98346-SUM(Q$24:$Q191)>0,140000/1.98346-SUM(Q$24:$Q191),0)) -> 350 | R192: 2254 | T192: 4160 | U192: 2480 | V192: 1970
A193: 3 | B193: 1937-03-19 | C193: 2866.5 | D193: 1680 | E193: 1680 | F193: 292.5 | G193: 0.8 | H193: 350 | I193: 350 | J193: 350 | K193: 232900 | L193: 350 | M193: 48629.1274 | N193: 350 | O193: 21408.21766 | P193: 350 | Q193: =IF(SUM($Q$24:Q192)+P193<=140000/1.98346,P193,IF(140000/1.98346-SUM(Q$24:$Q192)>0,140000/1.98346-SUM(Q$24:$Q192),0)) -> 350 | R193: 1330 | T193: 2730 | U193: 1600 | V193: 1600
A194: 3 | B194: 1937-03-20 | C194: 1921.5 | D194: 1155 | E194: 1228.5 | F194: 292.5 | G194: 0.8 | H194: 350 | I194: 350 | J194: 350 | K194: 240300 | L194: 350 | M194: 47936.1274 | N194: 350 | O194: 22102.42866 | P194: 350 | Q194: =IF(SUM($Q$24:Q193)+P194<=140000/1.98346,P194,IF(140000/1.98346-SUM(Q$24:$Q193)>0,140000/1.98346-SUM(Q$24:$Q193),0)) -> 350 | R194: 805 | T194: 1830 | U194: 1100 | V194: 1170
A195: 3 | B195: 1937-03-21 | C195: 1428 | D195: 918.75 | E195: 1003.8 | F195: 292.5 | G195: 0.8 | H195: 350 | I195: 350 | J195: 350 | K195: 245900 | L195: 350 | M195: 47243.1274 | N195: 350 | O195: 22796.63966 | P195: 350 | Q195: =IF(SUM($Q$24:Q194)+P195<=140000/1.98346,P195,IF(140000/1.98346-SUM(Q$24:$Q194)>0,140000/1.98346-SUM(Q$24:$Q194),0)) -> 350 | R195: 568.75 | T195: 1360 | U195: 875 | V195: 956
A196: 3 | B196: 1937-03-22 | C196: 1176 | D196: 798 | E196: 880.95 | F196: 292.5 | G196: 0.8 | H196: 350 | I196: 350 | J196: 350 | K196: 249800 | L196: 350 | M196: 46550.1274 | N196: 350 | O196: 23490.85066 | P196: 350 | Q196: =IF(SUM($Q$24:Q195)+P196<=140000/1.98346,P196,IF(140000/1.98346-SUM(Q$24:$Q195)>0,140000/1.98346-SUM(Q$24:$Q195),0)) -> 350 | R196: 448 | T196: 1120 | U196: 760 | V196: 839
A197: 3 | B197: 1937-03-23 | C197: 1037.4 | D197: 768.6 | E197: 852.6 | F197: 292.5 | G197: 0.8 | H197: 350 | I197: 350 | J197: 350 | K197: 252900 | L197: 350 | M197: 45857.1274 | N197: 350 | O197: 24185.06166 | P197: 350 | Q197: =IF(SUM($Q$24:Q196)+P197<=140000/1.98346,P197,IF(140000/1.98346-SUM(Q$24:$Q196)>0,140000/1.98346-SUM(Q$24:$Q196),0)) -> 350 | R197: 418.6 | T197: 988 | U197: 732 | V197: 812
A198: 3 | B198: 1937-03-24 | C198: 981.75 | D198: 708.75 | E198: 820.05 | F198: 292.5 | G198: 0.8 | H198: 350 | I198: 350 | J198: 350 | K198: 255600 | L198: 350 | M198: 45164.1274 | N198: 350 | O198: 24879.27266 | P198: 350 | Q198: =IF(SUM($Q$24:Q197)+P198<=140000/1.98346,P198,IF(140000/1.98346-SUM(Q$24:$Q197)>0,140000/1.98346-SUM(Q$24:$Q197),0)) -> 350 | R198: 358.75 | T198: 935 | U198: 675 | V198: 781
A199: 3 | B199: 1937-03-25 | C199: 897.75 | D199: 635.25 | E199: 714 | F199: 292.5 | G199: 0.8 | H199: 350 | I199: 350 | J199: 350 | K199: 257800 | L199: 350 | M199: 44471.1274 | N199: 350 | O199: 25573.48366 | P199: 350 | Q199: =IF(SUM($Q$24:Q198)+P199<=140000/1.98346,P199,IF(140000/1.98346-SUM(Q$24:$Q198)>0,140000/1.98346-SUM(Q$24:$Q198),0)) -> 350 | R199: 285.25 | T199: 855 | U199: 605 | V199: 680
A200: 3 | B200: 1937-03-26 | C200: 802.2 | D200: 585.9 | E200: 619.5 | F200: 292.5 | G200: 0.8 | H200: 350 | I200: 350 | J200: 350 | K200: 259800 | L200: 350 | M200: 43778.1274 | N200: 350 | O200: 26267.69466 | P200: 350 | Q200: =IF(SUM($Q$24:Q199)+P200<=140000/1.98346,P200,IF(140000/1.98346-SUM(Q$24:$Q199)>0,140000/1.98346-SUM(Q$24:$Q199),0)) -> 350 | R200: 235.9 | T200: 764 | U200: 558 | V200: 590
... 4300 more rows

Sheet Yield
B1: % to AG: | E1: MAX DIVERSION (CFS): | F1: 350 | H1: 150 | I1: : GILA MINIMUM CFS IN MARCH
B2: 1 | E2: MONTHLY MIN FLOW (CFS): | F2: 150 | Q2: Days < Min | R2: Days Spill
A3: Date | B3: Month | C3: Day | D3: Month and Day | E3: Gila near Gila | F3: Diversion w/ 140KAF/yr Limit (CFS) | G3: Daily Diversion Inflow (AF) | H3: Daily Demand (AF) | I3: Storage (AF) | J3: Elevation (FT) | K3: Area (ACRE) | L3: Daily Evap (AF) | M3: Daily Seepage (AF) | P3: Annual Demand (AF) | Q3: =SUM(Q4:Q28878) -> 1439 | R3: =SUM(R4:R28878) -> 1566
A4: 1936-10-01 | B4: =MONTH(A4) -> 10 | C4: =DAY(A4) -> 1 | D4: =MONTH(A4)&"/"&DAY(A4) -> 10/1 | E4: =Diversion!D24 -> 78.2 | F4: =Diversion!Q24 -> 0 | G4: 0 | H4: =VLOOKUP(B4,Demand!B:G,6,FALSE) -> 2.419354839 | I4: =P6/2 -> 7500 | J4: =IF(I4>135,VLOOKUP(I4,'Spar ACAP'!D:F,3),4715) -> 4776 | K4: =IF(J4>4715,VLOOKUP(J4,'Spar ACAP'!F:G,2),0) -> 142.917236 | L4: =IF(J4>4715,VLOOKUP(D4,'Spar EVAP'!E:F,2))*K4 -> 0.71458618 | M4: =($P$15)*I4/2100 -> 0.2444509631 | P4: 3000 | Q4: =IF(I4<$P$7,1,0) -> 0 | R4: =IF(I4>P$13-1,1,0) -> 0
A5: 1936-10-02 | B5: =MONTH(A5) -> 10 | C5: =DAY(A5) -> 2 | D5: 10/2 | E5: =Diversion!D25 -> 67.15 | F5: =Diversion!Q25 -> 0 | G5: =1.98347109902*F5 -> 0 | H5: =VLOOKUP(B5,Demand!B:G,6,FALSE) -> 2.419354839 | I5: =IF(I4+G4-H4-L4-M4>$P$6,$P$6,IF(I4+G4-H4-L4-M4>0,I4+G4-H4-L4-M4,0)) -> 7496.621608 | J5: =IF(I5>135,VLOOKUP(I5,'Spar ACAP'!D:F,3),4715) -> 4776 | K5: =IF(J5>4715,VLOOKUP(J5,'Spar ACAP'!F:G,2),0) -> 142.917236 | L5: =IF(J5>4715,VLOOKUP(D5,'Spar EVAP'!E:F,2))*K5 -> 0.71458618 | M5: =($P$15)*I5/2100 -> 0.2443408496 | Q5: =IF(I5<$P$7,1,0) -> 0 | R5: =IF(I5>P$13-1,1,0) -> 0
A6: 1936-10-03 | B6: 10 | C6: 3 | D6: 10/3 | E6: =Diversion!D26 -> 61.2 | F6: =Diversion!Q26 -> 0 | G6: 0 | H6: =VLOOKUP(B6,Demand!B:G,6,FALSE) -> 2.419354839 | I6: 7493.243326 | J6: =IF(I6>135,VLOOKUP(I6,'Spar ACAP'!D:F,3),4715) -> 4776 | K6: =IF(J6>4715,VLOOKUP(J6,'Spar ACAP'!F:G,2),0) -> 142.917236 | L6: =IF(J6>4715,VLOOKUP(D6,'Spar EVAP'!E:F,2))*K6 -> 0.71458618 | M6: 0.2442307397 | O6: Maximum Storage (AF): | P6: 15000 | Q6: 0 | R6: 0
A7: 1936-10-04 | B7: 10 | C7: 4 | D7: 10/4 | E7: =Diversion!D27 -> 56.1 | F7: =Diversion!Q27 -> 0 | G7: 0 | H7: =VLOOKUP(B7,Demand!B:G,6,FALSE) -> 2.419354839 | I7: 7489.865154 | J7: =IF(I7>135,VLOOKUP(I7,'Spar ACAP'!D:F,3),4715) -> 4775 | K7: =IF(J7>4715,VLOOKUP(J7,'Spar ACAP'!F:G,2),0) -> 142.2433425 | L7: =IF(J7>4715,VLOOKUP(D7,'Spar EVAP'!E:F,2))*K7 -> 0.7112167126 | M7: 0.2441206334 | O7: Minimum Storage (AF): | P7: 3000 | Q7: 0 | R7: 0
A8: 1936-10-05 | B8: 10 | C8: 5 | D8: 10/5 | E8: =Diversion!D28 -> 53.55 | F8: =Diversion!Q28 -> 0 | G8: 0 | H8: =VLOOKUP(B8,Demand!B:G,6,FALSE) -> 2.419354839 | I8: 7486.490462 | J8: =IF(I8>135,VLOOKUP(I8,'Spar ACAP'!D:F,3),4715) -> 4775 | K8: =IF(J8>4715,VLOOKUP(J8,'Spar ACAP'!F:G,2),0) -> 142.2433425 | L8: =IF(J8>4715,VLOOKUP(D8,'Spar EVAP'!E:F,2))*K8 -> 0.7112167126 | M8: 0.2440106405 | O8: %Days < Min Storage: | P8: =Q3/28878 -> 0.04983032066 | Q8: 0 | R8: 0
A9: 1936-10-06 | B9: 10 | C9: 6 | D9: 10/6 | E9: =Diversion!D29 -> 49.3 | F9: =Diversion!Q29 -> 0 | G9: 0 | H9: =VLOOKUP(B9,Demand!B:G,6,FALSE) -> 2.419354839 | I9: 7483.11588 | J9: =IF(I9>135,VLOOKUP(I9,'Spar ACAP'!D:F,3),4715) -> 4775 | K9: =IF(J9>4715,VLOOKUP(J9,'Spar ACAP'!F:G,2),0) -> 142.2433425 | L9: =IF(J9>4715,VLOOKUP(D9,'Spar EVAP'!E:F,2))*K9 -> 0.7112167126 | M9: 0.2439006512 | O9: Mean (AF): | P9: =AVERAGE(I4:I27944) -> 10709.45057 | Q9: 0 | R9: 0
A10: 1936-10-07 | B10: 10 | C10: 7 | D10: 10/7 | E10: =Diversion!D30 -> 47.6 | F10: =Diversion!Q30 -> 0 | G10: 0 | H10: =VLOOKUP(B10,Demand!B:G,6,FALSE) -> 2.419354839 | I10: 7479.741408 | J10: =IF(I10>135,VLOOKUP(I10,'Spar ACAP'!D:F,3),4715) -> 4775 | K10: =IF(J10>4715,VLOOKUP(J10,'Spar ACAP'!F:G,2),0) -> 142.2433425 | L10: =IF(J10>4715,VLOOKUP(D10,'Spar EVAP'!E:F,2))*K10 -> 0.7112167126 | M10: 0.2437906655 | O10: Median (AF): | P10: =MEDIAN(I4:I27944) -> 11397.79357 | Q10: 0 | R10: 0
A11: 1936-10-08 | B11: 10 | C11: 8 | D11: 10/8 | E11: =Diversion!D31 -> 47.6 | F11: =Diversion!Q31 -> 0 | G11: 0 | H11: =VLOOKUP(B11,Demand!B:G,6,FALSE) -> 2.419354839 | I11: 7476.367046 | J11: =IF(I11>135,VLOOKUP(I11,'Spar ACAP'!D:F,3),4715) -> 4775 | K11: =IF(J11>4715,VLOOKUP(J11,'Spar ACAP'!F:G,2),0) -> 142.2433425 | L11: =IF(J11>4715,VLOOKUP(D11,'Spar EVAP'!E:F,2))*K11 -> 0.7112167126 | M11: 0.2436806833 | O11: STDEV: | P11: =STDEV(I4:I27944) -> 3504.916187 | Q11: 0 | R11: 0
A12: 1936-10-09 | B12: 10 | C12: 9 | D12: 10/9 | E12: =Diversion!D32 -> 47.6 | F12: =Diversion!Q32 -> 0 | G12: 0 | H12: =VLOOKUP(B12,Demand!B:G,6,FALSE) -> 2.419354839 | I12: 7472.992793 | J12: =IF(I12>135,VLOOKUP(I12,'Spar ACAP'!D:F,3),4715) -> 4775 | K12: =IF(J12>4715,VLOOKUP(J12,'Spar ACAP'!F:G,2),0) -> 142.2433425 | L12: =IF(J12>4715,VLOOKUP(D12,'Spar EVAP'!E:F,2))*K12 -> 0.7112167126 | M12: 0.2435707048 | O12: Minimum (AF): | P12: =MIN(I4:I27944) -> 0 | Q12: 0 | R12: 0
A13: 1936-10-10 | B13: 10 | C13: 10 | D13: 10/10 | E13: =Diversion!D33 -> 45.9 | F13: =Diversion!Q33 -> 0 | G13: 0 | H13: =VLOOKUP(B13,Demand!B:G,6,FALSE) -> 2.419354839 | I13: 7469.618651 | J13: =IF(I13>135,VLOOKUP(I13,'Spar ACAP'!D:F,3),4715) -> 4775 | K13: =IF(J13>4715,VLOOKUP(J13,'Spar ACAP'!F:G,2),0) -> 142.2433425 | L13: =IF(J13>4715,VLOOKUP(D13,'Spar EVAP'!E:F,2))*K13 -> 0.7112167126 | M13: 0.2434607298 | O13: Maximum (AF): | P13: =MAX(I3:I27944) -> 15000 | Q13: 0 | R13: 0
A14: 1936-10-11 | B14: 10 | C14: 11 | D14: 10/11 | E14: =Diversion!D34 -> 45.05 | F14: =Diversion!Q34 -> 0 | G14: 0 | H14: =VLOOKUP(B14,Demand!B:G,6,FALSE) -> 2.419354839 | I14: 7466.244619 | J14: =IF(I14>135,VLOOKUP(I14,'Spar ACAP'!D:F,3),4715) -> 4775 | K14: =IF(J14>4715,VLOOKUP(J14,'Spar ACAP'!F:G,2),0) -> 142.2433425 | L14: =IF(J14>4715,VLOOKUP(D14,'Spar EVAP'!E:F,2))*K14 -> 0.7112167126 | M14: 0.2433507584 | O14: Days Spilling: | P14: =R3/28878 -> 0.05422813214 | Q14: 0 | R14: 0
A15: 1936-10-12 | B15: 10 | C15: 12 | D15: 10/12 | E15: =Diversion!D35 -> 42.5 | F15: =Diversion!Q35 -> 0 | G15: 0 | H15: =VLOOKUP(B15,Demand!B:G,6,FALSE) -> 2.419354839 | I15: 7462.870697 | J15: =IF(I15>135,VLOOKUP(I15,'Spar ACAP'!D:F,3),4715) -> 4775 | K15: =IF(J15>4715,VLOOKUP(J15,'Spar ACAP'!F:G,2),0) -> 142.2433425 | L15: =IF(J15>4715,VLOOKUP(D15,'Spar EVAP'!E:F,2))*K15 -> 0.7112167126 | M15: 0.2432407906 | O15: Seepage1 at Max Storage (AF/d): | P15: =P16/365.25 -> 0.06844626968 | Q15: 0 | R15: 0
A16: 1936-10-13 | B16: 10 | C16: 13 | D16: 10/13 | E16: =Diversion!D36 -> 42.5 | F16: =Diversion!Q36 -> 0 | G16: 0 | H16: =VLOOKUP(B16,Demand!B:G,6,FALSE) -> 2.419354839 | I16: 7459.496884 | J16: =IF(I16>135,VLOOKUP(I16,'Spar ACAP'!D:F,3),4715) -> 4775 | K16: =IF(J16>4715,VLOOKUP(J16,'Spar ACAP'!F:G,2),0) -> 142.2433425 | L16: =IF(J16>4715,VLOOKUP(D16,'Spar EVAP'!E:F,2))*K16 -> 0.7112167126 | M16: 0.2431308264 | O16: Seepage at Max Storage (AF/y): | P16: 25 | Q16: 0 | R16: 0
A17: 1936-10-14 | B17: 10 | C17: 14 | D17: 10/14 | E17: =Diversion!D37 -> 42.5 | F17: =Diversion!Q37 -> 0 | G17: 0 | H17: =VLOOKUP(B17,Demand!B:G,6,FALSE) -> 2.419354839 | I17: 7456.123182 | J17: =IF(I17>135,VLOOKUP(I17,'Spar ACAP'!D:F,3),4715) -> 4775 | K17: =IF(J17>4715,VLOOKUP(J17,'Spar ACAP'!F:G,2),0) -> 142.2433425 | L17: =IF(J17>4715,VLOOKUP(D17,'Spar EVAP'!E:F,2))*K17 -> 0.7112167126 | M17: 0.2430208657 | Q17: 0 | R17: 0
A18: 1936-10-15 | B18: 10 | C18: 15 | D18: 10/15 | E18: =Diversion!D38 -> 42.5 | F18: =Diversion!Q38 -> 0 | G18: 0 | H18: =VLOOKUP(B18,Demand!B:G,6,FALSE) -> 2.419354839 | I18: 7452.749589 | J18: =IF(I18>135,VLOOKUP(I18,'Spar ACAP'!D:F,3),4715) -> 4775 | K18: =IF(J18>4715,VLOOKUP(J18,'Spar ACAP'!F:G,2),0) -> 142.2433425 | L18: =IF(J18>4715,VLOOKUP(D18,'Spar EVAP'!E:F,2))*K18 -> 0.7112167126 | M18: 0.2429109087 | Q18: 0 | R18: 0
A19: 1936-10-16 | B19: 10 | C19: 16 | D19: 10/16 | E19: =Diversion!D39 -> 41.65 | F19: =Diversion!Q39 -> 0 | G19: 0 | H19: =VLOOKUP(B19,Demand!B:G,6,FALSE) -> 2.419354839 | I19: 7449.376107 | J19: =IF(I19>135,VLOOKUP(I19,'Spar ACAP'!D:F,3),4715) -> 4775 | K19: =IF(J19>4715,VLOOKUP(J19,'Spar ACAP'!F:G,2),0) -> 142.2433425 | L19: =IF(J19>4715,VLOOKUP(D19,'Spar EVAP'!E:F,2))*K19 -> 0.7112167126 | M19: 0.2428009552 | Q19: 0 | R19: 0
A20: 1936-10-17 | B20: 10 | C20: 17 | D20: 10/17 | E20: =Diversion!D40 -> 41.65 | F20: =Diversion!Q40 -> 0 | G20: 0 | H20: =VLOOKUP(B20,Demand!B:G,6,FALSE) -> 2.419354839 | I20: 7446.002734 | J20: =IF(I20>135,VLOOKUP(I20,'Spar ACAP'!D:F,3),4715) -> 4775 | K20: =IF(J20>4715,VLOOKUP(J20,'Spar ACAP'!F:G,2),0) -> 142.2433425 | L20: =IF(J20>4715,VLOOKUP(D20,'Spar EVAP'!E:F,2))*K20 -> 0.7112167126 | M20: 0.2426910053 | Q20: 0 | R20: 0
A21: 1936-10-18 | B21: 10 | C21: 18 | D21: 10/18 | E21: =Diversion!D41 -> 41.65 | F21: =Diversion!Q41 -> 0 | G21: 0 | H21: =VLOOKUP(B21,Demand!B:G,6,FALSE) -> 2.419354839 | I21: 7442.629472 | J21: =IF(I21>135,VLOOKUP(I21,'Spar ACAP'!D:F,3),4715) -> 4775 | K21: =IF(J21>4715,VLOOKUP(J21,'Spar ACAP'!F:G,2),0) -> 142.2433425 | L21: =IF(J21>4715,VLOOKUP(D21,'Spar EVAP'!E:F,2))*K21 -> 0.7112167126 | M21: 0.242581059 | Q21: 0 | R21: 0
A22: 1936-10-19 | B22: 10 | C22: 19 | D22: 10/19 | E22: =Diversion!D42 -> 40.8 | F22: =Diversion!Q42 -> 0 | G22: 0 | H22: =VLOOKUP(B22,Demand!B:G,6,FALSE) -> 2.419354839 | I22: 7439.256319 | J22: =IF(I22>135,VLOOKUP(I22,'Spar ACAP'!D:F,3),4715) -> 4775 | K22: =IF(J22>4715,VLOOKUP(J22,'Spar ACAP'!F:G,2),0) -> 142.2433425 | L22: =IF(J22>4715,VLOOKUP(D22,'Spar EVAP'!E:F,2))*K22 -> 0.7112167126 | M22: 0.2424711163 | Q22: 0 | R22: 0
A23: 1936-10-20 | B23: 10 | C23: 20 | D23: 10/20 | E23: =Diversion!D43 -> 40.8 | F23: =Diversion!Q43 -> 0 | G23: 0 | H23: =VLOOKUP(B23,Demand!B:G,6,FALSE) -> 2.419354839 | I23: 7435.883277 | J23: =IF(I23>135,VLOOKUP(I23,'Spar ACAP'!D:F,3),4715) -> 4775 | K23: =IF(J23>4715,VLOOKUP(J23,'Spar ACAP'!F:G,2),0) -> 142.2433425 | L23: =IF(J23>4715,VLOOKUP(D23,'Spar EVAP'!E:F,2))*K23 -> 0.7112167126 | M23: 0.2423611772 | Q23: 0 | R23: 0
A24: 1936-10-21 | B24: 10 | C24: 21 | D24: 10/21 | E24: =Diversion!D44 -> 41.65 | F24: =Diversion!Q44 -> 0 | G24: 0 | H24: =VLOOKUP(B24,Demand!B:G,6,FALSE) -> 2.419354839 | I24: 7432.510344 | J24: =IF(I24>135,VLOOKUP(I24,'Spar ACAP'!D:F,3),4715) -> 4775 | K24: =IF(J24>4715,VLOOKUP(J24,'Spar ACAP'!F:G,2),0) -> 142.2433425 | L24: =IF(J24>4715,VLOOKUP(D24,'Spar EVAP'!E:F,2))*K24 -> 0.7112167126 | M24: 0.2422512416 | Q24: 0 | R24: 0
A25: 1936-10-22 | B25: 10 | C25: 22 | D25: 10/22 | E25: =Diversion!D45 -> 42.5 | F25: =Diversion!Q45 -> 0 | G25: 0 | H25: =VLOOKUP(B25,Demand!B:G,6,FALSE) -> 2.419354839 | I25: 7429.137521 | J25: =IF(I25>135,VLOOKUP(I25,'Spar ACAP'!D:F,3),4715) -> 4775 | K25: =IF(J25>4715,VLOOKUP(J25,'Spar ACAP'!F:G,2),0) -> 142.2433425 | L25: =IF(J25>4715,VLOOKUP(D25,'Spar EVAP'!E:F,2))*K25 -> 0.7112167126 | M25: 0.2421413096 | Q25: 0 | R25: 0
A26: 1936-10-23 | B26: 10 | C26: 23 | D26: 10/23 | E26: =Diversion!D46 -> 42.5 | F26: =Diversion!Q46 -> 0 | G26: 0 | H26: =VLOOKUP(B26,Demand!B:G,6,FALSE) -> 2.419354839 | I26: 7425.764808 | J26: =IF(I26>135,VLOOKUP(I26,'Spar ACAP'!D:F,3),4715) -> 4775 | K26: =IF(J26>4715,VLOOKUP(J26,'Spar ACAP'!F:G,2),0) -> 142.2433425 | L26: =IF(J26>4715,VLOOKUP(D26,'Spar EVAP'!E:F,2))*K26 -> 0.7112167126 | M26: 0.2420313813 | Q26: 0 | R26: 0
A27: 1936-10-24 | B27: 10 | C27: 24 | D27: 10/24 | E27: =Diversion!D47 -> 48.45 | F27: =Diversion!Q47 -> 0 | G27: 0 | H27: =VLOOKUP(B27,Demand!B:G,6,FALSE) -> 2.419354839 | I27: 7422.392205 | J27: =IF(I27>135,VLOOKUP(I27,'Spar ACAP'!D:F,3),4715) -> 4775 | K27: =IF(J27>4715,VLOOKUP(J27,'Spar ACAP'!F:G,2),0) -> 142.2433425 | L27: =IF(J27>4715,VLOOKUP(D27,'Spar EVAP'!E:F,2))*K27 -> 0.7112167126 | M27: 0.2419214564 | Q27: 0 | R27: 0
A28: 1936-10-25 | B28: 10 | C28: 25 | D28: 10/25 | E28: =Diversion!D48 -> 58.65 | F28: =Diversion!Q48 -> 0 | G28: 0 | H28: =VLOOKUP(B28,Demand!B:G,6,FALSE) -> 2.419354839 | I28: 7419.019712 | J28: =IF(I28>135,VLOOKUP(I28,'Spar ACAP'!D:F,3),4715) -> 4775 | K28: =IF(J28>4715,VLOOKUP(J28,'Spar ACAP'!F:G,2),0) -> 142.2433425 | L28: =IF(J28>4715,VLOOKUP(D28,'Spar EVAP'!E:F,2))*K28 -> 0.7112167126 | M28: 0.2418115352 | Q28: 0 | R28: 0
A29: 1936-10-26 | B29: 10 | C29: 26 | D29: 10/26 | E29: =Diversion!D49 -> 53.55 | F29: =Diversion!Q49 -> 0 | G29: 0 | H29: =VLOOKUP(B29,Demand!B:G,6,FALSE) -> 2.419354839 | I29: 7415.647329 | J29: =IF(I29>135,VLOOKUP(I29,'Spar ACAP'!D:F,3),4715) -> 4775 | K29: =IF(J29>4715,VLOOKUP(J29,'Spar ACAP'!F:G,2),0) -> 142.2433425 | L29: =IF(J29>4715,VLOOKUP(D29,'Spar EVAP'!E:F,2))*K29 -> 0.7112167126 | M29: 0.2417016176 | Q29: 0 | R29: 0
A30: 1936-10-27 | B30: 10 | C30: 27 | D30: 10/27 | E30: =Diversion!D50 -> 49.3 | F30: =Diversion!Q50 -> 0 | G30: 0 | H30: =VLOOKUP(B30,Demand!B:G,6,FALSE) -> 2.419354839 | I30: 7412.275056 | J30: =IF(I30>135,VLOOKUP(I30,'Spar ACAP'!D:F,3),4715) -> 4775 | K30: =IF(J30>4715,VLOOKUP(J30,'Spar ACAP'!F:G,2),0) -> 142.2433425 | L30: =IF(J30>4715,VLOOKUP(D30,'Spar EVAP'!E:F,2))*K30 -> 0.7112167126 | M30: 0.2415917035 | Q30: 0 | R30: 0
A31: 1936-10-28 | B31: 10 | C31: 28 | D31: 10/28 | E31: =Diversion!D51 -> 48.45 | F31: =Diversion!Q51 -> 0 | G31: 0 | H31: =VLOOKUP(B31,Demand!B:G,6,FALSE) -> 2.419354839 | I31: 7408.902893 | J31: =IF(I31>135,VLOOKUP(I31,'Spar ACAP'!D:F,3),4715) -> 4775 | K31: =IF(J31>4715,VLOOKUP(J31,'Spar ACAP'!F:G,2),0) -> 142.2433425 | L31: =IF(J31>4715,VLOOKUP(D31,'Spar EVAP'!E:F,2))*K31 -> 0.7112167126 | M31: 0.2414817931 | Q31: 0 | R31: 0
A32: 1936-10-29 | B32: 10 | C32: 29 | D32: 10/29 | E32: =Diversion!D52 -> 45.9 | F32: =Diversion!Q52 -> 0 | G32: 0 | H32: =VLOOKUP(B32,Demand!B:G,6,FALSE) -> 2.419354839 | I32: 7405.530839 | J32: =IF(I32>135,VLOOKUP(I32,'Spar ACAP'!D:F,3),4715) -> 4775 | K32: =IF(J32>4715,VLOOKUP(J32,'Spar ACAP'!F:G,2),0) -> 142.2433425 | L32: =IF(J32>4715,VLOOKUP(D32,'Spar EVAP'!E:F,2))*K32 -> 0.7112167126 | M32: 0.2413718862 | Q32: 0 | R32: 0
A33: 1936-10-30 | B33: 10 | C33: 30 | D33: 10/30 | E33: =Diversion!D53 -> 51 | F33: =Diversion!Q53 -> 0 | G33: 0 | H33: =VLOOKUP(B33,Demand!B:G,6,FALSE) -> 2.419354839 | I33: 7402.158896 | J33: =IF(I33>135,VLOOKUP(I33,'Spar ACAP'!D:F,3),4715) -> 4775 | K33: =IF(J33>4715,VLOOKUP(J33,'Spar ACAP'!F:G,2),0) -> 142.2433425 | L33: =IF(J33>4715,VLOOKUP(D33,'Spar EVAP'!E:F,2))*K33 -> 0.7112167126 | M33: 0.2412619829 | Q33: 0 | R33: 0
A34: 1936-10-31 | B34: 10 | C34: 31 | D34: 10/31 | E34: =Diversion!D54 -> 57.8 | F34: =Diversion!Q54 -> 0 | G34: 0 | H34: =VLOOKUP(B34,Demand!B:G,6,FALSE) -> 2.419354839 | I34: 7398.787062 | J34: =IF(I34>135,VLOOKUP(I34,'Spar ACAP'!D:F,3),4715) -> 4775 | K34: =IF(J34>4715,VLOOKUP(J34,'Spar ACAP'!F:G,2),0) -> 142.2433425 | L34: =IF(J34>4715,VLOOKUP(D34,'Spar EVAP'!E:F,2))*K34 -> 0.7112167126 | M34: 0.2411520831 | Q34: 0 | R34: 0
A35: 1936-11-01 | B35: 11 | C35: 1 | D35: 11/1 | E35: =Diversion!D55 -> 54.4 | F35: =Diversion!Q55 -> 0 | G35: 0 | H35: =VLOOKUP(B35,Demand!B:G,6,FALSE) -> 0 | I35: 7395.415339 | J35: =IF(I35>135,VLOOKUP(I35,'Spar ACAP'!D:F,3),4715) -> 4775 | K35: =IF(J35>4715,VLOOKUP(J35,'Spar ACAP'!F:G,2),0) -> 142.2433425 | L35: =IF(J35>4715,VLOOKUP(D35,'Spar EVAP'!E:F,2))*K35 -> 0.7112167126 | M35: 0.241042187 | Q35: 0 | R35: 0
A36: 1936-11-02 | B36: 11 | C36: 2 | D36: 11/2 | E36: =Diversion!D56 -> 56.1 | F36: =Diversion!Q56 -> 0 | G36: 0 | H36: =VLOOKUP(B36,Demand!B:G,6,FALSE) -> 0 | I36: 7394.46308 | J36: =IF(I36>135,VLOOKUP(I36,'Spar ACAP'!D:F,3),4715) -> 4775 | K36: =IF(J36>4715,VLOOKUP(J36,'Spar ACAP'!F:G,2),0) -> 142.2433425 | L36: =IF(J36>4715,VLOOKUP(D36,'Spar EVAP'!E:F,2))*K36 -> 0.7112167126 | M36: 0.2410111496 | Q36: 0 | R36: 0
A37: 1936-11-03 | B37: 11 | C37: 3 | D37: 11/3 | E37: =Diversion!D57 -> 54.4 | F37: =Diversion!Q57 -> 0 | G37: 0 | H37: =VLOOKUP(B37,Demand!B:G,6,FALSE) -> 0 | I37: 7393.510852 | J37: =IF(I37>135,VLOOKUP(I37,'Spar ACAP'!D:F,3),4715) -> 4775 | K37: =IF(J37>4715,VLOOKUP(J37,'Spar ACAP'!F:G,2),0) -> 142.2433425 | L37: =IF(J37>4715,VLOOKUP(D37,'Spar EVAP'!E:F,2))*K37 -> 0.7112167126 | M37: 0.2409801132 | Q37: 0 | R37: 0
A38: 1936-11-04 | B38: 11 | C38: 4 | D38: 11/4 | E38: =Diversion!D58 -> 54.4 | F38: =Diversion!Q58 -> 0 | G38: 0 | H38: =VLOOKUP(B38,Demand!B:G,6,FALSE) -> 0 | I38: 7392.558655 | J38: =IF(I38>135,VLOOKUP(I38,'Spar ACAP'!D:F,3),4715) -> 4775 | K38: =IF(J38>4715,VLOOKUP(J38,'Spar ACAP'!F:G,2),0) -> 142.2433425 | L38: =IF(J38>4715,VLOOKUP(D38,'Spar EVAP'!E:F,2))*K38 -> 0.7112167126 | M38: 0.2409490778 | Q38: 0 | R38: 0
A39: 1936-11-05 | B39: 11 | C39: 5 | D39: 11/5 | E39: =Diversion!D59 -> 54.4 | F39: =Diversion!Q59 -> 0 | G39: 0 | H39: =VLOOKUP(B39,Demand!B:G,6,FALSE) -> 0 | I39: 7391.606489 | J39: =IF(I39>135,VLOOKUP(I39,'Spar ACAP'!D:F,3),4715) -> 4775 | K39: =IF(J39>4715,VLOOKUP(J39,'Spar ACAP'!F:G,2),0) -> 142.2433425 | L39: =IF(J39>4715,VLOOKUP(D39,'Spar EVAP'!E:F,2))*K39 -> 0.7112167126 | M39: 0.2409180434 | Q39: 0 | R39: 0
A40: 1936-11-06 | B40: 11 | C40: 6 | D40: 11/6 | E40: =Diversion!D60 -> 53.55 | F40: =Diversion!Q60 -> 0 | G40: 0 | H40: =VLOOKUP(B40,Demand!B:G,6,FALSE) -> 0 | I40: 7390.654355 | J40: =IF(I40>135,VLOOKUP(I40,'Spar ACAP'!D:F,3),4715) -> 4775 | K40: =IF(J40>4715,VLOOKUP(J40,'Spar ACAP'!F:G,2),0) -> 142.2433425 | L40: =IF(J40>4715,VLOOKUP(D40,'Spar EVAP'!E:F,2))*K40 -> 0.7112167126 | M40: 0.24088701 | Q40: 0 | R40: 0
A41: 1936-11-07 | B41: 11 | C41: 7 | D41: 11/7 | E41: =Diversion!D61 -> 52.7 | F41: =Diversion!Q61 -> 0 | G41: 0 | H41: =VLOOKUP(B41,Demand!B:G,6,FALSE) -> 0 | I41: 7389.702251 | J41: =IF(I41>135,VLOOKUP(I41,'Spar ACAP'!D:F,3),4715) -> 4775 | K41: =IF(J41>4715,VLOOKUP(J41,'Spar ACAP'!F:G,2),0) -> 142.2433425 | L41: =IF(J41>4715,VLOOKUP(D41,'Spar EVAP'!E:F,2))*K41 -> 0.7112167126 | M41: 0.2408559777 | Q41: 0 | R41: 0
A42: 1936-11-08 | B42: 11 | C42: 8 | D42: 11/8 | E42: =Diversion!D62 -> 52.7 | F42: =Diversion!Q62 -> 0 | G42: 0 | H42: =VLOOKUP(B42,Demand!B:G,6,FALSE) -> 0 | I42: 7388.750178 | J42: =IF(I42>135,VLOOKUP(I42,'Spar ACAP'!D:F,3),4715) -> 4775 | K42: =IF(J42>4715,VLOOKUP(J42,'Spar ACAP'!F:G,2),0) -> 142.2433425 | L42: =IF(J42>4715,VLOOKUP(D42,'Spar EVAP'!E:F,2))*K42 -> 0.7112167126 | M42: 0.2408249463 | Q42: 0 | R42: 0
A43: 1936-11-09 | B43: 11 | C43: 9 | D43: 11/9 | E43: =Diversion!D63 -> 51 | F43: =Diversion!Q63 -> 0 | G43: 0 | H43: =VLOOKUP(B43,Demand!B:G,6,FALSE) -> 0 | I43: 7387.798137 | J43: =IF(I43>135,VLOOKUP(I43,'Spar ACAP'!D:F,3),4715) -> 4775 | K43: =IF(J43>4715,VLOOKUP(J43,'Spar ACAP'!F:G,2),0) -> 142.2433425 | L43: =IF(J43>4715,VLOOKUP(D43,'Spar EVAP'!E:F,2))*K43 -> 0.7112167126 | M43: 0.240793916 | Q43: 0 | R43: 0
A44: 1936-11-10 | B44: 11 | C44: 10 | D44: 11/10 | E44: =Diversion!D64 -> 49.3 | F44: =Diversion!Q64 -> 0 | G44: 0 | H44: =VLOOKUP(B44,Demand!B:G,6,FALSE) -> 0 | I44: 7386.846126 | J44: =IF(I44>135,VLOOKUP(I44,'Spar ACAP'!D:F,3),4715) -> 4775 | K44: =IF(J44>4715,VLOOKUP(J44,'Spar ACAP'!F:G,2),0) -> 142.2433425 | L44: =IF(J44>4715,VLOOKUP(D44,'Spar EVAP'!E:F,2))*K44 -> 0.7112167126 | M44: 0.2407628867 | Q44: 0 | R44: 0
A45: 1936-11-11 | B45: 11 | C45: 11 | D45: 11/11 | E45: =Diversion!D65 -> 51 | F45: =Diversion!Q65 -> 0 | G45: 0 | H45: =VLOOKUP(B45,Demand!B:G,6,FALSE) -> 0 | I45: 7385.894146 | J45: =IF(I45>135,VLOOKUP(I45,'Spar ACAP'!D:F,3),4715) -> 4775 | K45: =IF(J45>4715,VLOOKUP(J45,'Spar ACAP'!F:G,2),0) -> 142.2433425 | L45: =IF(J45>4715,VLOOKUP(D45,'Spar EVAP'!E:F,2))*K45 -> 0.7112167126 | M45: 0.2407318584 | Q45: 0 | R45: 0
A46: 1936-11-12 | B46: 11 | C46: 12 | D46: 11/12 | E46: =Diversion!D66 -> 49.3 | F46: =Diversion!Q66 -> 0 | G46: 0 | H46: =VLOOKUP(B46,Demand!B:G,6,FALSE) -> 0 | I46: 7384.942198 | J46: =IF(I46>135,VLOOKUP(I46,'Spar ACAP'!D:F,3),4715) -> 4775 | K46: =IF(J46>4715,VLOOKUP(J46,'Spar ACAP'!F:G,2),0) -> 142.2433425 | L46: =IF(J46>4715,VLOOKUP(D46,'Spar EVAP'!E:F,2))*K46 -> 0.7112167126 | M46: 0.2407008311 | Q46: 0 | R46: 0
A47: 1936-11-13 | B47: 11 | C47: 13 | D47: 11/13 | E47: =Diversion!D67 -> 49.3 | F47: =Diversion!Q67 -> 0 | G47: 0 | H47: =VLOOKUP(B47,Demand!B:G,6,FALSE) -> 0 | I47: 7383.99028 | J47: =IF(I47>135,VLOOKUP(I47,'Spar ACAP'!D:F,3),4715) -> 4775 | K47: =IF(J47>4715,VLOOKUP(J47,'Spar ACAP'!F:G,2),0) -> 142.2433425 | L47: =IF(J47>4715,VLOOKUP(D47,'Spar EVAP'!E:F,2))*K47 -> 0.7112167126 | M47: 0.2406698048 | Q47: 0 | R47: 0
A48: 1936-11-14 | B48: 11 | C48: 14 | D48: 11/14 | E48: =Diversion!D68 -> 51 | F48: =Diversion!Q68 -> 0 | G48: 0 | H48: =VLOOKUP(B48,Demand!B:G,6,FALSE) -> 0 | I48: 7383.038394 | J48: =IF(I48>135,VLOOKUP(I48,'Spar ACAP'!D:F,3),4715) -> 4775 | K48: =IF(J48>4715,VLOOKUP(J48,'Spar ACAP'!F:G,2),0) -> 142.2433425 | L48: =IF(J48>4715,VLOOKUP(D48,'Spar EVAP'!E:F,2))*K48 -> 0.7112167126 | M48: 0.2406387795 | Q48: 0 | R48: 0
A49: 1936-11-15 | B49: 11 | C49: 15 | D49: 11/15 | E49: =Diversion!D69 -> 52.7 | F49: =Diversion!Q69 -> 0 | G49: 0 | H49: =VLOOKUP(B49,Demand!B:G,6,FALSE) -> 0 | I49: 7382.086538 | J49: =IF(I49>135,VLOOKUP(I49,'Spar ACAP'!D:F,3),4715) -> 4775 | K49: =IF(J49>4715,VLOOKUP(J49,'Spar ACAP'!F:G,2),0) -> 142.2433425 | L49: =IF(J49>4715,VLOOKUP(D49,'Spar EVAP'!E:F,2))*K49 -> 0.7112167126 | M49: 0.2406077552 | Q49: 0 | R49: 0
A50: 1936-11-16 | B50: 11 | C50: 16 | D50: 11/16 | E50: =Diversion!D70 -> 51 | F50: =Diversion!Q70 -> 0 | G50: 0 | H50: =VLOOKUP(B50,Demand!B:G,6,FALSE) -> 0 | I50: 7381.134714 | J50: =IF(I50>135,VLOOKUP(I50,'Spar ACAP'!D:F,3),4715) -> 4775 | K50: =IF(J50>4715,VLOOKUP(J50,'Spar ACAP'!F:G,2),0) -> 142.2433425 | L50: =IF(J50>4715,VLOOKUP(D50,'Spar EVAP'!E:F,2))*K50 -> 0.7112167126 | M50: 0.240576732 | Q50: 0 | R50: 0
A51: 1936-11-17 | B51: 11 | C51: 17 | D51: 11/17 | E51: =Diversion!D71 -> 51 | F51: =Diversion!Q71 -> 0 | G51: 0 | H51: =VLOOKUP(B51,Demand!B:G,6,FALSE) -> 0 | I51: 7380.18292 | J51: =IF(I51>135,VLOOKUP(I51,'Spar ACAP'!D:F,3),4715) -> 4775 | K51: =IF(J51>4715,VLOOKUP(J51,'Spar ACAP'!F:G,2),0) -> 142.2433425 | L51: =IF(J51>4715,VLOOKUP(D51,'Spar EVAP'!E:F,2))*K51 -> 0.7112167126 | M51: 0.2405457097 | Q51: 0 | R51: 0
A52: 1936-11-18 | B52: 11 | C52: 18 | D52: 11/18 | E52: =Diversion!D72 -> 49.3 | F52: =Diversion!Q72 -> 0 | G52: 0 | H52: =VLOOKUP(B52,Demand!B:G,6,FALSE) -> 0 | I52: 7379.231158 | J52: =IF(I52>135,VLOOKUP(I52,'Spar ACAP'!D:F,3),4715) -> 4775 | K52: =IF(J52>4715,VLOOKUP(J52,'Spar ACAP'!F:G,2),0) -> 142.2433425 | L52: =IF(J52>4715,VLOOKUP(D52,'Spar EVAP'!E:F,2))*K52 -> 0.7112167126 | M52: 0.2405146885 | Q52: 0 | R52: 0
A53: 1936-11-19 | B53: 11 | C53: 19 | D53: 11/19 | E53: =Diversion!D73 -> 51 | F53: =Diversion!Q73 -> 0 | G53: 0 | H53: =VLOOKUP(B53,Demand!B:G,6,FALSE) -> 0 | I53: 7378.279427 | J53: =IF(I53>135,VLOOKUP(I53,'Spar ACAP'!D:F,3),4715) -> 4775 | K53: =IF(J53>4715,VLOOKUP(J53,'Spar ACAP'!F:G,2),0) -> 142.2433425 | L53: =IF(J53>4715,VLOOKUP(D53,'Spar EVAP'!E:F,2))*K53 -> 0.7112167126 | M53: 0.2404836683 | Q53: 0 | R53: 0
A54: 1936-11-20 | B54: 11 | C54: 20 | D54: 11/20 | E54: =Diversion!D74 -> 53.55 | F54: =Diversion!Q74 -> 0 | G54: 0 | H54: =VLOOKUP(B54,Demand!B:G,6,FALSE) -> 0 | I54: 7377.327726 | J54: =IF(I54>135,VLOOKUP(I54,'Spar ACAP'!D:F,3),4715) -> 4775 | K54: =IF(J54>4715,VLOOKUP(J54,'Spar ACAP'!F:G,2),0) -> 142.2433425 | L54: =IF(J54>4715,VLOOKUP(D54,'Spar EVAP'!E:F,2))*K54 -> 0.7112167126 | M54: 0.2404526491 | Q54: 0 | R54: 0
A55: 1936-11-21 | B55: 11 | C55: 21 | D55: 11/21 | E55: =Diversion!D75 -> 56.1 | F55: =Diversion!Q75 -> 0 | G55: 0 | H55: =VLOOKUP(B55,Demand!B:G,6,FALSE) -> 0 | I55: 7376.376057 | J55: =IF(I55>135,VLOOKUP(I55,'Spar ACAP'!D:F,3),4715) -> 4775 | K55: =IF(J55>4715,VLOOKUP(J55,'Spar ACAP'!F:G,2),0) -> 142.2433425 | L55: =IF(J55>4715,VLOOKUP(D55,'Spar EVAP'!E:F,2))*K55 -> 0.7112167126 | M55: 0.2404216309 | Q55: 0 | R55: 0
A56: 1936-11-22 | B56: 11 | C56: 22 | D56: 11/22 | E56: =Diversion!D76 -> 64.6 | F56: =Diversion!Q76 -> 0 | G56: 0 | H56: =VLOOKUP(B56,Demand!B:G,6,FALSE) -> 0 | I56: 7375.424418 | J56: =IF(I56>135,VLOOKUP(I56,'Spar ACAP'!D:F,3),4715) -> 4775 | K56: =IF(J56>4715,VLOOKUP(J56,'Spar ACAP'!F:G,2),0) -> 142.2433425 | L56: =IF(J56>4715,VLOOKUP(D56,'Spar EVAP'!E:F,2))*K56 -> 0.7112167126 | M56: 0.2403906137 | Q56: 0 | R56: 0
A57: 1936-11-23 | B57: 11 | C57: 23 | D57: 11/23 | E57: =Diversion!D77 -> 68.85 | F57: =Diversion!Q77 -> 0 | G57: 0 | H57: =VLOOKUP(B57,Demand!B:G,6,FALSE) -> 0 | I57: 7374.472811 | J57: =IF(I57>135,VLOOKUP(I57,'Spar ACAP'!D:F,3),4715) -> 4775 | K57: =IF(J57>4715,VLOOKUP(J57,'Spar ACAP'!F:G,2),0) -> 142.2433425 | L57: =IF(J57>4715,VLOOKUP(D57,'Spar EVAP'!E:F,2))*K57 -> 0.7112167126 | M57: 0.2403595975 | Q57: 0 | R57: 0
A58: 1936-11-24 | B58: 11 | C58: 24 | D58: 11/24 | E58: =Diversion!D78 -> 74.8 | F58: =Diversion!Q78 -> 0 | G58: 0 | H58: =VLOOKUP(B58,Demand!B:G,6,FALSE) -> 0 | I58: 7373.521235 | J58: =IF(I58>135,VLOOKUP(I58,'Spar ACAP'!D:F,3),4715) -> 4775 | K58: =IF(J58>4715,VLOOKUP(J58,'Spar ACAP'!F:G,2),0) -> 142.2433425 | L58: =IF(J58>4715,VLOOKUP(D58,'Spar EVAP'!E:F,2))*K58 -> 0.7112167126 | M58: 0.2403285823 | Q58: 0 | R58: 0
A59: 1936-11-25 | B59: 11 | C59: 25 | D59: 11/25 | E59: =Diversion!D79 -> 78.2 | F59: =Diversion!Q79 -> 0 | G59: 0 | H59: =VLOOKUP(B59,Demand!B:G,6,FALSE) -> 0 | I59: 7372.569689 | J59: =IF(I59>135,VLOOKUP(I59,'Spar ACAP'!D:F,3),4715) -> 4775 | K59: =IF(J59>4715,VLOOKUP(J59,'Spar ACAP'!F:G,2),0) -> 142.2433425 | L59: =IF(J59>4715,VLOOKUP(D59,'Spar EVAP'!E:F,2))*K59 -> 0.7112167126 | M59: 0.2402975682 | Q59: 0 | R59: 0
A60: 1936-11-26 | B60: 11 | C60: 26 | D60: 11/26 | E60: =Diversion!D80 -> 78.2 | F60: =Diversion!Q80 -> 0 | G60: 0 | H60: =VLOOKUP(B60,Demand!B:G,6,FALSE) -> 0 | I60: 7371.618175 | J60: =IF(I60>135,VLOOKUP(I60,'Spar ACAP'!D:F,3),4715) -> 4775 | K60: =IF(J60>4715,VLOOKUP(J60,'Spar ACAP'!F:G,2),0) -> 142.2433425 | L60: =IF(J60>4715,VLOOKUP(D60,'Spar EVAP'!E:F,2))*K60 -> 0.7112167126 | M60: 0.240266555 | Q60: 0 | R60: 0
A61: 1936-11-27 | B61: 11 | C61: 27 | D61: 11/27 | E61: =Diversion!D81 -> 73.1 | F61: =Diversion!Q81 -> 0 | G61: 0 | H61: =VLOOKUP(B61,Demand!B:G,6,FALSE) -> 0 | I61: 7370.666692 | J61: =IF(I61>135,VLOOKUP(I61,'Spar ACAP'!D:F,3),4715) -> 4775 | K61: =IF(J61>4715,VLOOKUP(J61,'Spar ACAP'!F:G,2),0) -> 142.2433425 | L61: =IF(J61>4715,VLOOKUP(D61,'Spar EVAP'!E:F,2))*K61 -> 0.7112167126 | M61: 0.2402355429 | Q61: 0 | R61: 0
A62: 1936-11-28 | B62: 11 | C62: 28 | D62: 11/28 | E62: =Diversion!D82 -> 76.5 | F62: =Diversion!Q82 -> 0 | G62: 0 | H62: =VLOOKUP(B62,Demand!B:G,6,FALSE) -> 0 | I62: 7369.71524 | J62: =IF(I62>135,VLOOKUP(I62,'Spar ACAP'!D:F,3),4715) -> 4775 | K62: =IF(J62>4715,VLOOKUP(J62,'Spar ACAP'!F:G,2),0) -> 142.2433425 | L62: =IF(J62>4715,VLOOKUP(D62,'Spar EVAP'!E:F,2))*K62 -> 0.7112167126 | M62: 0.2402045318 | Q62: 0 | R62: 0
A63: 1936-11-29 | B63: 11 | C63: 29 | D63: 11/29 | E63: =Diversion!D83 -> 78.2 | F63: =Diversion!Q83 -> 0 | G63: 0 | H63: =VLOOKUP(B63,Demand!B:G,6,FALSE) -> 0 | I63: 7368.763818 | J63: =IF(I63>135,VLOOKUP(I63,'Spar ACAP'!D:F,3),4715) -> 4775 | K63: =IF(J63>4715,VLOOKUP(J63,'Spar ACAP'!F:G,2),0) -> 142.2433425 | L63: =IF(J63>4715,VLOOKUP(D63,'Spar EVAP'!E:F,2))*K63 -> 0.7112167126 | M63: 0.2401735217 | Q63: 0 | R63: 0
A64: 1936-11-30 | B64: 11 | C64: 30 | D64: 11/30 | E64: =Diversion!D84 -> 76.5 | F64: =Diversion!Q84 -> 0 | G64: 0 | H64: =VLOOKUP(B64,Demand!B:G,6,FALSE) -> 0 | I64: 7367.812428 | J64: =IF(I64>135,VLOOKUP(I64,'Spar ACAP'!D:F,3),4715) -> 4775 | K64: =IF(J64>4715,VLOOKUP(J64,'Spar ACAP'!F:G,2),0) -> 142.2433425 | L64: =IF(J64>4715,VLOOKUP(D64,'Spar EVAP'!E:F,2))*K64 -> 0.7112167126 | M64: 0.2401425126 | Q64: 0 | R64: 0
A65: 1936-12-01 | B65: 12 | C65: 1 | D65: 12/1 | E65: =Diversion!D85 -> 76.5 | F65: =Diversion!Q85 -> 0 | G65: 0 | H65: =VLOOKUP(B65,Demand!B:G,6,FALSE) -> 0 | I65: 7366.861069 | J65: =IF(I65>135,VLOOKUP(I65,'Spar ACAP'!D:F,3),4715) -> 4775 | K65: =IF(J65>4715,VLOOKUP(J65,'Spar ACAP'!F:G,2),0) -> 142.2433425 | L65: =IF(J65>4715,VLOOKUP(D65,'Spar EVAP'!E:F,2))*K65 -> 0.7112167126 | M65: 0.2401115045 | Q65: 0 | R65: 0
A66: 1936-12-02 | B66: 12 | C66: 2 | D66: 12/2 | E66: =Diversion!D86 -> 73.1 | F66: =Diversion!Q86 -> 0 | G66: 0 | H66: =VLOOKUP(B66,Demand!B:G,6,FALSE) -> 0 | I66: 7365.909741 | J66: =IF(I66>135,VLOOKUP(I66,'Spar ACAP'!D:F,3),4715) -> 4775 | K66: =IF(J66>4715,VLOOKUP(J66,'Spar ACAP'!F:G,2),0) -> 142.2433425 | L66: =IF(J66>4715,VLOOKUP(D66,'Spar EVAP'!E:F,2))*K66 -> 0.7112167126 | M66: 0.2400804974 | Q66: 0 | R66: 0
A67: 1936-12-03 | B67: 12 | C67: 3 | D67: 12/3 | E67: =Diversion!D87 -> 71.4 | F67: =Diversion!Q87 -> 0 | G67: 0 | H67: =VLOOKUP(B67,Demand!B:G,6,FALSE) -> 0 | I67: 7364.958444 | J67: =IF(I67>135,VLOOKUP(I67,'Spar ACAP'!D:F,3),4715) -> 4775 | K67: =IF(J67>4715,VLOOKUP(J67,'Spar ACAP'!F:G,2),0) -> 142.2433425 | L67: =IF(J67>4715,VLOOKUP(D67,'Spar EVAP'!E:F,2))*K67 -> 0.7112167126 | M67: 0.2400494913 | Q67: 0 | R67: 0
A68: 1936-12-04 | B68: 12 | C68: 4 | D68: =MONTH(A68)&"/"&DAY(A68) -> 12/4 | E68: =Diversion!D88 -> 70.55 | F68: =Diversion!Q88 -> 0 | G68: 0 | H68: =VLOOKUP(B68,Demand!B:G,6,FALSE) -> 0 | I68: =IF(I67+G67-H67-L67-M67>$P$6,$P$6,IF(I67+G67-H67-L67-M67>0,I67+G67-H67-L67-M67,0)) -> 7364.007177 | J68: =IF(I68>135,VLOOKUP(I68,'Spar ACAP'!D:F,3),4715) -> 4775 | K68: =IF(J68>4715,VLOOKUP(J68,'Spar ACAP'!F:G,2),0) -> 142.2433425 | L68: =IF(J68>4715,VLOOKUP(D68,'Spar EVAP'!E:F,2))*K68 -> 0.7112167126 | M68: 0.2400184863 | Q68: 0 | R68: 0
A69: 1936-12-05 | B69: =MONTH(A69) -> 12 | C69: =DAY(A69) -> 5 | D69: 12/5 | E69: =Diversion!D89 -> 73.1 | F69: =Diversion!Q89 -> 0 | G69: =1.98347109902*F69 -> 0 | H69: =VLOOKUP(B69,Demand!B:G,6,FALSE) -> 0 | I69: 7363.055942 | J69: =IF(I69>135,VLOOKUP(I69,'Spar ACAP'!D:F,3),4715) -> 4775 | K69: =IF(J69>4715,VLOOKUP(J69,'Spar ACAP'!F:G,2),0) -> 142.2433425 | L69: =IF(J69>4715,VLOOKUP(D69,'Spar EVAP'!E:F,2))*K69 -> 0.7112167126 | M69: =($P$15)*I69/2100 -> 0.2399874822 | Q69: =IF(I69<$P$7,1,0) -> 0 | R69: =IF(I69>P$13-1,1,0) -> 0
A70: 1936-12-06 | B70: 12 | C70: 6 | D70: 12/6 | E70: =Diversion!D90 -> 71.4 | F70: =Diversion!Q90 -> 0 | G70: 0 | H70: =VLOOKUP(B70,Demand!B:G,6,FALSE) -> 0 | I70: 7362.104738 | J70: =IF(I70>135,VLOOKUP(I70,'Spar ACAP'!D:F,3),4715) -> 4775 | K70: =IF(J70>4715,VLOOKUP(J70,'Spar ACAP'!F:G,2),0) -> 142.2433425 | L70: =IF(J70>4715,VLOOKUP(D70,'Spar EVAP'!E:F,2))*K70 -> 0.7112167126 | M70: 0.2399564792 | Q70: 0 | R70: 0
A71: 1936-12-07 | B71: 12 | C71: 7 | D71: 12/7 | E71: =Diversion!D91 -> 67.15 | F71: =Diversion!Q91 -> 0 | G71: 0 | H71: =VLOOKUP(B71,Demand!B:G,6,FALSE) -> 0 | I71: 7361.153565 | J71: =IF(I71>135,VLOOKUP(I71,'Spar ACAP'!D:F,3),4715) -> 4775 | K71: =IF(J71>4715,VLOOKUP(J71,'Spar ACAP'!F:G,2),0) -> 142.2433425 | L71: =IF(J71>4715,VLOOKUP(D71,'Spar EVAP'!E:F,2))*K71 -> 0.7112167126 | M71: 0.2399254772 | Q71: 0 | R71: 0
A72: 1936-12-08 | B72: 12 | C72: 8 | D72: 12/8 | E72: =Diversion!D92 -> 60.35 | F72: =Diversion!Q92 -> 0 | G72: 0 | H72: =VLOOKUP(B72,Demand!B:G,6,FALSE) -> 0 | I72: 7360.202423 | J72: =IF(I72>135,VLOOKUP(I72,'Spar ACAP'!D:F,3),4715) -> 4775 | K72: =IF(J72>4715,VLOOKUP(J72,'Spar ACAP'!F:G,2),0) -> 142.2433425 | L72: =IF(J72>4715,VLOOKUP(D72,'Spar EVAP'!E:F,2))*K72 -> 0.7112167126 | M72: 0.2398944761 | Q72: 0 | R72: 0
A73: 1936-12-09 | B73: 12 | C73: 9 | D73: 12/9 | E73: =Diversion!D93 -> 60.35 | F73: =Diversion!Q93 -> 0 | G73: 0 | H73: =VLOOKUP(B73,Demand!B:G,6,FALSE) -> 0 | I73: 7359.251311 | J73: =IF(I73>135,VLOOKUP(I73,'Spar ACAP'!D:F,3),4715) -> 4775 | K73: =IF(J73>4715,VLOOKUP(J73,'Spar ACAP'!F:G,2),0) -> 142.2433425 | L73: =IF(J73>4715,VLOOKUP(D73,'Spar EVAP'!E:F,2))*K73 -> 0.7112167126 | M73: 0.2398634761 | Q73: 0 | R73: 0
A74: 1936-12-10 | B74: 12 | C74: 10 | D74: 12/10 | E74: =Diversion!D94 -> 58.65 | F74: =Diversion!Q94 -> 0 | G74: 0 | H74: =VLOOKUP(B74,Demand!B:G,6,FALSE) -> 0 | I74: 7358.300231 | J74: =IF(I74>135,VLOOKUP(I74,'Spar ACAP'!D:F,3),4715) -> 4775 | K74: =IF(J74>4715,VLOOKUP(J74,'Spar ACAP'!F:G,2),0) -> 142.2433425 | L74: =IF(J74>4715,VLOOKUP(D74,'Spar EVAP'!E:F,2))*K74 -> 0.7112167126 | M74: 0.2398324771 | Q74: 0 | R74: 0
A75: 1936-12-11 | B75: 12 | C75: 11 | D75: 12/11 | E75: =Diversion!D95 -> 57.8 | F75: =Diversion!Q95 -> 0 | G75: 0 | H75: =VLOOKUP(B75,Demand!B:G,6,FALSE) -> 0 | I75: 7357.349182 | J75: =IF(I75>135,VLOOKUP(I75,'Spar ACAP'!D:F,3),4715) -> 4775 | K75: =IF(J75>4715,VLOOKUP(J75,'Spar ACAP'!F:G,2),0) -> 142.2433425 | L75: =IF(J75>4715,VLOOKUP(D75,'Spar EVAP'!E:F,2))*K75 -> 0.7112167126 | M75: 0.2398014792 | Q75: 0 | R75: 0
A76: 1936-12-12 | B76: 12 | C76: 12 | D76: 12/12 | E76: =Diversion!D96 -> 54.4 | F76: =Diversion!Q96 -> 0 | G76: 0 | H76: =VLOOKUP(B76,Demand!B:G,6,FALSE) -> 0 | I76: 7356.398164 | J76: =IF(I76>135,VLOOKUP(I76,'Spar ACAP'!D:F,3),4715) -> 4775 | K76: =IF(J76>4715,VLOOKUP(J76,'Spar ACAP'!F:G,2),0) -> 142.2433425 | L76: =IF(J76>4715,VLOOKUP(D76,'Spar EVAP'!E:F,2))*K76 -> 0.7112167126 | M76: 0.2397704822 | Q76: 0 | R76: 0
A77: 1936-12-13 | B77: 12 | C77: 13 | D77: 12/13 | E77: =Diversion!D97 -> 52.7 | F77: =Diversion!Q97 -> 0 | G77: 0 | H77: =VLOOKUP(B77,Demand!B:G,6,FALSE) -> 0 | I77: 7355.447177 | J77: =IF(I77>135,VLOOKUP(I77,'Spar ACAP'!D:F,3),4715) -> 4775 | K77: =IF(J77>4715,VLOOKUP(J77,'Spar ACAP'!F:G,2),0) -> 142.2433425 | L77: =IF(J77>4715,VLOOKUP(D77,'Spar EVAP'!E:F,2))*K77 -> 0.7112167126 | M77: 0.2397394862 | Q77: 0 | R77: 0
A78: 1936-12-14 | B78: 12 | C78: 14 | D78: 12/14 | E78: =Diversion!D98 -> 54.4 | F78: =Diversion!Q98 -> 0 | G78: 0 | H78: =VLOOKUP(B78,Demand!B:G,6,FALSE) -> 0 | I78: 7354.49622 | J78: =IF(I78>135,VLOOKUP(I78,'Spar ACAP'!D:F,3),4715) -> 4775 | K78: =IF(J78>4715,VLOOKUP(J78,'Spar ACAP'!F:G,2),0) -> 142.2433425 | L78: =IF(J78>4715,VLOOKUP(D78,'Spar EVAP'!E:F,2))*K78 -> 0.7112167126 | M78: 0.2397084913 | Q78: 0 | R78: 0
A79: 1936-12-15 | B79: 12 | C79: 15 | D79: 12/15 | E79: =Diversion!D99 -> 57.8 | F79: =Diversion!Q99 -> 0 | G79: 0 | H79: =VLOOKUP(B79,Demand!B:G,6,FALSE) -> 0 | I79: 7353.545295 | J79: =IF(I79>135,VLOOKUP(I79,'Spar ACAP'!D:F,3),4715) -> 4775 | K79: =IF(J79>4715,VLOOKUP(J79,'Spar ACAP'!F:G,2),0) -> 142.2433425 | L79: =IF(J79>4715,VLOOKUP(D79,'Spar EVAP'!E:F,2))*K79 -> 0.7112167126 | M79: 0.2396774973 | Q79: 0 | R79: 0
A80: 1936-12-16 | B80: 12 | C80: 16 | D80: 12/16 | E80: =Diversion!D100 -> 60.35 | F80: =Diversion!Q100 -> 0 | G80: 0 | H80: =VLOOKUP(B80,Demand!B:G,6,FALSE) -> 0 | I80: 7352.594401 | J80: =IF(I80>135,VLOOKUP(I80,'Spar ACAP'!D:F,3),4715) -> 4775 | K80: =IF(J80>4715,VLOOKUP(J80,'Spar ACAP'!F:G,2),0) -> 142.2433425 | L80: =IF(J80>4715,VLOOKUP(D80,'Spar EVAP'!E:F,2))*K80 -> 0.7112167126 | M80: 0.2396465044 | Q80: 0 | R80: 0
A81: 1936-12-17 | B81: 12 | C81: 17 | D81: 12/17 | E81: =Diversion!D101 -> 62.9 | F81: =Diversion!Q101 -> 0 | G81: 0 | H81: =VLOOKUP(B81,Demand!B:G,6,FALSE) -> 0 | I81: 7351.643538 | J81: =IF(I81>135,VLOOKUP(I81,'Spar ACAP'!D:F,3),4715) -> 4775 | K81: =IF(J81>4715,VLOOKUP(J81,'Spar ACAP'!F:G,2),0) -> 142.2433425 | L81: =IF(J81>4715,VLOOKUP(D81,'Spar EVAP'!E:F,2))*K81 -> 0.7112167126 | M81: 0.2396155125 | Q81: 0 | R81: 0
A82: 1936-12-18 | B82: 12 | C82: 18 | D82: 12/18 | E82: =Diversion!D102 -> 61.2 | F82: =Diversion!Q102 -> 0 | G82: 0 | H82: =VLOOKUP(B82,Demand!B:G,6,FALSE) -> 0 | I82: 7350.692706 | J82: =IF(I82>135,VLOOKUP(I82,'Spar ACAP'!D:F,3),4715) -> 4775 | K82: =IF(J82>4715,VLOOKUP(J82,'Spar ACAP'!F:G,2),0) -> 142.2433425 | L82: =IF(J82>4715,VLOOKUP(D82,'Spar EVAP'!E:F,2))*K82 -> 0.7112167126 | M82: 0.2395845215 | Q82: 0 | R82: 0
A83: 1936-12-19 | B83: 12 | C83: 19 | D83: 12/19 | E83: =Diversion!D103 -> 58.65 | F83: =Diversion!Q103 -> 0 | G83: 0 | H83: =VLOOKUP(B83,Demand!B:G,6,FALSE) -> 0 | I83: 7349.741904 | J83: =IF(I83>135,VLOOKUP(I83,'Spar ACAP'!D:F,3),4715) -> 4775 | K83: =IF(J83>4715,VLOOKUP(J83,'Spar ACAP'!F:G,2),0) -> 142.2433425 | L83: =IF(J83>4715,VLOOKUP(D83,'Spar EVAP'!E:F,2))*K83 -> 0.7112167126 | M83: 0.2395535316 | Q83: 0 | R83: 0
A84: 1936-12-20 | B84: 12 | C84: 20 | D84: 12/20 | E84: =Diversion!D104 -> 58.65 | F84: =Diversion!Q104 -> 0 | G84: 0 | H84: =VLOOKUP(B84,Demand!B:G,6,FALSE) -> 0 | I84: 7348.791134 | J84: =IF(I84>135,VLOOKUP(I84,'Spar ACAP'!D:F,3),4715) -> 4774 | K84: =IF(J84>4715,VLOOKUP(J84,'Spar ACAP'!F:G,2),0) -> 141.5732736 | L84: =IF(J84>4715,VLOOKUP(D84,'Spar EVAP'!E:F,2))*K84 -> 0.7078663682 | M84: 0.2395225427 | Q84: 0 | R84: 0
A85: 1936-12-21 | B85: 12 | C85: 21 | D85: 12/21 | E85: =Diversion!D105 -> 58.65 | F85: =Diversion!Q105 -> 0 | G85: 0 | H85: =VLOOKUP(B85,Demand!B:G,6,FALSE) -> 0 | I85: 7347.843745 | J85: =IF(I85>135,VLOOKUP(I85,'Spar ACAP'!D:F,3),4715) -> 4774 | K85: =IF(J85>4715,VLOOKUP(J85,'Spar ACAP'!F:G,2),0) -> 141.5732736 | L85: =IF(J85>4715,VLOOKUP(D85,'Spar EVAP'!E:F,2))*K85 -> 0.7078663682 | M85: 0.2394916641 | Q85: 0 | R85: 0
A86: 1936-12-22 | B86: 12 | C86: 22 | D86: 12/22 | E86: =Diversion!D106 -> 58.65 | F86: =Diversion!Q106 -> 0 | G86: 0 | H86: =VLOOKUP(B86,Demand!B:G,6,FALSE) -> 0 | I86: 7346.896387 | J86: =IF(I86>135,VLOOKUP(I86,'Spar ACAP'!D:F,3),4715) -> 4774 | K86: =IF(J86>4715,VLOOKUP(J86,'Spar ACAP'!F:G,2),0) -> 141.5732736 | L86: =IF(J86>4715,VLOOKUP(D86,'Spar EVAP'!E:F,2))*K86 -> 0.7078663682 | M86: 0.2394607864 | Q86: 0 | R86: 0
A87: 1936-12-23 | B87: 12 | C87: 23 | D87: 12/23 | E87: =Diversion!D107 -> 58.65 | F87: =Diversion!Q107 -> 0 | G87: 0 | H87: =VLOOKUP(B87,Demand!B:G,6,FALSE) -> 0 | I87: 7345.94906 | J87: =IF(I87>135,VLOOKUP(I87,'Spar ACAP'!D:F,3),4715) -> 4774 | K87: =IF(J87>4715,VLOOKUP(J87,'Spar ACAP'!F:G,2),0) -> 141.5732736 | L87: =IF(J87>4715,VLOOKUP(D87,'Spar EVAP'!E:F,2))*K87 -> 0.7078663682 | M87: 0.2394299097 | Q87: 0 | R87: 0
A88: 1936-12-24 | B88: 12 | C88: 24 | D88: 12/24 | E88: =Diversion!D108 -> 58.65 | F88: =Diversion!Q108 -> 0 | G88: 0 | H88: =VLOOKUP(B88,Demand!B:G,6,FALSE) -> 0 | I88: 7345.001764 | J88: =IF(I88>135,VLOOKUP(I88,'Spar ACAP'!D:F,3),4715) -> 4774 | K88: =IF(J88>4715,VLOOKUP(J88,'Spar ACAP'!F:G,2),0) -> 141.5732736 | L88: =IF(J88>4715,VLOOKUP(D88,'Spar EVAP'!E:F,2))*K88 -> 0.7078663682 | M88: 0.2393990341 | Q88: 0 | R88: 0
A89: 1936-12-25 | B89: 12 | C89: 25 | D89: 12/25 | E89: =Diversion!D109 -> 61.2 | F89: =Diversion!Q109 -> 0 | G89: 0 | H89: =VLOOKUP(B89,Demand!B:G,6,FALSE) -> 0 | I89: 7344.054498 | J89: =IF(I89>135,VLOOKUP(I89,'Spar ACAP'!D:F,3),4715) -> 4774 | K89: =IF(J89>4715,VLOOKUP(J89,'Spar ACAP'!F:G,2),0) -> 141.5732736 | L89: =IF(J89>4715,VLOOKUP(D89,'Spar EVAP'!E:F,2))*K89 -> 0.7078663682 | M89: 0.2393681594 | Q89: 0 | R89: 0
A90: 1936-12-26 | B90: 12 | C90: 26 | D90: 12/26 | E90: =Diversion!D110 -> 67.15 | F90: =Diversion!Q110 -> 0 | G90: 0 | H90: =VLOOKUP(B90,Demand!B:G,6,FALSE) -> 0 | I90: 7343.107264 | J90: =IF(I90>135,VLOOKUP(I90,'Spar ACAP'!D:F,3),4715) -> 4774 | K90: =IF(J90>4715,VLOOKUP(J90,'Spar ACAP'!F:G,2),0) -> 141.5732736 | L90: =IF(J90>4715,VLOOKUP(D90,'Spar EVAP'!E:F,2))*K90 -> 0.7078663682 | M90: 0.2393372857 | Q90: 0 | R90: 0
A91: 1936-12-27 | B91: 12 | C91: 27 | D91: 12/27 | E91: =Diversion!D111 -> 66.3 | F91: =Diversion!Q111 -> 0 | G91: 0 | H91: =VLOOKUP(B91,Demand!B:G,6,FALSE) -> 0 | I91: 7342.16006 | J91: =IF(I91>135,VLOOKUP(I91,'Spar ACAP'!D:F,3),4715) -> 4774 | K91: =IF(J91>4715,VLOOKUP(J91,'Spar ACAP'!F:G,2),0) -> 141.5732736 | L91: =IF(J91>4715,VLOOKUP(D91,'Spar EVAP'!E:F,2))*K91 -> 0.7078663682 | M91: 0.2393064131 | Q91: 0 | R91: 0
A92: 1936-12-28 | B92: 12 | C92: 28 | D92: 12/28 | E92: =Diversion!D112 -> 61.2 | F92: =Diversion!Q112 -> 0 | G92: 0 | H92: =VLOOKUP(B92,Demand!B:G,6,FALSE) -> 0 | I92: 7341.212887 | J92: =IF(I92>135,VLOOKUP(I92,'Spar ACAP'!D:F,3),4715) -> 4774 | K92: =IF(J92>4715,VLOOKUP(J92,'Spar ACAP'!F:G,2),0) -> 141.5732736 | L92: =IF(J92>4715,VLOOKUP(D92,'Spar EVAP'!E:F,2))*K92 -> 0.7078663682 | M92: 0.2392755415 | Q92: 0 | R92: 0
A93: 1936-12-29 | B93: 12 | C93: 29 | D93: 12/29 | E93: =Diversion!D113 -> 64.6 | F93: =Diversion!Q113 -> 0 | G93: 0 | H93: =VLOOKUP(B93,Demand!B:G,6,FALSE) -> 0 | I93: 7340.265745 | J93: =IF(I93>135,VLOOKUP(I93,'Spar ACAP'!D:F,3),4715) -> 4774 | K93: =IF(J93>4715,VLOOKUP(J93,'Spar ACAP'!F:G,2),0) -> 141.5732736 | L93: =IF(J93>4715,VLOOKUP(D93,'Spar EVAP'!E:F,2))*K93 -> 0.7078663682 | M93: 0.2392446708 | Q93: 0 | R93: 0
A94: 1936-12-30 | B94: 12 | C94: 30 | D94: 12/30 | E94: =Diversion!D114 -> 73.1 | F94: =Diversion!Q114 -> 0 | G94: 0 | H94: =VLOOKUP(B94,Demand!B:G,6,FALSE) -> 0 | I94: 7339.318634 | J94: =IF(I94>135,VLOOKUP(I94,'Spar ACAP'!D:F,3),4715) -> 4774 | K94: =IF(J94>4715,VLOOKUP(J94,'Spar ACAP'!F:G,2),0) -> 141.5732736 | L94: =IF(J94>4715,VLOOKUP(D94,'Spar EVAP'!E:F,2))*K94 -> 0.7078663682 | M94: 0.2392138012 | Q94: 0 | R94: 0
A95: 1936-12-31 | B95: 12 | C95: 31 | D95: 12/31 | E95: =Diversion!D115 -> 61.2 | F95: =Diversion!Q115 -> 0 | G95: 0 | H95: =VLOOKUP(B95,Demand!B:G,6,FALSE) -> 0 | I95: 7338.371554 | J95: =IF(I95>135,VLOOKUP(I95,'Spar ACAP'!D:F,3),4715) -> 4774 | K95: =IF(J95>4715,VLOOKUP(J95,'Spar ACAP'!F:G,2),0) -> 141.5732736 | L95: =IF(J95>4715,VLOOKUP(D95,'Spar EVAP'!E:F,2))*K95 -> 0.7078663682 | M95: 0.2391829326 | Q95: 0 | R95: 0
A96: 1937-01-01 | B96: 1 | C96: 1 | D96: 1/1 | E96: =Diversion!D116 -> 61.2 | F96: =Diversion!Q116 -> 0 | G96: 0 | H96: =VLOOKUP(B96,Demand!B:G,6,FALSE) -> 0 | I96: 7337.424505 | J96: =IF(I96>135,VLOOKUP(I96,'Spar ACAP'!D:F,3),4715) -> 4774 | K96: =IF(J96>4715,VLOOKUP(J96,'Spar ACAP'!F:G,2),0) -> 141.5732736 | L96: =IF(J96>4715,VLOOKUP(D96,'Spar EVAP'!E:F,2))*K96 -> 0.7078663682 | M96: 0.239152065 | Q96: 0 | R96: 0
A97: 1937-01-02 | B97: 1 | C97: 2 | D97: 1/2 | E97: =Diversion!D117 -> 61.2 | F97: =Diversion!Q117 -> 0 | G97: 0 | H97: =VLOOKUP(B97,Demand!B:G,6,FALSE) -> 0 | I97: 7336.477486 | J97: =IF(I97>135,VLOOKUP(I97,'Spar ACAP'!D:F,3),4715) -> 4774 | K97: =IF(J97>4715,VLOOKUP(J97,'Spar ACAP'!F:G,2),0) -> 141.5732736 | L97: =IF(J97>4715,VLOOKUP(D97,'Spar EVAP'!E:F,2))*K97 -> 0.7078663682 | M97: 0.2391211983 | Q97: 0 | R97: 0
A98: 1937-01-03 | B98: 1 | C98: 3 | D98: 1/3 | E98: =Diversion!D118 -> 54.4 | F98: =Diversion!Q118 -> 0 | G98: 0 | H98: =VLOOKUP(B98,Demand!B:G,6,FALSE) -> 0 | I98: 7335.530499 | J98: =IF(I98>135,VLOOKUP(I98,'Spar ACAP'!D:F,3),4715) -> 4774 | K98: =IF(J98>4715,VLOOKUP(J98,'Spar ACAP'!F:G,2),0) -> 141.5732736 | L98: =IF(J98>4715,VLOOKUP(D98,'Spar EVAP'!E:F,2))*K98 -> 0.7078663682 | M98: 0.2390903327 | Q98: 0 | R98: 0
A99: 1937-01-04 | B99: 1 | C99: 4 | D99: 1/4 | E99: =Diversion!D119 -> 51 | F99: =Diversion!Q119 -> 0 | G99: 0 | H99: =VLOOKUP(B99,Demand!B:G,6,FALSE) -> 0 | I99: 7334.583542 | J99: =IF(I99>135,VLOOKUP(I99,'Spar ACAP'!D:F,3),4715) -> 4774 | K99: =IF(J99>4715,VLOOKUP(J99,'Spar ACAP'!F:G,2),0) -> 141.5732736 | L99: =IF(J99>4715,VLOOKUP(D99,'Spar EVAP'!E:F,2))*K99 -> 0.7078663682 | M99: 0.2390594681 | Q99: 0 | R99: 0
A100: 1937-01-05 | B100: 1 | C100: 5 | D100: 1/5 | E100: =Diversion!D120 -> 48.45 | F100: =Diversion!Q120 -> 0 | G100: 0 | H100: =VLOOKUP(B100,Demand!B:G,6,FALSE) -> 0 | I100: 7333.636616 | J100: =IF(I100>135,VLOOKUP(I100,'Spar ACAP'!D:F,3),4715) -> 4774 | K100: =IF(J100>4715,VLOOKUP(J100,'Spar ACAP'!F:G,2),0) -> 141.5732736 | L100: =IF(J100>4715,VLOOKUP(D100,'Spar EVAP'!E:F,2))*K100 -> 0.7078663682 | M100: 0.2390286046 | Q100: 0 | R100: 0
A101: 1937-01-06 | B101: 1 | C101: 6 | D101: 1/6 | E101: =Diversion!D121 -> 49.3 | F101: =Diversion!Q121 -> 0 | G101: 0 | H101: =VLOOKUP(B101,Demand!B:G,6,FALSE) -> 0 | I101: 7332.689721 | J101: =IF(I101>135,VLOOKUP(I101,'Spar ACAP'!D:F,3),4715) -> 4774 | K101: =IF(J101>4715,VLOOKUP(J101,'Spar ACAP'!F:G,2),0) -> 141.5732736 | L101: =IF(J101>4715,VLOOKUP(D101,'Spar EVAP'!E:F,2))*K101 -> 0.7078663682 | M101: 0.238997742 | Q101: 0 | R101: 0
A102: 1937-01-07 | B102: 1 | C102: 7 | D102: 1/7 | E102: =Diversion!D122 -> 56.1 | F102: =Diversion!Q122 -> 0 | G102: 0 | H102: =VLOOKUP(B102,Demand!B:G,6,FALSE) -> 0 | I102: 7331.742857 | J102: =IF(I102>135,VLOOKUP(I102,'Spar ACAP'!D:F,3),4715) -> 4774 | K102: =IF(J102>4715,VLOOKUP(J102,'Spar ACAP'!F:G,2),0) -> 141.5732736 | L102: =IF(J102>4715,VLOOKUP(D102,'Spar EVAP'!E:F,2))*K102 -> 0.7078663682 | M102: 0.2389668804 | Q102: 0 | R102: 0
A103: 1937-01-08 | B103: 1 | C103: 8 | D103: 1/8 | E103: =Diversion!D123 -> 60.35 | F103: =Diversion!Q123 -> 0 | G103: 0 | H103: =VLOOKUP(B103,Demand!B:G,6,FALSE) -> 0 | I103: 7330.796024 | J103: =IF(I103>135,VLOOKUP(I103,'Spar ACAP'!D:F,3),4715) -> 4774 | K103: =IF(J103>4715,VLOOKUP(J103,'Spar ACAP'!F:G,2),0) -> 141.5732736 | L103: =IF(J103>4715,VLOOKUP(D103,'Spar EVAP'!E:F,2))*K103 -> 0.7078663682 | M103: 0.2389360198 | Q103: 0 | R103: 0
A104: 1937-01-09 | B104: 1 | C104: 9 | D104: 1/9 | E104: =Diversion!D124 -> 58.65 | F104: =Diversion!Q124 -> 0 | G104: 0 | H104: =VLOOKUP(B104,Demand!B:G,6,FALSE) -> 0 | I104: 7329.849222 | J104: =IF(I104>135,VLOOKUP(I104,'Spar ACAP'!D:F,3),4715) -> 4774 | K104: =IF(J104>4715,VLOOKUP(J104,'Spar ACAP'!F:G,2),0) -> 141.5732736 | L104: =IF(J104>4715,VLOOKUP(D104,'Spar EVAP'!E:F,2))*K104 -> 0.7078663682 | M104: 0.2389051603 | Q104: 0 | R104: 0
A105: 1937-01-10 | B105: 1 | C105: 10 | D105: 1/10 | E105: =Diversion!D125 -> 56.1 | F105: =Diversion!Q125 -> 0 | G105: 0 | H105: =VLOOKUP(B105,Demand!B:G,6,FALSE) -> 0 | I105: 7328.90245 | J105: =IF(I105>135,VLOOKUP(I105,'Spar ACAP'!D:F,3),4715) -> 4774 | K105: =IF(J105>4715,VLOOKUP(J105,'Spar ACAP'!F:G,2),0) -> 141.5732736 | L105: =IF(J105>4715,VLOOKUP(D105,'Spar EVAP'!E:F,2))*K105 -> 0.7078663682 | M105: 0.2388743017 | Q105: 0 | R105: 0
A106: 1937-01-11 | B106: 1 | C106: 11 | D106: 1/11 | E106: =Diversion!D126 -> 52.7 | F106: =Diversion!Q126 -> 0 | G106: 0 | H106: =VLOOKUP(B106,Demand!B:G,6,FALSE) -> 0 | I106: 7327.955709 | J106: =IF(I106>135,VLOOKUP(I106,'Spar ACAP'!D:F,3),4715) -> 4774 | K106: =IF(J106>4715,VLOOKUP(J106,'Spar ACAP'!F:G,2),0) -> 141.5732736 | L106: =IF(J106>4715,VLOOKUP(D106,'Spar EVAP'!E:F,2))*K106 -> 0.7078663682 | M106: 0.2388434441 | Q106: 0 | R106: 0
A107: 1937-01-12 | B107: 1 | C107: 12 | D107: 1/12 | E107: =Diversion!D127 -> 54.4 | F107: =Diversion!Q127 -> 0 | G107: 0 | H107: =VLOOKUP(B107,Demand!B:G,6,FALSE) -> 0 | I107: 7327.009 | J107: =IF(I107>135,VLOOKUP(I107,'Spar ACAP'!D:F,3),4715) -> 4774 | K107: =IF(J107>4715,VLOOKUP(J107,'Spar ACAP'!F:G,2),0) -> 141.5732736 | L107: =IF(J107>4715,VLOOKUP(D107,'Spar EVAP'!E:F,2))*K107 -> 0.7078663682 | M107: 0.2388125876 | Q107: 0 | R107: 0
A108: 1937-01-13 | B108: 1 | C108: 13 | D108: 1/13 | E108: =Diversion!D128 -> 78.2 | F108: =Diversion!Q128 -> 0 | G108: 0 | H108: =VLOOKUP(B108,Demand!B:G,6,FALSE) -> 0 | I108: 7326.062321 | J108: =IF(I108>135,VLOOKUP(I108,'Spar ACAP'!D:F,3),4715) -> 4774 | K108: =IF(J108>4715,VLOOKUP(J108,'Spar ACAP'!F:G,2),0) -> 141.5732736 | L108: =IF(J108>4715,VLOOKUP(D108,'Spar EVAP'!E:F,2))*K108 -> 0.7078663682 | M108: 0.238781732 | Q108: 0 | R108: 0
A109: 1937-01-14 | B109: 1 | C109: 14 | D109: 1/14 | E109: =Diversion!D129 -> 85.85 | F109: =Diversion!Q129 -> 0 | G109: 0 | H109: =VLOOKUP(B109,Demand!B:G,6,FALSE) -> 0 | I109: 7325.115673 | J109: =IF(I109>135,VLOOKUP(I109,'Spar ACAP'!D:F,3),4715) -> 4774 | K109: =IF(J109>4715,VLOOKUP(J109,'Spar ACAP'!F:G,2),0) -> 141.5732736 | L109: =IF(J109>4715,VLOOKUP(D109,'Spar EVAP'!E:F,2))*K109 -> 0.7078663682 | M109: 0.2387508775 | Q109: 0 | R109: 0
A110: 1937-01-15 | B110: 1 | C110: 15 | D110: 1/15 | E110: =Diversion!D130 -> 74.8 | F110: =Diversion!Q130 -> 0 | G110: 0 | H110: =VLOOKUP(B110,Demand!B:G,6,FALSE) -> 0 | I110: 7324.169055 | J110: =IF(I110>135,VLOOKUP(I110,'Spar ACAP'!D:F,3),4715) -> 4774 | K110: =IF(J110>4715,VLOOKUP(J110,'Spar ACAP'!F:G,2),0) -> 141.5732736 | L110: =IF(J110>4715,VLOOKUP(D110,'Spar EVAP'!E:F,2))*K110 -> 0.7078663682 | M110: 0.238720024 | Q110: 0 | R110: 0
A111: 1937-01-16 | B111: 1 | C111: 16 | D111: 1/16 | E111: =Diversion!D131 -> 68.85 | F111: =Diversion!Q131 -> 0 | G111: 0 | H111: =VLOOKUP(B111,Demand!B:G,6,FALSE) -> 0 | I111: 7323.222469 | J111: =IF(I111>135,VLOOKUP(I111,'Spar ACAP'!D:F,3),4715) -> 4774 | K111: =IF(J111>4715,VLOOKUP(J111,'Spar ACAP'!F:G,2),0) -> 141.5732736 | L111: =IF(J111>4715,VLOOKUP(D111,'Spar EVAP'!E:F,2))*K111 -> 0.7078663682 | M111: 0.2386891714 | Q111: 0 | R111: 0
A112: 1937-01-17 | B112: 1 | C112: 17 | D112: 1/17 | E112: =Diversion!D132 -> 68.85 | F112: =Diversion!Q132 -> 0 | G112: 0 | H112: =VLOOKUP(B112,Demand!B:G,6,FALSE) -> 0 | I112: 7322.275913 | J112: =IF(I112>135,VLOOKUP(I112,'Spar ACAP'!D:F,3),4715) -> 4774 | K112: =IF(J112>4715,VLOOKUP(J112,'Spar ACAP'!F:G,2),0) -> 141.5732736 | L112: =IF(J112>4715,VLOOKUP(D112,'Spar EVAP'!E:F,2))*K112 -> 0.7078663682 | M112: 0.2386583199 | Q112: 0 | R112: 0
A113: 1937-01-18 | B113: 1 | C113: 18 | D113: 1/18 | E113: =Diversion!D133 -> 68.85 | F113: =Diversion!Q133 -> 0 | G113: 0 | H113: =VLOOKUP(B113,Demand!B:G,6,FALSE) -> 0 | I113: 7321.329389 | J113: =IF(I113>135,VLOOKUP(I113,'Spar ACAP'!D:F,3),4715) -> 4774 | K113: =IF(J113>4715,VLOOKUP(J113,'Spar ACAP'!F:G,2),0) -> 141.5732736 | L113: =IF(J113>4715,VLOOKUP(D113,'Spar EVAP'!E:F,2))*K113 -> 0.7078663682 | M113: 0.2386274694 | Q113: 0 | R113: 0
A114: 1937-01-19 | B114: 1 | C114: 19 | D114: 1/19 | E114: =Diversion!D134 -> 67.15 | F114: =Diversion!Q134 -> 0 | G114: 0 | H114: =VLOOKUP(B114,Demand!B:G,6,FALSE) -> 0 | I114: 7320.382895 | J114: =IF(I114>135,VLOOKUP(I114,'Spar ACAP'!D:F,3),4715) -> 4774 | K114: =IF(J114>4715,VLOOKUP(J114,'Spar ACAP'!F:G,2),0) -> 141.5732736 | L114: =IF(J114>4715,VLOOKUP(D114,'Spar EVAP'!E:F,2))*K114 -> 0.7078663682 | M114: 0.2385966199 | Q114: 0 | R114: 0
A115: 1937-01-20 | B115: 1 | C115: 20 | D115: 1/20 | E115: =Diversion!D135 -> 68.85 | F115: =Diversion!Q135 -> 0 | G115: 0 | H115: =VLOOKUP(B115,Demand!B:G,6,FALSE) -> 0 | I115: 7319.436432 | J115: =IF(I115>135,VLOOKUP(I115,'Spar ACAP'!D:F,3),4715) -> 4774 | K115: =IF(J115>4715,VLOOKUP(J115,'Spar ACAP'!F:G,2),0) -> 141.5732736 | L115: =IF(J115>4715,VLOOKUP(D115,'Spar EVAP'!E:F,2))*K115 -> 0.7078663682 | M115: 0.2385657714 | Q115: 0 | R115: 0
A116: 1937-01-21 | B116: 1 | C116: 21 | D116: 1/21 | E116: =Diversion!D136 -> 68.85 | F116: =Diversion!Q136 -> 0 | G116: 0 | H116: =VLOOKUP(B116,Demand!B:G,6,FALSE) -> 0 | I116: 7318.49 | J116: =IF(I116>135,VLOOKUP(I116,'Spar ACAP'!D:F,3),4715) -> 4774 | K116: =IF(J116>4715,VLOOKUP(J116,'Spar ACAP'!F:G,2),0) -> 141.5732736 | L116: =IF(J116>4715,VLOOKUP(D116,'Spar EVAP'!E:F,2))*K116 -> 0.7078663682 | M116: 0.2385349239 | Q116: 0 | R116: 0
A117: 1937-01-22 | B117: 1 | C117: 22 | D117: 1/22 | E117: =Diversion!D137 -> 66.3 | F117: =Diversion!Q137 -> 0 | G117: 0 | H117: =VLOOKUP(B117,Demand!B:G,6,FALSE) -> 0 | I117: 7317.543598 | J117: =IF(I117>135,VLOOKUP(I117,'Spar ACAP'!D:F,3),4715) -> 4774 | K117: =IF(J117>4715,VLOOKUP(J117,'Spar ACAP'!F:G,2),0) -> 141.5732736 | L117: =IF(J117>4715,VLOOKUP(D117,'Spar EVAP'!E:F,2))*K117 -> 0.7078663682 | M117: 0.2385040774 | Q117: 0 | R117: 0
A118: 1937-01-23 | B118: 1 | C118: 23 | D118: 1/23 | E118: =Diversion!D138 -> 58.65 | F118: =Diversion!Q138 -> 0 | G118: 0 | H118: =VLOOKUP(B118,Demand!B:G,6,FALSE) -> 0 | I118: 7316.597228 | J118: =IF(I118>135,VLOOKUP(I118,'Spar ACAP'!D:F,3),4715) -> 4774 | K118: =IF(J118>4715,VLOOKUP(J118,'Spar ACAP'!F:G,2),0) -> 141.5732736 | L118: =IF(J118>4715,VLOOKUP(D118,'Spar EVAP'!E:F,2))*K118 -> 0.7078663682 | M118: 0.2384732319 | Q118: 0 | R118: 0
A119: 1937-01-24 | B119: 1 | C119: 24 | D119: 1/24 | E119: =Diversion!D139 -> 57.8 | F119: =Diversion!Q139 -> 0 | G119: 0 | H119: =VLOOKUP(B119,Demand!B:G,6,FALSE) -> 0 | I119: 7315.650888 | J119: =IF(I119>135,VLOOKUP(I119,'Spar ACAP'!D:F,3),4715) -> 4774 | K119: =IF(J119>4715,VLOOKUP(J119,'Spar ACAP'!F:G,2),0) -> 141.5732736 | L119: =IF(J119>4715,VLOOKUP(D119,'Spar EVAP'!E:F,2))*K119 -> 0.7078663682 | M119: 0.2384423874 | Q119: 0 | R119: 0
A120: 1937-01-25 | B120: 1 | C120: 25 | D120: 1/25 | E120: =Diversion!D140 -> 58.65 | F120: =Diversion!Q140 -> 0 | G120: 0 | H120: =VLOOKUP(B120,Demand!B:G,6,FALSE) -> 0 | I120: 7314.70458 | J120: =IF(I120>135,VLOOKUP(I120,'Spar ACAP'!D:F,3),4715) -> 4774 | K120: =IF(J120>4715,VLOOKUP(J120,'Spar ACAP'!F:G,2),0) -> 141.5732736 | L120: =IF(J120>4715,VLOOKUP(D120,'Spar EVAP'!E:F,2))*K120 -> 0.7078663682 | M120: 0.2384115439 | Q120: 0 | R120: 0
A121: 1937-01-26 | B121: 1 | C121: 26 | D121: 1/26 | E121: =Diversion!D141 -> 57.8 | F121: =Diversion!Q141 -> 0 | G121: 0 | H121: =VLOOKUP(B121,Demand!B:G,6,FALSE) -> 0 | I121: 7313.758302 | J121: =IF(I121>135,VLOOKUP(I121,'Spar ACAP'!D:F,3),4715) -> 4774 | K121: =IF(J121>4715,VLOOKUP(J121,'Spar ACAP'!F:G,2),0) -> 141.5732736 | L121: =IF(J121>4715,VLOOKUP(D121,'Spar EVAP'!E:F,2))*K121 -> 0.7078663682 | M121: 0.2383807015 | Q121: 0 | R121: 0
A122: 1937-01-27 | B122: 1 | C122: 27 | D122: 1/27 | E122: =Diversion!D142 -> 56.1 | F122: =Diversion!Q142 -> 0 | G122: 0 | H122: =VLOOKUP(B122,Demand!B:G,6,FALSE) -> 0 | I122: 7312.812055 | J122: =IF(I122>135,VLOOKUP(I122,'Spar ACAP'!D:F,3),4715) -> 4774 | K122: =IF(J122>4715,VLOOKUP(J122,'Spar ACAP'!F:G,2),0) -> 141.5732736 | L122: =IF(J122>4715,VLOOKUP(D122,'Spar EVAP'!E:F,2))*K122 -> 0.7078663682 | M122: 0.23834986 | Q122: 0 | R122: 0
A123: 1937-01-28 | B123: 1 | C123: 28 | D123: 1/28 | E123: =Diversion!D143 -> 56.1 | F123: =Diversion!Q143 -> 0 | G123: 0 | H123: =VLOOKUP(B123,Demand!B:G,6,FALSE) -> 0 | I123: 7311.865838 | J123: =IF(I123>135,VLOOKUP(I123,'Spar ACAP'!D:F,3),4715) -> 4774 | K123: =IF(J123>4715,VLOOKUP(J123,'Spar ACAP'!F:G,2),0) -> 141.5732736 | L123: =IF(J123>4715,VLOOKUP(D123,'Spar EVAP'!E:F,2))*K123 -> 0.7078663682 | M123: 0.2383190195 | Q123: 0 | R123: 0
A124: 1937-01-29 | B124: 1 | C124: 29 | D124: 1/29 | E124: =Diversion!D144 -> 58.65 | F124: =Diversion!Q144 -> 0 | G124: 0 | H124: =VLOOKUP(B124,Demand!B:G,6,FALSE) -> 0 | I124: 7310.919653 | J124: =IF(I124>135,VLOOKUP(I124,'Spar ACAP'!D:F,3),4715) -> 4774 | K124: =IF(J124>4715,VLOOKUP(J124,'Spar ACAP'!F:G,2),0) -> 141.5732736 | L124: =IF(J124>4715,VLOOKUP(D124,'Spar EVAP'!E:F,2))*K124 -> 0.7078663682 | M124: 0.2382881801 | Q124: 0 | R124: 0
A125: 1937-01-30 | B125: 1 | C125: 30 | D125: 1/30 | E125: =Diversion!D145 -> 60.35 | F125: =Diversion!Q145 -> 0 | G125: 0 | H125: =VLOOKUP(B125,Demand!B:G,6,FALSE) -> 0 | I125: 7309.973499 | J125: =IF(I125>135,VLOOKUP(I125,'Spar ACAP'!D:F,3),4715) -> 4774 | K125: =IF(J125>4715,VLOOKUP(J125,'Spar ACAP'!F:G,2),0) -> 141.5732736 | L125: =IF(J125>4715,VLOOKUP(D125,'Spar EVAP'!E:F,2))*K125 -> 0.7078663682 | M125: 0.2382573416 | Q125: 0 | R125: 0
A126: 1937-01-31 | B126: 1 | C126: 31 | D126: 1/31 | E126: =Diversion!D146 -> 61.2 | F126: =Diversion!Q146 -> 0 | G126: 0 | H126: =VLOOKUP(B126,Demand!B:G,6,FALSE) -> 0 | I126: 7309.027375 | J126: =IF(I126>135,VLOOKUP(I126,'Spar ACAP'!D:F,3),4715) -> 4774 | K126: =IF(J126>4715,VLOOKUP(J126,'Spar ACAP'!F:G,2),0) -> 141.5732736 | L126: =IF(J126>4715,VLOOKUP(D126,'Spar EVAP'!E:F,2))*K126 -> 0.7078663682 | M126: 0.2382265042 | Q126: 0 | R126: 0
A127: 1937-02-01 | B127: 2 | C127: 1 | D127: 2/1 | E127: =Diversion!D147 -> 60.35 | F127: =Diversion!Q147 -> 0 | G127: 0 | H127: =VLOOKUP(B127,Demand!B:G,6,FALSE) -> 0 | I127: 7308.081282 | J127: =IF(I127>135,VLOOKUP(I127,'Spar ACAP'!D:F,3),4715) -> 4774 | K127: =IF(J127>4715,VLOOKUP(J127,'Spar ACAP'!F:G,2),0) -> 141.5732736 | L127: =IF(J127>4715,VLOOKUP(D127,'Spar EVAP'!E:F,2))*K127 -> 1.026613212 | M127: 0.2381956677 | Q127: 0 | R127: 0
A128: 1937-02-02 | B128: 2 | C128: 2 | D128: 2/2 | E128: =Diversion!D148 -> 61.2 | F128: =Diversion!Q148 -> 0 | G128: 0 | H128: =VLOOKUP(B128,Demand!B:G,6,FALSE) -> 0 | I128: 7306.816473 | J128: =IF(I128>135,VLOOKUP(I128,'Spar ACAP'!D:F,3),4715) -> 4774 | K128: =IF(J128>4715,VLOOKUP(J128,'Spar ACAP'!F:G,2),0) -> 141.5732736 | L128: =IF(J128>4715,VLOOKUP(D128,'Spar EVAP'!E:F,2))*K128 -> 1.044945591 | M128: 0.2381544432 | Q128: 0 | R128: 0
A129: 1937-02-03 | B129: 2 | C129: 3 | D129: 2/3 | E129: =Diversion!D149 -> 62.9 | F129: =Diversion!Q149 -> 0 | G129: 0 | H129: =VLOOKUP(B129,Demand!B:G,6,FALSE) -> 0 | I129: 7305.533373 | J129: =IF(I129>135,VLOOKUP(I129,'Spar ACAP'!D:F,3),4715) -> 4774 | K129: =IF(J129>4715,VLOOKUP(J129,'Spar ACAP'!F:G,2),0) -> 141.5732736 | L129: =IF(J129>4715,VLOOKUP(D129,'Spar EVAP'!E:F,2))*K129 -> 1.044945591 | M129: 0.2381126226 | Q129: 0 | R129: 0
A130: 1937-02-04 | B130: 2 | C130: 4 | D130: 2/4 | E130: =Diversion!D150 -> 61.2 | F130: =Diversion!Q150 -> 0 | G130: 0 | H130: =VLOOKUP(B130,Demand!B:G,6,FALSE) -> 0 | I130: 7304.250315 | J130: =IF(I130>135,VLOOKUP(I130,'Spar ACAP'!D:F,3),4715) -> 4774 | K130: =IF(J130>4715,VLOOKUP(J130,'Spar ACAP'!F:G,2),0) -> 141.5732736 | L130: =IF(J130>4715,VLOOKUP(D130,'Spar EVAP'!E:F,2))*K130 -> 1.044945591 | M130: 0.2380708033 | Q130: 0 | R130: 0
A131: 1937-02-05 | B131: 2 | C131: 5 | D131: 2/5 | E131: =Diversion!D151 -> 61.2 | F131: =Diversion!Q151 -> 0 | G131: 0 | H131: =VLOOKUP(B131,Demand!B:G,6,FALSE) -> 0 | I131: 7302.967298 | J131: =IF(I131>135,VLOOKUP(I131,'Spar ACAP'!D:F,3),4715) -> 4774 | K131: =IF(J131>4715,VLOOKUP(J131,'Spar ACAP'!F:G,2),0) -> 141.5732736 | L131: =IF(J131>4715,VLOOKUP(D131,'Spar EVAP'!E:F,2))*K131 -> 1.044945591 | M131: 0.2380289853 | Q131: 0 | R131: 0
A132: 1937-02-06 | B132: 2 | C132: 6 | D132: =MONTH(A132)&"/"&DAY(A132) -> 2/6 | E132: =Diversion!D152 -> 62.9 | F132: =Diversion!Q152 -> 0 | G132: 0 | H132: =VLOOKUP(B132,Demand!B:G,6,FALSE) -> 0 | I132: =IF(I131+G131-H131-L131-M131>$P$6,$P$6,IF(I131+G131-H131-L131-M131>0,I131+G131-H131-L131-M131,0)) -> 7301.684324 | J132: =IF(I132>135,VLOOKUP(I132,'Spar ACAP'!D:F,3),4715) -> 4774 | K132: =IF(J132>4715,VLOOKUP(J132,'Spar ACAP'!F:G,2),0) -> 141.5732736 | L132: =IF(J132>4715,VLOOKUP(D132,'Spar EVAP'!E:F,2))*K132 -> 1.044945591 | M132: 0.2379871687 | Q132: 0 | R132: 0
A133: 1937-02-07 | B133: =MONTH(A133) -> 2 | C133: =DAY(A133) -> 7 | D133: 2/7 | E133: =Diversion!D153 -> 429.45 | F133: =Diversion!Q153 -> 0 | G133: =1.98347109902*F133 -> 0 | H133: =VLOOKUP(B133,Demand!B:G,6,FALSE) -> 0 | I133: 7300.401391 | J133: =IF(I133>135,VLOOKUP(I133,'Spar ACAP'!D:F,3),4715) -> 4774 | K133: =IF(J133>4715,VLOOKUP(J133,'Spar ACAP'!F:G,2),0) -> 141.5732736 | L133: =IF(J133>4715,VLOOKUP(D133,'Spar EVAP'!E:F,2))*K133 -> 1.044945591 | M133: =($P$15)*I133/2100 -> 0.2379453535 | Q133: =IF(I133<$P$7,1,0) -> 0 | R133: =IF(I133>P$13-1,1,0) -> 0
A134: 1937-02-08 | B134: 2 | C134: 8 | D134: 2/8 | E134: =Diversion!D154 -> 2415 | F134: =Diversion!Q154 -> 0 | G134: 0 | H134: =VLOOKUP(B134,Demand!B:G,6,FALSE) -> 0 | I134: 7299.1185 | J134: =IF(I134>135,VLOOKUP(I134,'Spar ACAP'!D:F,3),4715) -> 4774 | K134: =IF(J134>4715,VLOOKUP(J134,'Spar ACAP'!F:G,2),0) -> 141.5732736 | L134: =IF(J134>4715,VLOOKUP(D134,'Spar EVAP'!E:F,2))*K134 -> 1.044945591 | M134: 0.2379035397 | Q134: 0 | R134: 0
A135: 1937-02-09 | B135: 2 | C135: 9 | D135: 2/9 | E135: =Diversion!D155 -> 855.75 | F135: =Diversion!Q155 -> 350 | G135: 694.2148847 | H135: =VLOOKUP(B135,Demand!B:G,6,FALSE) -> 0 | I135: 7297.835651 | J135: =IF(I135>135,VLOOKUP(I135,'Spar ACAP'!D:F,3),4715) -> 4774 | K135: =IF(J135>4715,VLOOKUP(J135,'Spar ACAP'!F:G,2),0) -> 141.5732736 | L135: =IF(J135>4715,VLOOKUP(D135,'Spar EVAP'!E:F,2))*K135 -> 1.044945591 | M135: 0.2378617272 | Q135: 0 | R135: 0
A136: 1937-02-10 | B136: 2 | C136: 10 | D136: 2/10 | E136: =Diversion!D156 -> 472.5 | F136: =Diversion!Q156 -> 350 | G136: 694.2148847 | H136: =VLOOKUP(B136,Demand!B:G,6,FALSE) -> 0 | I136: 7990.767728 | J136: =IF(I136>135,VLOOKUP(I136,'Spar ACAP'!D:F,3),4715) -> 4779 | K136: =IF(J136>4715,VLOOKUP(J136,'Spar ACAP'!F:G,2),0) -> 144.9389164 | L136: =IF(J136>4715,VLOOKUP(D136,'Spar EVAP'!E:F,2))*K136 -> 1.051019043 | M136: 0.2604467823 | Q136: 0 | R136: 0
A137: 1937-02-11 | B137: 2 | C137: 11 | D137: 2/11 | E137: =Diversion!D157 -> 255 | F137: =Diversion!Q157 -> 322.5 | G137: 639.6694294 | H137: =VLOOKUP(B137,Demand!B:G,6,FALSE) -> 0 | I137: 8683.671147 | J137: =IF(I137>135,VLOOKUP(I137,'Spar ACAP'!D:F,3),4715) -> 4784 | K137: =IF(J137>4715,VLOOKUP(J137,'Spar ACAP'!F:G,2),0) -> 148.3237006 | L137: =IF(J137>4715,VLOOKUP(D137,'Spar EVAP'!E:F,2))*K137 -> 1.075563677 | M137: 0.2830309034 | Q137: 0 | R137: 0
A138: 1937-02-12 | B138: 2 | C138: 12 | D138: 2/12 | E138: =Diversion!D158 -> 204 | F138: =Diversion!Q158 -> 105 | G138: 208.2644654 | H138: =VLOOKUP(B138,Demand!B:G,6,FALSE) -> 0 | I138: 9321.981982 | J138: =IF(I138>135,VLOOKUP(I138,'Spar ACAP'!D:F,3),4715) -> 4788 | K138: =IF(J138>4715,VLOOKUP(J138,'Spar ACAP'!F:G,2),0) -> 151.0461478 | L138: =IF(J138>4715,VLOOKUP(D138,'Spar EVAP'!E:F,2))*K138 -> 1.0953054 | M138: 0.3038356632 | Q138: 0 | R138: 0
A139: 1937-02-13 | B139: 2 | C139: 13 | D139: 2/13 | E139: =Diversion!D159 -> 178.5 | F139: =Diversion!Q159 -> 54 | G139: 107.1074393 | H139: =VLOOKUP(B139,Demand!B:G,6,FALSE) -> 0 | I139: 9528.847306 | J139: =IF(I139>135,VLOOKUP(I139,'Spar ACAP'!D:F,3),4715) -> 4789 | K139: =IF(J139>4715,VLOOKUP(J139,'Spar ACAP'!F:G,2),0) -> 151.7277227 | L139: =IF(J139>4715,VLOOKUP(D139,'Spar EVAP'!E:F,2))*K139 -> 1.100247814 | M139: 0.3105781202 | Q139: 0 | R139: 0
A140: 1937-02-14 | B140: 2 | C140: 14 | D140: 2/14 | E140: =Diversion!D160 -> 159.8 | F140: =Diversion!Q160 -> 28.5 | G140: 56.52892632 | H140: =VLOOKUP(B140,Demand!B:G,6,FALSE) -> 0 | I140: 9634.54392 | J140: =IF(I140>135,VLOOKUP(I140,'Spar ACAP'!D:F,3),4715) -> 4790 | K140: =IF(J140>4715,VLOOKUP(J140,'Spar ACAP'!F:G,2),0) -> 152.4092975 | L140: =IF(J140>4715,VLOOKUP(D140,'Spar EVAP'!E:F,2))*K140 -> 1.105190228 | M140: 0.3140231387 | Q140: 0 | R140: 0
A141: 1937-02-15 | B141: 2 | C141: 15 | D141: 2/15 | E141: =Diversion!D161 -> 250.75 | F141: =Diversion!Q161 -> 9.8 | G141: 19.43801677 | H141: =VLOOKUP(B141,Demand!B:G,6,FALSE) -> 0 | I141: 9689.653633 | J141: =IF(I141>135,VLOOKUP(I141,'Spar ACAP'!D:F,3),4715) -> 4790 | K141: =IF(J141>4715,VLOOKUP(J141,'Spar ACAP'!F:G,2),0) -> 152.4092975 | L141: =IF(J141>4715,VLOOKUP(D141,'Spar EVAP'!E:F,2))*K141 -> 1.105190228 | M141: 0.3158193551 | Q141: 0 | R141: 0
A142: 1937-02-16 | B142: 2 | C142: 16 | D142: 2/16 | E142: =Diversion!D162 -> 3570 | F142: =Diversion!Q162 -> 100.75 | G142: 199.8347132 | H142: =VLOOKUP(B142,Demand!B:G,6,FALSE) -> 0 | I142: 9707.67064 | J142: =IF(I142>135,VLOOKUP(I142,'Spar ACAP'!D:F,3),4715) -> 4790 | K142: =IF(J142>4715,VLOOKUP(J142,'Spar ACAP'!F:G,2),0) -> 152.4092975 | L142: =IF(J142>4715,VLOOKUP(D142,'Spar EVAP'!E:F,2))*K142 -> 1.124925767 | M142: 0.3164065917 | Q142: 0 | R142: 0
A143: 1937-02-17 | B143: 2 | C143: 17 | D143: 2/17 | E143: =Diversion!D163 -> 2835 | F143: =Diversion!Q163 -> 199.96 | G143: 396.614881 | H143: =VLOOKUP(B143,Demand!B:G,6,FALSE) -> 0 | I143: 9906.064021 | J143: =IF(I143>135,VLOOKUP(I143,'Spar ACAP'!D:F,3),4715) -> 4792 | K143: =IF(J143>4715,VLOOKUP(J143,'Spar ACAP'!F:G,2),0) -> 153.7801882 | L143: =IF(J143>4715,VLOOKUP(D143,'Spar EVAP'!E:F,2))*K143 -> 1.135044247 | M143: 0.3228729188 | Q143: 0 | R143: 0
A144: 1937-02-18 | B144: 2 | C144: 18 | D144: 2/18 | E144: =Diversion!D164 -> 1575 | F144: =Diversion!Q164 -> 350 | G144: 694.2148847 | H144: =VLOOKUP(B144,Demand!B:G,6,FALSE) -> 0 | I144: 10301.22098 | J144: =IF(I144>135,VLOOKUP(I144,'Spar ACAP'!D:F,3),4715) -> 4794 | K144: =IF(J144>4715,VLOOKUP(J144,'Spar ACAP'!F:G,2),0) -> 155.151079 | L144: =IF(J144>4715,VLOOKUP(D144,'Spar EVAP'!E:F,2))*K144 -> 1.145162726 | M144: 0.3357524522 | Q144: 0 | R144: 0
A145: 1937-02-19 | B145: 2 | C145: 19 | D145: 2/19 | E145: =Diversion!D165 -> 1050 | F145: =Diversion!Q165 -> 350 | G145: 694.2148847 | H145: =VLOOKUP(B145,Demand!B:G,6,FALSE) -> 0 | I145: 10993.95495 | J145: =IF(I145>135,VLOOKUP(I145,'Spar ACAP'!D:F,3),4715) -> 4799 | K145: =IF(J145>4715,VLOOKUP(J145,'Spar ACAP'!F:G,2),0) -> 158.5938062 | L145: =IF(J145>4715,VLOOKUP(D145,'Spar EVAP'!E:F,2))*K145 -> 1.170573332 | M145: 0.3583310503 | Q145: 0 | R145: 0
A146: 1937-02-20 | B146: 2 | C146: 20 | D146: 2/20 | E146: =Diversion!D166 -> 798 | F146: =Diversion!Q166 -> 350 | G146: 694.2148847 | H146: =VLOOKUP(B146,Demand!B:G,6,FALSE) -> 0 | I146: 11686.64093 | J146: =IF(I146>135,VLOOKUP(I146,'Spar ACAP'!D:F,3),4715) -> 4803 | K146: =IF(J146>4715,VLOOKUP(J146,'Spar ACAP'!F:G,2),0) -> 161.3628375 | L146: =IF(J146>4715,VLOOKUP(D146,'Spar EVAP'!E:F,2))*K146 -> 1.191011419 | M146: 0.3809080843 | Q146: 0 | R146: 0
A147: 1937-02-21 | B147: 2 | C147: 21 | D147: 2/21 | E147: =Diversion!D167 -> 651 | F147: =Diversion!Q167 -> 350 | G147: 694.2148847 | H147: =VLOOKUP(B147,Demand!B:G,6,FALSE) -> 0 | I147: 12379.2839 | J147: =IF(I147>135,VLOOKUP(I147,'Spar ACAP'!D:F,3),4715) -> 4807 | K147: =IF(J147>4715,VLOOKUP(J147,'Spar ACAP'!F:G,2),0) -> 164.1436731 | L147: =IF(J147>4715,VLOOKUP(D147,'Spar EVAP'!E:F,2))*K147 -> 1.211536635 | M147: 0.4034837163 | Q147: 0 | R147: 0
A148: 1937-02-22 | B148: 2 | C148: 22 | D148: 2/22 | E148: =Diversion!D168 -> 538.65 | F148: =Diversion!Q168 -> 350 | G148: 694.2148847 | H148: =VLOOKUP(B148,Demand!B:G,6,FALSE) -> 0 | I148: 13071.88376 | J148: =IF(I148>135,VLOOKUP(I148,'Spar ACAP'!D:F,3),4715) -> 4811 | K148: =IF(J148>4715,VLOOKUP(J148,'Spar ACAP'!F:G,2),0) -> 166.936359 | L148: =IF(J148>4715,VLOOKUP(D148,'Spar EVAP'!E:F,2))*K148 -> 1.232149317 | M148: 0.4260579435 | Q148: 0 | R148: 0
A149: 1937-02-23 | B149: 2 | C149: 23 | D149: 2/23 | E149: =Diversion!D169 -> 497.7 | F149: =Diversion!Q169 -> 350 | G149: 694.2148847 | H149: =VLOOKUP(B149,Demand!B:G,6,FALSE) -> 0 | I149: 13764.44044 | J149: =IF(I149>135,VLOOKUP(I149,'Spar ACAP'!D:F,3),4715) -> 4816 | K149: =IF(J149>4715,VLOOKUP(J149,'Spar ACAP'!F:G,2),0) -> 170.4460973 | L149: =IF(J149>4715,VLOOKUP(D149,'Spar EVAP'!E:F,2))*K149 -> 1.258054528 | M149: 0.4486307631 | Q149: 0 | R149: 0
A150: 1937-02-24 | B150: 2 | C150: 24 | D150: 2/24 | E150: =Diversion!D170 -> 552.3 | F150: =Diversion!Q170 -> 347.7 | G150: 689.6529011 | H150: =VLOOKUP(B150,Demand!B:G,6,FALSE) -> 0 | I150: 14456.94864 | J150: =IF(I150>135,VLOOKUP(I150,'Spar ACAP'!D:F,3),4715) -> 4820 | K150: =IF(J150>4715,VLOOKUP(J150,'Spar ACAP'!F:G,2),0) -> 173.2667585 | L150: =IF(J150>4715,VLOOKUP(D150,'Spar EVAP'!E:F,2))*K150 -> 1.278873694 | M150: 0.4712020026 | Q150: 0 | R150: 0
A151: 1937-02-25 | B151: 2 | C151: 25 | D151: 2/25 | E151: =Diversion!D171 -> 640.5 | F151: =Diversion!Q171 -> 350 | G151: 694.2148847 | H151: =VLOOKUP(B151,Demand!B:G,6,FALSE) -> 0 | I151: 15000 | J151: =IF(I151>135,VLOOKUP(I151,'Spar ACAP'!D:F,3),4715) -> 4823 | K151: =IF(J151>4715,VLOOKUP(J151,'Spar ACAP'!F:G,2),0) -> 175.3944307 | L151: =IF(J151>4715,VLOOKUP(D151,'Spar EVAP'!E:F,2))*K151 -> 1.294577941 | M151: 0.4889019263 | Q151: 0 | R151: 1
A152: 1937-02-26 | B152: 2 | C152: 26 | D152: 2/26 | E152: =Diversion!D172 -> 640.5 | F152: =Diversion!Q172 -> 350 | G152: 694.2148847 | H152: =VLOOKUP(B152,Demand!B:G,6,FALSE) -> 0 | I152: 15000 | J152: =IF(I152>135,VLOOKUP(I152,'Spar ACAP'!D:F,3),4715) -> 4823 | K152: =IF(J152>4715,VLOOKUP(J152,'Spar ACAP'!F:G,2),0) -> 175.3944307 | L152: =IF(J152>4715,VLOOKUP(D152,'Spar EVAP'!E:F,2))*K152 -> 1.294577941 | M152: 0.4889019263 | Q152: 0 | R152: 1
A153: 1937-02-27 | B153: 2 | C153: 27 | D153: 2/27 | E153: =Diversion!D173 -> 534.45 | F153: =Diversion!Q173 -> 350 | G153: 694.2148847 | H153: =VLOOKUP(B153,Demand!B:G,6,FALSE) -> 0 | I153: 15000 | J153: =IF(I153>135,VLOOKUP(I153,'Spar ACAP'!D:F,3),4715) -> 4823 | K153: =IF(J153>4715,VLOOKUP(J153,'Spar ACAP'!F:G,2),0) -> 175.3944307 | L153: =IF(J153>4715,VLOOKUP(D153,'Spar EVAP'!E:F,2))*K153 -> 1.294577941 | M153: 0.4889019263 | Q153: 0 | R153: 1
A154: 1937-02-28 | B154: 2 | C154: 28 | D154: 2/28 | E154: =Diversion!D174 -> 437.85 | F154: =Diversion!Q174 -> 350 | G154: 694.2148847 | H154: =VLOOKUP(B154,Demand!B:G,6,FALSE) -> 0 | I154: 15000 | J154: =IF(I154>135,VLOOKUP(I154,'Spar ACAP'!D:F,3),4715) -> 4823 | K154: =IF(J154>4715,VLOOKUP(J154,'Spar ACAP'!F:G,2),0) -> 175.3944307 | L154: =IF(J154>4715,VLOOKUP(D154,'Spar EVAP'!E:F,2))*K154 -> 1.294577941 | M154: 0.4889019263 | Q154: 0 | R154: 1
A155: 1937-03-01 | B155: 3 | C155: 1 | D155: 3/1 | E155: =Diversion!D175 -> 325.55 | F155: =Diversion!Q175 -> 175.55 | G155: 348.1983514 | H155: =VLOOKUP(B155,Demand!B:G,6,FALSE) -> 2.419354839 | I155: 15000 | J155: =IF(I155>135,VLOOKUP(I155,'Spar ACAP'!D:F,3),4715) -> 4823 | K155: =IF(J155>4715,VLOOKUP(J155,'Spar ACAP'!F:G,2),0) -> 175.3944307 | L155: =IF(J155>4715,VLOOKUP(D155,'Spar EVAP'!E:F,2))*K155 -> 2.338592409 | M155: 0.4889019263 | Q155: 0 | R155: 1
A156: 1937-03-02 | B156: 3 | C156: 2 | D156: 3/2 | E156: =Diversion!D176 -> 322.15 | F156: =Diversion!Q176 -> 172.15 | G156: 341.4545497 | H156: =VLOOKUP(B156,Demand!B:G,6,FALSE) -> 2.419354839 | I156: 15000 | J156: =IF(I156>135,VLOOKUP(I156,'Spar ACAP'!D:F,3),4715) -> 4823 | K156: =IF(J156>4715,VLOOKUP(J156,'Spar ACAP'!F:G,2),0) -> 175.3944307 | L156: =IF(J156>4715,VLOOKUP(D156,'Spar EVAP'!E:F,2))*K156 -> 2.338592409 | M156: 0.4889019263 | Q156: 0 | R156: 1
A157: 1937-03-03 | B157: 3 | C157: 3 | D157: 3/3 | E157: =Diversion!D177 -> 422.1 | F157: =Diversion!Q177 -> 269.88 | G157: 535.2991802 | H157: =VLOOKUP(B157,Demand!B:G,6,FALSE) -> 2.419354839 | I157: 15000 | J157: =IF(I157>135,VLOOKUP(I157,'Spar ACAP'!D:F,3),4715) -> 4823 | K157: =IF(J157>4715,VLOOKUP(J157,'Spar ACAP'!F:G,2),0) -> 175.3944307 | L157: =IF(J157>4715,VLOOKUP(D157,'Spar EVAP'!E:F,2))*K157 -> 2.338592409 | M157: 0.4889019263 | Q157: 0 | R157: 1
A158: 1937-03-04 | B158: 3 | C158: 4 | D158: 3/4 | E158: =Diversion!D178 -> 450.45 | F158: =Diversion!Q178 -> 300.45 | G158: 595.9338917 | H158: =VLOOKUP(B158,Demand!B:G,6,FALSE) -> 2.419354839 | I158: 15000 | J158: =IF(I158>135,VLOOKUP(I158,'Spar ACAP'!D:F,3),4715) -> 4823 | K158: =IF(J158>4715,VLOOKUP(J158,'Spar ACAP'!F:G,2),0) -> 175.3944307 | L158: =IF(J158>4715,VLOOKUP(D158,'Spar EVAP'!E:F,2))*K158 -> 2.338592409 | M158: 0.4889019263 | Q158: 0 | R158: 1
A159: 1937-03-05 | B159: 3 | C159: 5 | D159: 3/5 | E159: =Diversion!D179 -> 322.15 | F159: =Diversion!Q179 -> 172.15 | G159: 341.4545497 | H159: =VLOOKUP(B159,Demand!B:G,6,FALSE) -> 2.419354839 | I159: 15000 | J159: =IF(I159>135,VLOOKUP(I159,'Spar ACAP'!D:F,3),4715) -> 4823 | K159: =IF(J159>4715,VLOOKUP(J159,'Spar ACAP'!F:G,2),0) -> 175.3944307 | L159: =IF(J159>4715,VLOOKUP(D159,'Spar EVAP'!E:F,2))*K159 -> 2.338592409 | M159: 0.4889019263 | Q159: 0 | R159: 1
A160: 1937-03-06 | B160: 3 | C160: 6 | D160: 3/6 | E160: =Diversion!D180 -> 282.2 | F160: =Diversion!Q180 -> 132.2 | G160: 262.2148793 | H160: =VLOOKUP(B160,Demand!B:G,6,FALSE) -> 2.419354839 | I160: 15000 | J160: =IF(I160>135,VLOOKUP(I160,'Spar ACAP'!D:F,3),4715) -> 4823 | K160: =IF(J160>4715,VLOOKUP(J160,'Spar ACAP'!F:G,2),0) -> 175.3944307 | L160: =IF(J160>4715,VLOOKUP(D160,'Spar EVAP'!E:F,2))*K160 -> 2.338592409 | M160: 0.4889019263 | Q160: 0 | R160: 1
A161: 1937-03-07 | B161: 3 | C161: 7 | D161: 3/7 | E161: =Diversion!D181 -> 294.1 | F161: =Diversion!Q181 -> 144.1 | G161: 285.8181854 | H161: =VLOOKUP(B161,Demand!B:G,6,FALSE) -> 2.419354839 | I161: 15000 | J161: =IF(I161>135,VLOOKUP(I161,'Spar ACAP'!D:F,3),4715) -> 4823 | K161: =IF(J161>4715,VLOOKUP(J161,'Spar ACAP'!F:G,2),0) -> 175.3944307 | L161: =IF(J161>4715,VLOOKUP(D161,'Spar EVAP'!E:F,2))*K161 -> 2.338592409 | M161: 0.4889019263 | Q161: 0 | R161: 1
A162: 1937-03-08 | B162: 3 | C162: 8 | D162: 3/8 | E162: =Diversion!D182 -> 534.45 | F162: =Diversion!Q182 -> 208.68 | G162: 413.9107489 | H162: =VLOOKUP(B162,Demand!B:G,6,FALSE) -> 2.419354839 | I162: 15000 | J162: =IF(I162>135,VLOOKUP(I162,'Spar ACAP'!D:F,3),4715) -> 4823 | K162: =IF(J162>4715,VLOOKUP(J162,'Spar ACAP'!F:G,2),0) -> 175.3944307 | L162: =IF(J162>4715,VLOOKUP(D162,'Spar EVAP'!E:F,2))*K162 -> 2.338592409 | M162: 0.4889019263 | Q162: 0 | R162: 1
A163: 1937-03-09 | B163: 3 | C163: 9 | D163: 3/9 | E163: =Diversion!D183 -> 798 | F163: =Diversion!Q183 -> 350 | G163: 694.2148847 | H163: =VLOOKUP(B163,Demand!B:G,6,FALSE) -> 2.419354839 | I163: 15000 | J163: =IF(I163>135,VLOOKUP(I163,'Spar ACAP'!D:F,3),4715) -> 4823 | K163: =IF(J163>4715,VLOOKUP(J163,'Spar ACAP'!F:G,2),0) -> 175.3944307 | L163: =IF(J163>4715,VLOOKUP(D163,'Spar EVAP'!E:F,2))*K163 -> 2.338592409 | M163: 0.4889019263 | Q163: 0 | R163: 1
A164: 1937-03-10 | B164: 3 | C164: 10 | D164: 3/10 | E164: =Diversion!D184 -> 981.75 | F164: =Diversion!Q184 -> 350 | G164: 694.2148847 | H164: =VLOOKUP(B164,Demand!B:G,6,FALSE) -> 2.419354839 | I164: 15000 | J164: =IF(I164>135,VLOOKUP(I164,'Spar ACAP'!D:F,3),4715) -> 4823 | K164: =IF(J164>4715,VLOOKUP(J164,'Spar ACAP'!F:G,2),0) -> 175.3944307 | L164: =IF(J164>4715,VLOOKUP(D164,'Spar EVAP'!E:F,2))*K164 -> 2.338592409 | M164: 0.4889019263 | Q164: 0 | R164: 1
A165: 1937-03-11 | B165: 3 | C165: 11 | D165: 3/11 | E165: =Diversion!D185 -> 1050 | F165: =Diversion!Q185 -> 350 | G165: 694.2148847 | H165: =VLOOKUP(B165,Demand!B:G,6,FALSE) -> 2.419354839 | I165: 15000 | J165: =IF(I165>135,VLOOKUP(I165,'Spar ACAP'!D:F,3),4715) -> 4823 | K165: =IF(J165>4715,VLOOKUP(J165,'Spar ACAP'!F:G,2),0) -> 175.3944307 | L165: =IF(J165>4715,VLOOKUP(D165,'Spar EVAP'!E:F,2))*K165 -> 2.338592409 | M165: 0.4889019263 | Q165: 0 | R165: 1
A166: 1937-03-12 | B166: 3 | C166: 12 | D166: 3/12 | E166: =Diversion!D186 -> 1081.5 | F166: =Diversion!Q186 -> 350 | G166: 694.2148847 | H166: =VLOOKUP(B166,Demand!B:G,6,FALSE) -> 2.419354839 | I166: 15000 | J166: =IF(I166>135,VLOOKUP(I166,'Spar ACAP'!D:F,3),4715) -> 4823 | K166: =IF(J166>4715,VLOOKUP(J166,'Spar ACAP'!F:G,2),0) -> 175.3944307 | L166: =IF(J166>4715,VLOOKUP(D166,'Spar EVAP'!E:F,2))*K166 -> 2.338592409 | M166: 0.4889019263 | Q166: 0 | R166: 1
A167: 1937-03-13 | B167: 3 | C167: 13 | D167: 3/13 | E167: =Diversion!D187 -> 981.75 | F167: =Diversion!Q187 -> 350 | G167: 694.2148847 | H167: =VLOOKUP(B167,Demand!B:G,6,FALSE) -> 2.419354839 | I167: 15000 | J167: =IF(I167>135,VLOOKUP(I167,'Spar ACAP'!D:F,3),4715) -> 4823 | K167: =IF(J167>4715,VLOOKUP(J167,'Spar ACAP'!F:G,2),0) -> 175.3944307 | L167: =IF(J167>4715,VLOOKUP(D167,'Spar EVAP'!E:F,2))*K167 -> 2.338592409 | M167: 0.4889019263 | Q167: 0 | R167: 1
A168: 1937-03-14 | B168: 3 | C168: 14 | D168: 3/14 | E168: =Diversion!D188 -> 918.75 | F168: =Diversion!Q188 -> 350 | G168: 694.2148847 | H168: =VLOOKUP(B168,Demand!B:G,6,FALSE) -> 2.419354839 | I168: 15000 | J168: =IF(I168>135,VLOOKUP(I168,'Spar ACAP'!D:F,3),4715) -> 4823 | K168: =IF(J168>4715,VLOOKUP(J168,'Spar ACAP'!F:G,2),0) -> 175.3944307 | L168: =IF(J168>4715,VLOOKUP(D168,'Spar EVAP'!E:F,2))*K168 -> 2.338592409 | M168: 0.4889019263 | Q168: 0 | R168: 1
A169: 1937-03-15 | B169: 3 | C169: 15 | D169: 3/15 | E169: =Diversion!D189 -> 950.25 | F169: =Diversion!Q189 -> 350 | G169: 694.2148847 | H169: =VLOOKUP(B169,Demand!B:G,6,FALSE) -> 2.419354839 | I169: 15000 | J169: =IF(I169>135,VLOOKUP(I169,'Spar ACAP'!D:F,3),4715) -> 4823 | K169: =IF(J169>4715,VLOOKUP(J169,'Spar ACAP'!F:G,2),0) -> 175.3944307 | L169: =IF(J169>4715,VLOOKUP(D169,'Spar EVAP'!E:F,2))*K169 -> 2.338592409 | M169: 0.4889019263 | Q169: 0 | R169: 1
A170: 1937-03-16 | B170: 3 | C170: 16 | D170: 3/16 | E170: =Diversion!D190 -> 918.75 | F170: =Diversion!Q190 -> 350 | G170: 694.2148847 | H170: =VLOOKUP(B170,Demand!B:G,6,FALSE) -> 2.419354839 | I170: 15000 | J170: =IF(I170>135,VLOOKUP(I170,'Spar ACAP'!D:F,3),4715) -> 4823 | K170: =IF(J170>4715,VLOOKUP(J170,'Spar ACAP'!F:G,2),0) -> 175.3944307 | L170: =IF(J170>4715,VLOOKUP(D170,'Spar EVAP'!E:F,2))*K170 -> 2.338592409 | M170: 0.4889019263 | Q170: 0 | R170: 1
A171: 1937-03-17 | B171: 3 | C171: 17 | D171: 3/17 | E171: =Diversion!D191 -> 3286.5 | F171: =Diversion!Q191 -> 350 | G171: 694.2148847 | H171: =VLOOKUP(B171,Demand!B:G,6,FALSE) -> 2.419354839 | I171: 15000 | J171: =IF(I171>135,VLOOKUP(I171,'Spar ACAP'!D:F,3),4715) -> 4823 | K171: =IF(J171>4715,VLOOKUP(J171,'Spar ACAP'!F:G,2),0) -> 175.3944307 | L171: =IF(J171>4715,VLOOKUP(D171,'Spar EVAP'!E:F,2))*K171 -> 2.338592409 | M171: 0.4889019263 | Q171: 0 | R171: 1
A172: 1937-03-18 | B172: 3 | C172: 18 | D172: 3/18 | E172: =Diversion!D192 -> 2604 | F172: =Diversion!Q192 -> 350 | G172: 694.2148847 | H172: =VLOOKUP(B172,Demand!B:G,6,FALSE) -> 2.419354839 | I172: 15000 | J172: =IF(I172>135,VLOOKUP(I172,'Spar ACAP'!D:F,3),4715) -> 4823 | K172: =IF(J172>4715,VLOOKUP(J172,'Spar ACAP'!F:G,2),0) -> 175.3944307 | L172: =IF(J172>4715,VLOOKUP(D172,'Spar EVAP'!E:F,2))*K172 -> 2.338592409 | M172: 0.4889019263 | Q172: 0 | R172: 1
A173: 1937-03-19 | B173: 3 | C173: 19 | D173: 3/19 | E173: =Diversion!D193 -> 1680 | F173: =Diversion!Q193 -> 350 | G173: 694.2148847 | H173: =VLOOKUP(B173,Demand!B:G,6,FALSE) -> 2.419354839 | I173: 15000 | J173: =IF(I173>135,VLOOKUP(I173,'Spar ACAP'!D:F,3),4715) -> 4823 | K173: =IF(J173>4715,VLOOKUP(J173,'Spar ACAP'!F:G,2),0) -> 175.3944307 | L173: =IF(J173>4715,VLOOKUP(D173,'Spar EVAP'!E:F,2))*K173 -> 2.338592409 | M173: 0.4889019263 | Q173: 0 | R173: 1
A174: 1937-03-20 | B174: 3 | C174: 20 | D174: 3/20 | E174: =Diversion!D194 -> 1155 | F174: =Diversion!Q194 -> 350 | G174: 694.2148847 | H174: =VLOOKUP(B174,Demand!B:G,6,FALSE) -> 2.419354839 | I174: 15000 | J174: =IF(I174>135,VLOOKUP(I174,'Spar ACAP'!D:F,3),4715) -> 4823 | K174: =IF(J174>4715,VLOOKUP(J174,'Spar ACAP'!F:G,2),0) -> 175.3944307 | L174: =IF(J174>4715,VLOOKUP(D174,'Spar EVAP'!E:F,2))*K174 -> 2.338592409 | M174: 0.4889019263 | Q174: 0 | R174: 1
A175: 1937-03-21 | B175: 3 | C175: 21 | D175: 3/21 | E175: =Diversion!D195 -> 918.75 | F175: =Diversion!Q195 -> 350 | G175: 694.2148847 | H175: =VLOOKUP(B175,Demand!B:G,6,FALSE) -> 2.419354839 | I175: 15000 | J175: =IF(I175>135,VLOOKUP(I175,'Spar ACAP'!D:F,3),4715) -> 4823 | K175: =IF(J175>4715,VLOOKUP(J175,'Spar ACAP'!F:G,2),0) -> 175.3944307 | L175: =IF(J175>4715,VLOOKUP(D175,'Spar EVAP'!E:F,2))*K175 -> 2.338592409 | M175: 0.4889019263 | Q175: 0 | R175: 1
A176: 1937-03-22 | B176: 3 | C176: 22 | D176: 3/22 | E176: =Diversion!D196 -> 798 | F176: =Diversion!Q196 -> 350 | G176: 694.2148847 | H176: =VLOOKUP(B176,Demand!B:G,6,FALSE) -> 2.419354839 | I176: 15000 | J176: =IF(I176>135,VLOOKUP(I176,'Spar ACAP'!D:F,3),4715) -> 4823 | K176: =IF(J176>4715,VLOOKUP(J176,'Spar ACAP'!F:G,2),0) -> 175.3944307 | L176: =IF(J176>4715,VLOOKUP(D176,'Spar EVAP'!E:F,2))*K176 -> 2.338592409 | M176: 0.4889019263 | Q176: 0 | R176: 1
A177: 1937-03-23 | B177: 3 | C177: 23 | D177: 3/23 | E177: =Diversion!D197 -> 768.6 | F177: =Diversion!Q197 -> 350 | G177: 694.2148847 | H177: =VLOOKUP(B177,Demand!B:G,6,FALSE) -> 2.419354839 | I177: 15000 | J177: =IF(I177>135,VLOOKUP(I177,'Spar ACAP'!D:F,3),4715) -> 4823 | K177: =IF(J177>4715,VLOOKUP(J177,'Spar ACAP'!F:G,2),0) -> 175.3944307 | L177: =IF(J177>4715,VLOOKUP(D177,'Spar EVAP'!E:F,2))*K177 -> 2.338592409 | M177: 0.4889019263 | Q177: 0 | R177: 1
A178: 1937-03-24 | B178: 3 | C178: 24 | D178: 3/24 | E178: =Diversion!D198 -> 708.75 | F178: =Diversion!Q198 -> 350 | G178: 694.2148847 | H178: =VLOOKUP(B178,Demand!B:G,6,FALSE) -> 2.419354839 | I178: 15000 | J178: =IF(I178>135,VLOOKUP(I178,'Spar ACAP'!D:F,3),4715) -> 4823 | K178: =IF(J178>4715,VLOOKUP(J178,'Spar ACAP'!F:G,2),0) -> 175.3944307 | L178: =IF(J178>4715,VLOOKUP(D178,'Spar EVAP'!E:F,2))*K178 -> 2.338592409 | M178: 0.4889019263 | Q178: 0 | R178: 1
A179: 1937-03-25 | B179: 3 | C179: 25 | D179: 3/25 | E179: =Diversion!D199 -> 635.25 | F179: =Diversion!Q199 -> 350 | G179: 694.2148847 | H179: =VLOOKUP(B179,Demand!B:G,6,FALSE) -> 2.419354839 | I179: 15000 | J179: =IF(I179>135,VLOOKUP(I179,'Spar ACAP'!D:F,3),4715) -> 4823 | K179: =IF(J179>4715,VLOOKUP(J179,'Spar ACAP'!F:G,2),0) -> 175.3944307 | L179: =IF(J179>4715,VLOOKUP(D179,'Spar EVAP'!E:F,2))*K179 -> 2.338592409 | M179: 0.4889019263 | Q179: 0 | R179: 1
A180: 1937-03-26 | B180: 3 | C180: 26 | D180: 3/26 | E180: =Diversion!D200 -> 585.9 | F180: =Diversion!Q200 -> 350 | G180: 694.2148847 | H180: =VLOOKUP(B180,Demand!B:G,6,FALSE) -> 2.419354839 | I180: 15000 | J180: =IF(I180>135,VLOOKUP(I180,'Spar ACAP'!D:F,3),4715) -> 4823 | K180: =IF(J180>4715,VLOOKUP(J180,'Spar ACAP'!F:G,2),0) -> 175.3944307 | L180: =IF(J180>4715,VLOOKUP(D180,'Spar EVAP'!E:F,2))*K180 -> 2.338592409 | M180: 0.4889019263 | Q180: 0 | R180: 1
A181: 1937-03-27 | B181: 3 | C181: 27 | D181: 3/27 | E181: =Diversion!D201 -> 538.65 | F181: =Diversion!Q201 -> 350 | G181: 694.2148847 | H181: =VLOOKUP(B181,Demand!B:G,6,FALSE) -> 2.419354839 | I181: 15000 | J181: =IF(I181>135,VLOOKUP(I181,'Spar ACAP'!D:F,3),4715) -> 4823 | K181: =IF(J181>4715,VLOOKUP(J181,'Spar ACAP'!F:G,2),0) -> 175.3944307 | L181: =IF(J181>4715,VLOOKUP(D181,'Spar EVAP'!E:F,2))*K181 -> 2.338592409 | M181: 0.4889019263 | Q181: 0 | R181: 1
A182: 1937-03-28 | B182: 3 | C182: 28 | D182: 3/28 | E182: =Diversion!D202 -> 485.1 | F182: =Diversion!Q202 -> 335.1 | G182: 664.6611653 | H182: =VLOOKUP(B182,Demand!B:G,6,FALSE) -> 2.419354839 | I182: 15000 | J182: =IF(I182>135,VLOOKUP(I182,'Spar ACAP'!D:F,3),4715) -> 4823 | K182: =IF(J182>4715,VLOOKUP(J182,'Spar ACAP'!F:G,2),0) -> 175.3944307 | L182: =IF(J182>4715,VLOOKUP(D182,'Spar EVAP'!E:F,2))*K182 -> 2.338592409 | M182: 0.4889019263 | Q182: 0 | R182: 1
A183: 1937-03-29 | B183: 3 | C183: 29 | D183: 3/29 | E183: =Diversion!D203 -> 458.85 | F183: =Diversion!Q203 -> 308.85 | G183: 612.5950489 | H183: =VLOOKUP(B183,Demand!B:G,6,FALSE) -> 2.419354839 | I183: 15000 | J183: =IF(I183>135,VLOOKUP(I183,'Spar ACAP'!D:F,3),4715) -> 4823 | K183: =IF(J183>4715,VLOOKUP(J183,'Spar ACAP'!F:G,2),0) -> 175.3944307 | L183: =IF(J183>4715,VLOOKUP(D183,'Spar EVAP'!E:F,2))*K183 -> 2.338592409 | M183: 0.4889019263 | Q183: 0 | R183: 1
A184: 1937-03-30 | B184: 3 | C184: 30 | D184: 3/30 | E184: =Diversion!D204 -> 437.85 | F184: =Diversion!Q204 -> 287.85 | G184: 570.9421559 | H184: =VLOOKUP(B184,Demand!B:G,6,FALSE) -> 2.419354839 | I184: 15000 | J184: =IF(I184>135,VLOOKUP(I184,'Spar ACAP'!D:F,3),4715) -> 4823 | K184: =IF(J184>4715,VLOOKUP(J184,'Spar ACAP'!F:G,2),0) -> 175.3944307 | L184: =IF(J184>4715,VLOOKUP(D184,'Spar EVAP'!E:F,2))*K184 -> 2.338592409 | M184: 0.4889019263 | Q184: 0 | R184: 1
A185: 1937-03-31 | B185: 3 | C185: 31 | D185: 3/31 | E185: =Diversion!D205 -> 325.55 | F185: =Diversion!Q205 -> 175.55 | G185: 348.1983514 | H185: =VLOOKUP(B185,Demand!B:G,6,FALSE) -> 2.419354839 | I185: 15000 | J185: =IF(I185>135,VLOOKUP(I185,'Spar ACAP'!D:F,3),4715) -> 4823 | K185: =IF(J185>4715,VLOOKUP(J185,'Spar ACAP'!F:G,2),0) -> 175.3944307 | L185: =IF(J185>4715,VLOOKUP(D185,'Spar EVAP'!E:F,2))*K185 -> 2.338592409 | M185: 0.4889019263 | Q185: 0 | R185: 1
A186: 1937-04-01 | B186: 4 | C186: 1 | D186: 4/1 | E186: =Diversion!D206 -> 316.2 | F186: =Diversion!Q206 -> 175.55 | G186: 348.1983514 | H186: =VLOOKUP(B186,Demand!B:G,6,FALSE) -> 10 | I186: 15000 | J186: =IF(I186>135,VLOOKUP(I186,'Spar ACAP'!D:F,3),4715) -> 4823 | K186: =IF(J186>4715,VLOOKUP(J186,'Spar ACAP'!F:G,2),0) -> 175.3944307 | L186: =IF(J186>4715,VLOOKUP(D186,'Spar EVAP'!E:F,2))*K186 -> 3.322750048 | M186: 0.4889019263 | Q186: 0 | R186: 1
A187: 1937-04-02 | B187: 4 | C187: 2 | D187: 4/2 | E187: =Diversion!D207 -> 328.1 | F187: =Diversion!Q207 -> 166.2 | G187: 329.6528967 | H187: =VLOOKUP(B187,Demand!B:G,6,FALSE) -> 10 | I187: 15000 | J187: =IF(I187>135,VLOOKUP(I187,'Spar ACAP'!D:F,3),4715) -> 4823 | K187: =IF(J187>4715,VLOOKUP(J187,'Spar ACAP'!F:G,2),0) -> 175.3944307 | L187: =IF(J187>4715,VLOOKUP(D187,'Spar EVAP'!E:F,2))*K187 -> 3.322750048 | M187: 0.4889019263 | Q187: 0 | R187: 1
A188: 1937-04-03 | B188: 4 | C188: 3 | D188: 4/3 | E188: =Diversion!D208 -> 450.45 | F188: =Diversion!Q208 -> 178.1 | G188: 353.2562027 | H188: =VLOOKUP(B188,Demand!B:G,6,FALSE) -> 10 | I188: 15000 | J188: =IF(I188>135,VLOOKUP(I188,'Spar ACAP'!D:F,3),4715) -> 4823 | K188: =IF(J188>4715,VLOOKUP(J188,'Spar ACAP'!F:G,2),0) -> 175.3944307 | L188: =IF(J188>4715,VLOOKUP(D188,'Spar EVAP'!E:F,2))*K188 -> 3.322750048 | M188: 0.4889019263 | Q188: 0 | R188: 1
A189: 1937-04-04 | B189: 4 | C189: 4 | D189: 4/4 | E189: =Diversion!D209 -> 493.5 | F189: =Diversion!Q209 -> 279.36 | G189: 554.1024862 | H189: =VLOOKUP(B189,Demand!B:G,6,FALSE) -> 10 | I189: 15000 | J189: =IF(I189>135,VLOOKUP(I189,'Spar ACAP'!D:F,3),4715) -> 4823 | K189: =IF(J189>4715,VLOOKUP(J189,'Spar ACAP'!F:G,2),0) -> 175.3944307 | L189: =IF(J189>4715,VLOOKUP(D189,'Spar EVAP'!E:F,2))*K189 -> 3.322750048 | M189: 0.4889019263 | Q189: 0 | R189: 1
A190: 1937-04-05 | B190: 4 | C190: 5 | D190: 4/5 | E190: =Diversion!D210 -> 472.5 | F190: =Diversion!Q210 -> 343.5 | G190: 681.3223225 | H190: =VLOOKUP(B190,Demand!B:G,6,FALSE) -> 10 | I190: 15000 | J190: =IF(I190>135,VLOOKUP(I190,'Spar ACAP'!D:F,3),4715) -> 4823 | K190: =IF(J190>4715,VLOOKUP(J190,'Spar ACAP'!F:G,2),0) -> 175.3944307 | L190: =IF(J190>4715,VLOOKUP(D190,'Spar EVAP'!E:F,2))*K190 -> 3.322750048 | M190: 0.4889019263 | Q190: 0 | R190: 1
A191: 1937-04-06 | B191: 4 | C191: 6 | D191: 4/6 | E191: =Diversion!D211 -> 437.85 | F191: =Diversion!Q211 -> 322.5 | G191: 639.6694294 | H191: =VLOOKUP(B191,Demand!B:G,6,FALSE) -> 10 | I191: 15000 | J191: =IF(I191>135,VLOOKUP(I191,'Spar ACAP'!D:F,3),4715) -> 4823 | K191: =IF(J191>4715,VLOOKUP(J191,'Spar ACAP'!F:G,2),0) -> 175.3944307 | L191: =IF(J191>4715,VLOOKUP(D191,'Spar EVAP'!E:F,2))*K191 -> 3.322750048 | M191: 0.4889019263 | Q191: 0 | R191: 1
A192: 1937-04-07 | B192: 4 | C192: 7 | D192: 4/7 | E192: =Diversion!D212 -> 426.3 | F192: =Diversion!Q212 -> 287.85 | G192: 570.9421559 | H192: =VLOOKUP(B192,Demand!B:G,6,FALSE) -> 10 | I192: 15000 | J192: =IF(I192>135,VLOOKUP(I192,'Spar ACAP'!D:F,3),4715) -> 4823 | K192: =IF(J192>4715,VLOOKUP(J192,'Spar ACAP'!F:G,2),0) -> 175.3944307 | L192: =IF(J192>4715,VLOOKUP(D192,'Spar EVAP'!E:F,2))*K192 -> 3.322750048 | M192: 0.4889019263 | Q192: 0 | R192: 1
A193: 1937-04-08 | B193: 4 | C193: 8 | D193: 4/8 | E193: =Diversion!D213 -> 433.65 | F193: =Diversion!Q213 -> 276.3 | G193: 548.0330647 | H193: =VLOOKUP(B193,Demand!B:G,6,FALSE) -> 10 | I193: 15000 | J193: =IF(I193>135,VLOOKUP(I193,'Spar ACAP'!D:F,3),4715) -> 4823 | K193: =IF(J193>4715,VLOOKUP(J193,'Spar ACAP'!F:G,2),0) -> 175.3944307 | L193: =IF(J193>4715,VLOOKUP(D193,'Spar EVAP'!E:F,2))*K193 -> 3.322750048 | M193: 0.4889019263 | Q193: 0 | R193: 1
A194: 1937-04-09 | B194: 4 | C194: 9 | D194: 4/9 | E194: =Diversion!D214 -> 430.5 | F194: =Diversion!Q214 -> 283.65 | G194: 562.6115772 | H194: =VLOOKUP(B194,Demand!B:G,6,FALSE) -> 10 | I194: 15000 | J194: =IF(I194>135,VLOOKUP(I194,'Spar ACAP'!D:F,3),4715) -> 4823 | K194: =IF(J194>4715,VLOOKUP(J194,'Spar ACAP'!F:G,2),0) -> 175.3944307 | L194: =IF(J194>4715,VLOOKUP(D194,'Spar EVAP'!E:F,2))*K194 -> 3.322750048 | M194: 0.4889019263 | Q194: 0 | R194: 1
A195: 1937-04-10 | B195: 4 | C195: 10 | D195: 4/10 | E195: =Diversion!D215 -> 430.5 | F195: =Diversion!Q215 -> 280.5 | G195: 556.3636433 | H195: =VLOOKUP(B195,Demand!B:G,6,FALSE) -> 10 | I195: 15000 | J195: =IF(I195>135,VLOOKUP(I195,'Spar ACAP'!D:F,3),4715) -> 4823 | K195: =IF(J195>4715,VLOOKUP(J195,'Spar ACAP'!F:G,2),0) -> 175.3944307 | L195: =IF(J195>4715,VLOOKUP(D195,'Spar EVAP'!E:F,2))*K195 -> 3.322750048 | M195: 0.4889019263 | Q195: 0 | R195: 1
A196: 1937-04-11 | B196: 4 | C196: 11 | D196: =MONTH(A196)&"/"&DAY(A196) -> 4/11 | E196: =Diversion!D216 -> 433.65 | F196: =Diversion!Q216 -> 280.5 | G196: 556.3636433 | H196: =VLOOKUP(B196,Demand!B:G,6,FALSE) -> 10 | I196: =IF(I195+G195-H195-L195-M195>$P$6,$P$6,IF(I195+G195-H195-L195-M195>0,I195+G195-H195-L195-M195,0)) -> 15000 | J196: =IF(I196>135,VLOOKUP(I196,'Spar ACAP'!D:F,3),4715) -> 4823 | K196: =IF(J196>4715,VLOOKUP(J196,'Spar ACAP'!F:G,2),0) -> 175.3944307 | L196: =IF(J196>4715,VLOOKUP(D196,'Spar EVAP'!E:F,2))*K196 -> 3.322750048 | M196: 0.4889019263 | Q196: 0 | R196: 1
A197: 1937-04-12 | B197: =MONTH(A197) -> 4 | C197: =DAY(A197) -> 12 | D197: 4/12 | E197: =Diversion!D217 -> 454.65 | F197: =Diversion!Q217 -> 283.65 | G197: =1.98347109902*F197 -> 562.6115772 | H197: =VLOOKUP(B197,Demand!B:G,6,FALSE) -> 10 | I197: 15000 | J197: =IF(I197>135,VLOOKUP(I197,'Spar ACAP'!D:F,3),4715) -> 4823 | K197: =IF(J197>4715,VLOOKUP(J197,'Spar ACAP'!F:G,2),0) -> 175.3944307 | L197: =IF(J197>4715,VLOOKUP(D197,'Spar EVAP'!E:F,2))*K197 -> 3.322750048 | M197: =($P$15)*I197/2100 -> 0.4889019263 | Q197: =IF(I197<$P$7,1,0) -> 0 | R197: =IF(I197>P$13-1,1,0) -> 1
A198: 1937-04-13 | B198: 4 | C198: 13 | D198: 4/13 | E198: =Diversion!D218 -> 476.7 | F198: =Diversion!Q218 -> 304.65 | G198: 604.2644703 | H198: =VLOOKUP(B198,Demand!B:G,6,FALSE) -> 10 | I198: 15000 | J198: =IF(I198>135,VLOOKUP(I198,'Spar ACAP'!D:F,3),4715) -> 4823 | K198: =IF(J198>4715,VLOOKUP(J198,'Spar ACAP'!F:G,2),0) -> 175.3944307 | L198: =IF(J198>4715,VLOOKUP(D198,'Spar EVAP'!E:F,2))*K198 -> 3.322750048 | M198: 0.4889019263 | Q198: 0 | R198: 1
A199: 1937-04-14 | B199: 4 | C199: 14 | D199: 4/14 | E199: =Diversion!D219 -> 489.3 | F199: =Diversion!Q219 -> 326.7 | G199: 648.000008 | H199: =VLOOKUP(B199,Demand!B:G,6,FALSE) -> 10 | I199: 15000 | J199: =IF(I199>135,VLOOKUP(I199,'Spar ACAP'!D:F,3),4715) -> 4823 | K199: =IF(J199>4715,VLOOKUP(J199,'Spar ACAP'!F:G,2),0) -> 175.3944307 | L199: =IF(J199>4715,VLOOKUP(D199,'Spar EVAP'!E:F,2))*K199 -> 3.322750048 | M199: 0.4889019263 | Q199: 0 | R199: 1
A200: 1937-04-15 | B200: 4 | C200: 15 | D200: 4/15 | E200: =Diversion!D220 -> 497.7 | F200: =Diversion!Q220 -> 339.3 | G200: 672.9917439 | H200: =VLOOKUP(B200,Demand!B:G,6,FALSE) -> 10 | I200: 15000 | J200: =IF(I200>135,VLOOKUP(I200,'Spar ACAP'!D:F,3),4715) -> 4823 | K200: =IF(J200>4715,VLOOKUP(J200,'Spar ACAP'!F:G,2),0) -> 175.3944307 | L200: =IF(J200>4715,VLOOKUP(D200,'Spar EVAP'!E:F,2))*K200 -> 3.322750048 | M200: 0.4889019263 | Q200: 0 | R200: 1
... 4300 more rows

Sheet Demand
C1: Annual Demand (AF): | D1: =Yield!P4 -> 3000
D2: Ag Monthly (AF) | E2: Non-Ag Monthly (AF) | F2: Total Monthly (AF) | G2: Daily | I2: AG Monthly % | J2: Non-Ag Monthly % | L2: Ag annual split:
B3: 1 | C3: Jan | D3: =I3*$D$1*$L$3 -> 0 | E3: =J3*$D$1*(1-$L$3) -> 0 | F3: =E3+D3 -> 0 | G3: =F3/31 -> 0 | I3: 0 | J3: 0.06 | L3: =Yield!$B$2 -> 1
B4: 2 | C4: Feb | D4: 0 | E4: 0 | F4: =E4+D4 -> 0 | G4: =F4/28.25 -> 0 | I4: 0 | J4: 0.06
B5: 3 | C5: Mar | D5: 75 | E5: 0 | F5: 75 | G5: =F5/31 -> 2.419354839 | I5: 0.025 | J5: 0.08
B6: 4 | C6: Apr | D6: 300 | E6: 0 | F6: 300 | G6: =F6/30 -> 10 | I6: 0.1 | J6: 0.08
B7: 5 | C7: May | D7: 600 | E7: 0 | F7: 600 | G7: =F7/31 -> 19.35483871 | I7: 0.2 | J7: 0.1
B8: 6 | C8: Jun | D8: 750 | E8: 0 | F8: 750 | G8: =F8/30 -> 25 | I8: 0.25 | J8: 0.12
B9: 7 | C9: Jul | D9: 600 | E9: 0 | F9: 600 | G9: =F9/31 -> 19.35483871 | I9: 0.2 | J9: 0.12
B10: 8 | C10: Aug | D10: 450 | E10: 0 | F10: 450 | G10: =F10/31 -> 14.51612903 | I10: 0.15 | J10: 0.1
B11: 9 | C11: Sep | D11: 150 | E11: 0 | F11: 150 | G11: =F11/30 -> 5 | I11: 0.05 | J11: 0.08
B12: 10 | C12: Oct | D12: 75 | E12: 0 | F12: 75 | G12: =F12/31 -> 2.419354839 | I12: 0.025 | J12: 0.08
B13: 11 | C13: Nov | D13: 0 | E13: 0 | F13: 0 | G13: =F13/31 -> 0 | I13: 0 | J13: 0.06
B14: 12 | C14: Dec | D14: 0 | E14: 0 | F14: 0 | G14: =F14/31 -> 0 | I14: 0 | J14: 0.06
E15: TOTAL: | F15: =SUM(F3:F14) -> 3000 | I15: =SUM(I3:I14) -> 1 | J15: =SUM(J3:J14) -> 1

Sheet Spar ACAP
F1: Spar ACAP
D3: Storage (AF) | E3: Surface Area (sq ft) | F3: Elevation (FT) | G3: Surface Area (AF)
D4: 135 | E4: 2079973 | F4: 4715 | G4: 47.74960973
D5: 212.4 | E5: 2564195 | F5: 4716 | G5: 58.86581726
D6: 289.8 | E6: 3048417 | F6: 4717 | G6: 69.98202479
D7: 367.2 | E7: 3532639 | F7: 4718 | G7: 81.09823232
D8: 444.6 | E8: 4016861 | F8: 4719 | G8: 92.21443985
D9: 522 | E9: 4501083 | F9: 4720 | G9: 103.3306474
D10: 629.8 | E10: 4555532.8 | F10: 4721 | G10: 104.5806428
D11: 737.6 | E11: 4609982.6 | F11: 4722 | G11: 105.8306382
D12: 845.4 | E12: 4664432.4 | F12: 4723 | G12: 107.0806336
D13: 953.2 | E13: 4718882.2 | F13: 4724 | G13: 108.330629
D14: 1061 | E14: 4773332 | F14: 4725 | G14: 109.5806244
D15: 1172.2 | E15: 4801064 | F15: 4726 | G15: 110.2172635
D16: 1283.4 | E16: 4828796 | F16: 4727 | G16: 110.8539027
D17: 1394.6 | E17: 4856528 | F17: 4728 | G17: 111.4905418
D18: 1505.8 | E18: 4884260 | F18: 4729 | G18: 112.1271809
D19: 1617 | E19: 4911992 | F19: 4730 | G19: 112.76382
D20: 1731.2 | E20: 4939881.8 | F20: 4731 | G20: 113.4040817
D21: 1845.4 | E21: 4967771.6 | F21: 4732 | G21: 114.0443434
D22: 1959.6 | E22: 4995661.4 | F22: 4733 | G22: 114.6846051
D23: 2073.8 | E23: 5023551.2 | F23: 4734 | G23: 115.3248669
D24: 2188 | E24: 5051441 | F24: 4735 | G24: 115.9651286
D25: 2305.6 | E25: 5079490.6 | F25: 4736 | G25: 116.6090588
D26: 2423.2 | E26: 5107540.2 | F26: 4737 | G26: 117.252989
D27: 2540.8 | E27: 5135589.8 | F27: 4738 | G27: 117.8969192
D28: 2658.4 | E28: 5163639.4 | F28: 4739 | G28: 118.5408494
D29: 2776 | E29: 5191689 | F29: 4740 | G29: 119.1847796
D30: 2896.8 | E30: 5219899.2 | F30: 4741 | G30: 119.8323967
D31: 3017.6 | E31: 5248109.4 | F31: 4742 | G31: 120.4800138
D32: 3138.4 | E32: 5276319.6 | F32: 4743 | G32: 121.1276309
D33: 3259.2 | E33: 5304529.8 | F33: 4744 | G33: 121.7752479
D34: 3380 | E34: 5332740 | F34: 4745 | G34: 122.422865
D35: 3504 | E35: 5361112.4 | F35: 4746 | G35: 123.0742057
D36: 3628 | E36: 5389484.8 | F36: 4747 | G36: 123.7255464
D37: 3752 | E37: 5417857.2 | F37: 4748 | G37: 124.3768871
D38: 3876 | E38: 5446229.6 | F38: 4749 | G38: 125.0282277
D39: 4000 | E39: 5474602 | F39: 4750 | G39: 125.6795684
D40: 4127.4 | E40: 5503136.4 | F40: 4751 | G40: 126.3346281
D41: 4254.8 | E41: 5531670.8 | F41: 4752 | G41: 126.9896878
D42: 4382.2 | E42: 5560205.2 | F42: 4753 | G42: 127.6447475
D43: 4509.6 | E43: 5588739.6 | F43: 4754 | G43: 128.2998072
D44: 4637 | E44: 5617274 | F44: 4755 | G44: 128.9548669
D45: 4767.6 | E45: 5645970.4 | F45: 4756 | G45: 129.6136455
D46: 4898.2 | E46: 5674666.8 | F46: 4757 | G46: 130.2724242
D47: 5028.8 | E47: 5703363.2 | F47: 4758 | G47: 130.9312029
D48: 5159.4 | E48: 5732059.6 | F48: 4759 | G48: 131.5899816
D49: 5290 | E49: 5760756 | F49: 4760 | G49: 132.2487603
D50: 5424 | E50: 5789616.4 | F50: 4761 | G50: 132.9113039
D51: 5558 | E51: 5818476.8 | F51: 4762 | G51: 133.5738476
D52: 5692 | E52: 5847337.2 | F52: 4763 | G52: 134.2363912
D53: 5826 | E53: 5876197.6 | F53: 4764 | G53: 134.8989348
D54: 5960 | E54: 5905058 | F54: 4765 | G54: 135.5614784
D55: 6097.2 | E55: 5934082.2 | F55: 4766 | G55: 136.2277824
D56: 6234.4 | E56: 5963106.4 | F56: 4767 | G56: 136.8940863
D57: 6371.6 | E57: 5992130.6 | F57: 4768 | G57: 137.5603903
D58: 6508.8 | E58: 6021154.8 | F58: 4769 | G58: 138.2266942
D59: 6646 | E59: 6050179 | F59: 4770 | G59: 138.8929982
D60: 6786.6 | E60: 6079367.2 | F60: 4771 | G60: 139.563067
D61: 6927.2 | E61: 6108555.4 | F61: 4772 | G61: 140.2331359
D62: 7067.8 | E62: 6137743.6 | F62: 4773 | G62: 140.9032048
D63: 7208.4 | E63: 6166931.8 | F63: 4774 | G63: 141.5732736
D64: 7349 | E64: 6196120 | F64: 4775 | G64: 142.2433425
D65: 7492.8 | E65: 6225474.8 | F65: 4776 | G65: 142.917236
D66: 7636.6 | E66: 6254829.6 | F66: 4777 | G66: 143.5911295
D67: 7780.4 | E67: 6284184.4 | F67: 4778 | G67: 144.265023
D68: 7924.2 | E68: 6313539.2 | F68: 4779 | G68: 144.9389164
D69: 8068 | E69: 6342894 | F69: 4780 | G69: 145.6128099
D70: 8215.4 | E70: 6372415.6 | F70: 4781 | G70: 146.2905326
D71: 8362.8 | E71: 6401937.2 | F71: 4782 | G71: 146.9682553
D72: 8510.2 | E72: 6431458.8 | F72: 4783 | G72: 147.645978
D73: 8657.6 | E73: 6460980.4 | F73: 4784 | G73: 148.3237006
D74: 8805 | E74: 6490502 | F74: 4785 | G74: 149.0014233
D75: 8955.6 | E75: 6520191.4 | F75: 4786 | G75: 149.6829982
D76: 9106.2 | E76: 6549880.8 | F76: 4787 | G76: 150.364573
D77: 9256.8 | E77: 6579570.2 | F77: 4788 | G77: 151.0461478
D78: 9407.4 | E78: 6609259.6 | F78: 4789 | G78: 151.7277227
D79: 9558 | E79: 6638949 | F79: 4790 | G79: 152.4092975
D80: 9712.2 | E80: 6668807 | F80: 4791 | G80: 153.0947429
D81: 9866.4 | E81: 6698665 | F81: 4792 | G81: 153.7801882
D82: 10020.6 | E82: 6728523 | F82: 4793 | G82: 154.4656336
D83: 10174.8 | E83: 6758381 | F83: 4794 | G83: 155.151079
D84: 10329 | E84: 6788239 | F84: 4795 | G84: 155.8365243
D85: 10486.6 | E85: 6818265.8 | F85: 4796 | G85: 156.5258448
D86: 10644.2 | E86: 6848292.6 | F86: 4797 | G86: 157.2151653
D87: 10801.8 | E87: 6878319.4 | F87: 4798 | G87: 157.9044858
D88: 10959.4 | E88: 6908346.2 | F88: 4799 | G88: 158.5938062
D89: 11117 | E89: 6938373 | F89: 4800 | G89: 159.2831267
D90: 11278 | E90: 6968570.4 | F90: 4801 | G90: 159.9763636
D91: 11439 | E91: 6998767.8 | F91: 4802 | G91: 160.6696006
D92: 11600 | E92: 7028965.2 | F92: 4803 | G92: 161.3628375
D93: 11761 | E93: 7059162.6 | F93: 4804 | G93: 162.0560744
D94: 11922 | E94: 7089360 | F94: 4805 | G94: 162.7493113
D95: 12086.4 | E95: 7119729.2 | F95: 4806 | G95: 163.4464922
D96: 12250.8 | E96: 7150098.4 | F96: 4807 | G96: 164.1436731
D97: 12415.2 | E97: 7180467.6 | F97: 4808 | G97: 164.840854
D98: 12579.6 | E98: 7210836.8 | F98: 4809 | G98: 165.5380349
D99: 12744 | E99: 7241206 | F99: 4810 | G99: 166.2352158
D100: 12912 | E100: 7271747.8 | F100: 4811 | G100: 166.936359
D101: 13080 | E101: 7302289.6 | F101: 4812 | G101: 167.6375023
D102: 13248 | E102: 7332831.4 | F102: 4813 | G102: 168.3386455
D103: 13416 | E103: 7363373.2 | F103: 4814 | G103: 169.0397888
D104: 13584 | E104: 7393915 | F104: 4815 | G104: 169.740932
D105: 13755.6 | E105: 7424632 | F105: 4816 | G105: 170.4460973
D106: 13927.2 | E106: 7455349 | F106: 4817 | G106: 171.1512626
D107: 14098.8 | E107: 7486066 | F107: 4818 | G107: 171.8564279
D108: 14270.4 | E108: 7516783 | F108: 4819 | G108: 172.5615932
D109: 14442 | E109: 7547500 | F109: 4820 | G109: 173.2667585
D110: 14617 | E110: 7578393.8 | F110: 4821 | G110: 173.9759826
D111: 14792 | E111: 7609287.6 | F111: 4822 | G111: 174.6852066
D112: 14967 | E112: 7640181.4 | F112: 4823 | G112: 175.3944307
D113: 15142 | E113: 7671075.2 | F113: 4824 | G113: 176.1036547
D114: 15317 | E114: 7701969 | F114: 4825 | G114: 176.8128788
D115: 15495.6 | E115: 7733041.8 | F115: 4826 | G115: 177.5262121
D116: 15674.2 | E116: 7764114.6 | F116: 4827 | G116: 178.2395455
D117: 15852.8 | E117: 7795187.4 | F117: 4828 | G117: 178.9528788
D118: 16031.4 | E118: 7826260.2 | F118: 4829 | G118: 179.6662121
D119: 16210 | E119: 7857333 | F119: 4830 | G119: 180.3795455
D120: 16392.2 | E120: 7888586.4 | F120: 4831 | G120: 181.0970248
D121: 16574.4 | E121: 7919839.8 | F121: 4832 | G121: 181.8145041
D122: 16756.6 | E122: 7951093.2 | F122: 4833 | G122: 182.5319835
D123: 16938.8 | E123: 7982346.6 | F123: 4834 | G123: 183.2494628
D124: 17121 | E124: 8013600 | F124: 4835 | G124: 183.9669421
D125: 17306.6 | E125: 8045036 | F125: 4836 | G125: 184.6886134
D126: 17492.2 | E126: 8076472 | F126: 4837 | G126: 185.4102847
D127: 17677.8 | E127: 8107908 | F127: 4838 | G127: 186.1319559
D128: 17863.4 | E128: 8139344 | F128: 4839 | G128: 186.8536272
D129: 18049 | E129: 8170780 | F129: 4840 | G129: 187.5752984
D130: 18238.4 | E130: 8202400.6 | F130: 4841 | G130: 188.3012075
D131: 18427.8 | E131: 8234021.2 | F131: 4842 | G131: 189.0271166
D132: 18617.2 | E132: 8265641.8 | F132: 4843 | G132: 189.7530257
D133: 18806.6 | E133: 8297262.4 | F133: 4844 | G133: 190.4789348
D134: 18996 | E134: 8328883 | F134: 4845 | G134: 191.2048439
D135: 19189.2 | E135: 8360692.8 | F135: 4846 | G135: 191.9350964
D136: 19382.4 | E136: 8392502.6 | F136: 4847 | G136: 192.6653489
D137: 19575.6 | E137: 8424312.4 | F137: 4848 | G137: 193.3956015
D138: 19768.8 | E138: 8456122.2 | F138: 4849 | G138: 194.125854
D139: 19962 | E139: 8487932 | F139: 4850 | G139: 194.8561065
D140: 20158.6 | E140: 8519932.6 | F140: 4851 | G140: 195.5907392
D141: 20355.2 | E141: 8551933.2 | F141: 4852 | G141: 196.3253719
D142: 20551.8 | E142: 8583933.8 | F142: 4853 | G142: 197.0600046
D143: 20748.4 | E143: 8615934.4 | F143: 4854 | G143: 197.7946373
D144: 20945 | E144: 8647935 | F144: 4855 | G144: 198.52927
D145: 21145.4 | E145: 8680132.8 | F145: 4856 | G145: 199.2684298
D146: 21345.8 | E146: 8712330.6 | F146: 4857 | G146: 200.0075895
D147: 21546.2 | E147: 8744528.4 | F147: 4858 | G147: 200.7467493
D148: 21746.6 | E148: 8776726.2 | F148: 4859 | G148: 201.4859091
D149: 21947 | E149: 8808924 | F149: 4860 | G149: 202.2250689
D150: 22151 | E150: 8841327 | F150: 4861 | G150: 202.9689394
D151: 22355 | E151: 8873730 | F151: 4862 | G151: 203.7128099
D152: 22559 | E152: 8906133 | F152: 4863 | G152: 204.4566804
D153: 22763 | E153: 8938536 | F153: 4864 | G153: 205.200551
D154: 22967 | E154: 8970939 | F154: 4865 | G154: 205.9444215
D155: 23174.8 | E155: 9003550.4 | F155: 4866 | G155: 206.6930762
D156: 23382.6 | E156: 9036161.8 | F156: 4867 | G156: 207.4417309
D157: 23590.4 | E157: 9068773.2 | F157: 4868 | G157: 208.1903857
D158: 23798.2 | E158: 9101384.6 | F158: 4869 | G158: 208.9390404
D159: 24006 | E159: 9133996 | F159: 4870 | G159: 209.6876951
D160: 24217.6 | E160: 9166818 | F160: 4871 | G160: 210.4411846
D161: 24429.2 | E161: 9199640 | F161: 4872 | G161: 211.194674
D162: 24640.8 | E162: 9232462 | F162: 4873 | G162: 211.9481635
D163: 24852.4 | E163: 9265284 | F163: 4874 | G163: 212.7016529
D164: 25064 | E164: 9298106 | F164: 4875 | G164: 213.4551423
D165: 25279.4 | E165: 9331141.2 | F165: 4876 | G165: 214.2135262
D166: 25494.8 | E166: 9364176.4 | F166: 4877 | G166: 214.97191
D167: 25710.2 | E167: 9397211.6 | F167: 4878 | G167: 215.7302938
D168: 25925.6 | E168: 9430246.8 | F168: 4879 | G168: 216.4886777
D169: 26141 | E169: 9463282 | F169: 4880 | G169: 217.2470615
D170: 26360.2 | E170: 9496531.4 | F170: 4881 | G170: 218.0103627
D171: 26579.4 | E171: 9529780.8 | F171: 4882 | G171: 218.7736639
D172: 26798.6 | E172: 9563030.2 | F172: 4883 | G172: 219.5369651
D173: 27017.8 | E173: 9596279.6 | F173: 4884 | G173: 220.3002663
D174: 27237 | E174: 9629529 | F174: 4885 | G174: 221.0635675
D175: 27460 | E175: 9662995.4 | F175: 4886 | G175: 221.8318503
D176: 27683 | E176: 9696461.8 | F176: 4887 | G176: 222.6001331
D177: 27906 | E177: 9729928.2 | F177: 4888 | G177: 223.368416
D178: 28129 | E178: 9763394.6 | F178: 4889 | G178: 224.1366988
D179: 28352 | E179: 9796861 | F179: 4890 | G179: 224.9049816
D180: 28578.8 | E180: 9830483.8 | F180: 4891 | G180: 225.6768549
D181: 28805.6 | E181: 9864106.6 | F181: 4892 | G181: 226.4487282
D182: 29032.4 | E182: 9897729.4 | F182: 4893 | G182: 227.2206015
D183: 29259.2 | E183: 9931352.2 | F183: 4894 | G183: 227.9924747
D184: 29486 | E184: 9964975 | F184: 4895 | G184: 228.764348
D185: 29716.6 | E185: 9997755.8 | F185: 4896 | G185: 229.5168916
D186: 29947.2 | E186: 10030536.6 | F186: 4897 | G186: 230.2694353
D187: 30177.8 | E187: 10063317.4 | F187: 4898 | G187: 231.0219789
D188: 30408.4 | E188: 10096098.2 | F188: 4899 | G188: 231.7745225
D189: 30639 | E189: 10128879 | F189: 4900 | G189: 232.5270661
D190: 30873.4 | E190: 10161755 | F190: 4901 | G190: 233.2817952
D191: 31107.8 | E191: 10194631 | F191: 4902 | G191: 234.0365243
D192: 31342.2 | E192: 10227507 | F192: 4903 | G192: 234.7912534
D193: 31576.6 | E193: 10260383 | F193: 4904 | G193: 235.5459826
D194: 31811 | E194: 10293259 | F194: 4905 | G194: 236.3007117
D195: 32049.2 | E195: 10326240 | F195: 4906 | G195: 237.0578512
D196: 32287.4 | E196: 10359221 | F196: 4907 | G196: 237.8149908
D197: 32525.6 | E197: 10392202 | F197: 4908 | G197: 238.5721304
D198: 32763.8 | E198: 10425183 | F198: 4909 | G198: 239.32927
D199: 33002 | E199: 10458164 | F199: 4910 | G199: 240.0864096
D200: 33244 | E200: 10491316.4 | F200: 4911 | G200: 240.8474839
D201: 33486 | E201: 10524468.8 | F201: 4912 | G201: 241.6085583
... 48 more rows

Sheet Spar EVAP
A1: MONTH | B1: EVAP (IN) | C1: EVAP (FT) | E1: Day of Year | F1: EVAP (FT)
A2: Jan | B2: 1.86 | C2: =B2/12 -> 0.155 | E2: 1/1 | F2: 0.005
A3: Feb | B3: 2.48 | C3: =B3/12 -> 0.2066666667 | E3: 1/2 | F3: 0.005
A4: Mar | B4: 4.96 | C4: 0.4133333333 | E4: 1/3 | F4: 0.005
A5: Apr | B5: 6.82 | C5: 0.5683333333 | E5: 1/4 | F5: 0.005
A6: May | B6: 8.06 | C6: 0.6716666667 | E6: 1/5 | F6: 0.005
A7: Jun | B7: 8.68 | C7: 0.7233333333 | E7: 1/6 | F7: 0.005
A8: Jul | B8: 8.06 | C8: 0.6716666667 | E8: 1/7 | F8: 0.005
A9: Aug | B9: 6.82 | C9: 0.5683333333 | E9: 1/8 | F9: 0.005
A10: Sep | B10: 5.58 | C10: 0.465 | E10: 1/9 | F10: 0.005
A11: Oct | B11: 4.34 | C11: 0.3616666667 | E11: 1/10 | F11: 0.005
A12: Nov | B12: 2.48 | C12: 0.2066666667 | E12: 1/11 | F12: 0.005
A13: Dec | B13: 1.86 | C13: 0.155 | E13: 1/12 | F13: 0.005
A14: Total: | B14: =SUM(B2:B13) -> 62 | C14: 5.166666667 | E14: 1/13 | F14: 0.005
A15: (FROM BuRec '87 STUDY) | E15: 1/14 | F15: 0.005
E16: 1/15 | F16: 0.005
E17: 1/16 | F17: 0.005
E18: 1/17 | F18: 0.005
E19: 1/18 | F19: 0.005
E20: 1/19 | F20: 0.005
E21: 1/20 | F21: 0.005
E22: 1/21 | F22: 0.005
E23: 1/22 | F23: 0.005
E24: 1/23 | F24: 0.005
E25: 1/24 | F25: 0.005
E26: 1/25 | F26: 0.005
E27: 1/26 | F27: 0.005
E28: 1/27 | F28: 0.005
E29: 1/28 | F29: 0.005
E30: 1/29 | F30: 0.005
E31: 1/30 | F31: 0.005
E32: 1/31 | F32: 0.005
E33: 2/1 | F33: 0.007251461988
E34: 2/2 | F34: 0.007380952381
E35: 2/3 | F35: 0.007380952381
E36: 2/4 | F36: 0.007380952381
E37: 2/5 | F37: 0.007380952381
E38: 2/6 | F38: 0.007380952381
E39: 2/7 | F39: 0.007380952381
E40: 2/8 | F40: 0.007380952381
E41: 2/9 | F41: 0.007380952381
E42: 2/10 | F42: 0.007380952381
E43: 2/11 | F43: 0.007380952381
E44: 2/12 | F44: 0.007380952381
E45: 2/13 | F45: 0.007380952381
E46: 2/14 | F46: 0.007380952381
E47: 2/15 | F47: 0.007380952381
E48: 2/16 | F48: 0.007380952381
E49: 2/17 | F49: 0.007380952381
E50: 2/18 | F50: 0.007380952381
E51: 2/19 | F51: 0.007380952381
E52: 2/20 | F52: 0.007380952381
E53: 2/21 | F53: 0.007380952381
E54: 2/22 | F54: 0.007380952381
E55: 2/23 | F55: 0.007380952381
E56: 2/24 | F56: 0.007380952381
E57: 2/25 | F57: 0.007380952381
E58: 2/26 | F58: 0.007380952381
E59: 2/27 | F59: 0.007380952381
E60: 2/28 | F60: 0.007380952381
E61: 3/1 | F61: 0.01333333333
E62: 3/2 | F62: 0.01333333333
E63: 3/3 | F63: 0.01333333333
E64: 3/4 | F64: 0.01333333333
E65: 3/5 | F65: 0.01333333333
E66: 3/6 | F66: 0.01333333333
E67: 3/7 | F67: 0.01333333333
E68: 3/8 | F68: 0.01333333333
E69: 3/9 | F69: 0.01333333333
E70: 3/10 | F70: 0.01333333333
E71: 3/11 | F71: 0.01333333333
E72: 3/12 | F72: 0.01333333333
E73: 3/13 | F73: 0.01333333333
E74: 3/14 | F74: 0.01333333333
E75: 3/15 | F75: 0.01333333333
E76: 3/16 | F76: 0.01333333333
E77: 3/17 | F77: 0.01333333333
E78: 3/18 | F78: 0.01333333333
E79: 3/19 | F79: 0.01333333333
E80: 3/20 | F80: 0.01333333333
E81: 3/21 | F81: 0.01333333333
E82: 3/22 | F82: 0.01333333333
E83: 3/23 | F83: 0.01333333333
E84: 3/24 | F84: 0.01333333333
E85: 3/25 | F85: 0.01333333333
E86: 3/26 | F86: 0.01333333333
E87: 3/27 | F87: 0.01333333333
E88: 3/28 | F88: 0.01333333333
E89: 3/29 | F89: 0.01333333333
E90: 3/30 | F90: 0.01333333333
E91: 3/31 | F91: 0.01333333333
E92: 4/1 | F92: 0.01894444444
E93: 4/2 | F93: 0.01894444444
E94: 4/3 | F94: 0.01894444444
E95: 4/4 | F95: 0.01894444444
E96: 4/5 | F96: 0.01894444444
E97: 4/6 | F97: 0.01894444444
E98: 4/7 | F98: 0.01894444444
E99: 4/8 | F99: 0.01894444444
E100: 4/9 | F100: 0.01894444444
E101: 4/10 | F101: 0.01894444444
E102: 4/11 | F102: 0.01894444444
E103: 4/12 | F103: 0.01894444444
E104: 4/13 | F104: 0.01894444444
E105: 4/14 | F105: 0.01894444444
E106: 4/15 | F106: 0.01894444444
E107: 4/16 | F107: 0.01894444444
E108: 4/17 | F108: 0.01894444444
E109: 4/18 | F109: 0.01894444444
E110: 4/19 | F110: 0.01894444444
E111: 4/20 | F111: 0.01894444444
E112: 4/21 | F112: 0.01894444444
E113: 4/22 | F113: 0.01894444444
E114: 4/23 | F114: 0.01894444444
E115: 4/24 | F115: 0.01894444444
E116: 4/25 | F116: 0.01894444444
E117: 4/26 | F117: 0.01894444444
E118: 4/27 | F118: 0.01894444444
E119: 4/28 | F119: 0.01894444444
E120: 4/29 | F120: 0.01894444444
E121: 4/30 | F121: 0.01894444444
E122: 5/1 | F122: 0.02166666667
E123: 5/2 | F123: 0.02166666667
E124: 5/3 | F124: 0.02166666667
E125: 5/4 | F125: 0.02166666667
E126: 5/5 | F126: 0.02166666667
E127: 5/6 | F127: 0.02166666667
E128: 5/7 | F128: 0.02166666667
E129: 5/8 | F129: 0.02166666667
E130: 5/9 | F130: 0.02166666667
E131: 5/10 | F131: 0.02166666667
E132: 5/11 | F132: 0.02166666667
E133: 5/12 | F133: 0.02166666667
E134: 5/13 | F134: 0.02166666667
E135: 5/14 | F135: 0.02166666667
E136: 5/15 | F136: 0.02166666667
E137: 5/16 | F137: 0.02166666667
E138: 5/17 | F138: 0.02166666667
E139: 5/18 | F139: 0.02166666667
E140: 5/19 | F140: 0.02166666667
E141: 5/20 | F141: 0.02166666667
E142: 5/21 | F142: 0.02166666667
E143: 5/22 | F143: 0.02166666667
E144: 5/23 | F144: 0.02166666667
E145: 5/24 | F145: 0.02166666667
E146: 5/25 | F146: 0.02166666667
E147: 5/26 | F147: 0.02166666667
E148: 5/27 | F148: 0.02166666667
E149: 5/28 | F149: 0.02166666667
E150: 5/29 | F150: 0.02166666667
E151: 5/30 | F151: 0.02166666667
E152: 5/31 | F152: 0.02166666667
E153: 6/1 | F153: 0.02411111111
E154: 6/2 | F154: 0.02411111111
E155: 6/3 | F155: 0.02411111111
E156: 6/4 | F156: 0.02411111111
E157: 6/5 | F157: 0.02411111111
E158: 6/6 | F158: 0.02411111111
E159: 6/7 | F159: 0.02411111111
E160: 6/8 | F160: 0.02411111111
E161: 6/9 | F161: 0.02411111111
E162: 6/10 | F162: 0.02411111111
E163: 6/11 | F163: 0.02411111111
E164: 6/12 | F164: 0.02411111111
E165: 6/13 | F165: 0.02411111111
E166: 6/14 | F166: 0.02411111111
E167: 6/15 | F167: 0.02411111111
E168: 6/16 | F168: 0.02411111111
E169: 6/17 | F169: 0.02411111111
E170: 6/18 | F170: 0.02411111111
E171: 6/19 | F171: 0.02411111111
E172: 6/20 | F172: 0.02411111111
E173: 6/21 | F173: 0.02411111111
E174: 6/22 | F174: 0.02411111111
E175: 6/23 | F175: 0.02411111111
E176: 6/24 | F176: 0.02411111111
E177: 6/25 | F177: 0.02411111111
E178: 6/26 | F178: 0.02411111111
E179: 6/27 | F179: 0.02411111111
E180: 6/28 | F180: 0.02411111111
E181: 6/29 | F181: 0.02411111111
E182: 6/30 | F182: 0.02411111111
E183: 7/1 | F183: 0.02166666667
E184: 7/2 | F184: 0.02166666667
E185: 7/3 | F185: 0.02166666667
E186: 7/4 | F186: 0.02166666667
E187: 7/5 | F187: 0.02166666667
E188: 7/6 | F188: 0.02166666667
E189: 7/7 | F189: 0.02166666667
E190: 7/8 | F190: 0.02166666667
E191: 7/9 | F191: 0.02166666667
E192: 7/10 | F192: 0.02166666667
E193: 7/11 | F193: 0.02166666667
E194: 7/12 | F194: 0.02166666667
E195: 7/13 | F195: 0.02166666667
E196: 7/14 | F196: 0.02166666667
E197: 7/15 | F197: 0.02166666667
E198: 7/16 | F198: 0.02166666667
E199: 7/17 | F199: 0.02166666667
E200: 7/18 | F200: 0.02166666667
... 166 more rows

Sheet Gila-Drought Histo Data
A1: Gila nr Gila (cfs) | G1: Bin | H1: Frequency | I1: Cumulative %
A2: 78.2 | E2: 50 | G2: 50 | H2: 8226 | I2: 0.2944060699
A3: 67.15 | E3: 100 | G3: 100 | H3: 11601 | I3: 0.7096023764
A4: 61.2 | E4: 150 | G4: 150 | H4: 2891 | I4: 0.8130703983
A5: 56.1 | E5: 200 | G5: 200 | H5: 1375 | I5: 0.8622812355
A6: 53.55 | E6: 300 | G6: 300 | H6: 1437 | I6: 0.913711034
A7: 49.3 | E7: 400 | G7: 400 | H7: 329 | I7: 0.9254858452
A8: 47.6 | E8: 600 | G8: 600 | H8: 826 | I8: 0.9550481371
A9: 47.6 | E9: 1000 | G9: 1000 | H9: 755 | I9: 0.9820693604
A10: 47.6 | E10: 2000 | G10: 2000 | H10: 361 | I10: 0.994989442
A11: 45.9 | E11: 4000 | G11: 4000 | H11: 97 | I11: 0.9984610429
A12: 45.05 | E12: 10000 | G12: 10000 | H12: 38 | I12: 0.9998210515
A13: 42.5 | E13: 20000 | G13: 20000 | H13: 3 | I13: 0.9999284206
A14: 42.5 | G14: More | H14: 2 | I14: 1
A15: 42.5
A16: 42.5
A17: 41.65
A18: 41.65
A19: 41.65
A20: 40.8
A21: 40.8
A22: 41.65
A23: 42.5
A24: 42.5
A25: 48.45
A26: 58.65
A27: 53.55
A28: 49.3
A29: 48.45
A30: 45.9
A31: 51
A32: 57.8
A33: 54.4
A34: 56.1
A35: 54.4
A36: 54.4
A37: 54.4
A38: 53.55
A39: 52.7
A40: 52.7
A41: 51
A42: 49.3
A43: 51
A44: 49.3
A45: 49.3
A46: 51
A47: 52.7
A48: 51
A49: 51
A50: 49.3
A51: 51
A52: 53.55
A53: 56.1
A54: 64.6
A55: 68.85
A56: 74.8
A57: 78.2
A58: 78.2
A59: 73.1
A60: 76.5
A61: 78.2
A62: 76.5
A63: 76.5
A64: 73.1
A65: 71.4
A66: 70.55
A67: 73.1
A68: 71.4
A69: 67.15
A70: 60.35
A71: 60.35
A72: 58.65
A73: 57.8
A74: 54.4
A75: 52.7
A76: 54.4
A77: 57.8
A78: 60.35
A79: 62.9
A80: 61.2
A81: 58.65
A82: 58.65
A83: 58.65
A84: 58.65
A85: 58.65
A86: 58.65
A87: 61.2
A88: 67.15
A89: 66.3
A90: 61.2
A91: 64.6
A92: 73.1
A93: 61.2
A94: 61.2
A95: 61.2
A96: 54.4
A97: 51
A98: 48.45
A99: 49.3
A100: 56.1
A101: 60.35
A102: 58.65
A103: 56.1
A104: 52.7
A105: 54.4
A106: 78.2
A107: 85.85
A108: 74.8
A109: 68.85
A110: 68.85
A111: 68.85
A112: 67.15
A113: 68.85
A114: 68.85
A115: 66.3
A116: 58.65
A117: 57.8
A118: 58.65
A119: 57.8
A120: 56.1
A121: 56.1
A122: 58.65
A123: 60.35
A124: 61.2
A125: 60.35
A126: 61.2
A127: 62.9
A128: 61.2
A129: 61.2
A130: 62.9
A131: 429.45
A132: 2415
A133: 855.75
A134: 472.5
A135: 255
A136: 204
A137: 178.5
A138: 159.8
A139: 250.75
A140: 3570
A141: 2835
A142: 1575
A143: 1050
A144: 798
A145: 651
A146: 538.65
A147: 497.7
A148: 552.3
A149: 640.5
A150: 640.5
A151: 534.45
A152: 437.85
A153: 325.55
A154: 322.15
A155: 422.1
A156: 450.45
A157: 322.15
A158: 282.2
A159: 294.1
A160: 534.45
A161: 798
A162: 981.75
A163: 1050
A164: 1081.5
A165: 981.75
A166: 918.75
A167: 950.25
A168: 918.75
A169: 3286.5
A170: 2604
A171: 1680
A172: 1155
A173: 918.75
A174: 798
A175: 768.6
A176: 708.75
A177: 635.25
A178: 585.9
A179: 538.65
A180: 485.1
A181: 458.85
A182: 437.85
A183: 325.55
A184: 316.2
A185: 328.1
A186: 450.45
A187: 493.5
A188: 472.5
A189: 437.85
A190: 426.3
A191: 433.65
A192: 430.5
A193: 430.5
A194: 433.65
A195: 454.65
A196: 476.7
A197: 489.3
A198: 497.7
A199: 529.2
A200: 567
... 27742 more rows
